Workbook

Sheet 入力・出力
B2: １スライスに限定した安定解析シート Version.0.5（2019/8/21）
B3: 【入力】
B4: ＜地盤条件＞
B5: 斜面傾斜角 | C5: 土層深 | D5: 土塊幅 | E5: 水の 単位重量 | F5: 地下水位 (静水圧） | G5: 土の 単位重量 | H5: 粘着力 | I5: 内部摩擦角 | J5: 過剰間隙水圧比
B6: θ | C6: ｚ | D6: b | E6: γw | F6: ｚw | G6: γ | H6: ｃ | I6: φ | J6: α
B7: deg | C7: m | D7: m | E7: kN/m3 | F7: m | G7: kN/m3 | H7: kN/㎡ | I7: deg
B8: 30 | C8: 1.5 | D8: 1 | E8: 9.81 | F8: 1.5 | G8: 18 | H8: 10 | I8: 35 | J8: 0.15
F9: 標準偏差 | G9: 1 | H9: 2 | I9: 3 | J9: 0.033
B11: ＜過剰間隙水圧計算＞
B12: 初期値⊿h0 | C12: 0.2
B13: ピッチ | C13: 0.2 | F13: ※「正規乱数」のグラフを見て、正規乱数の形が悪いときに再セット
B16: 【計算結果出力】
B17: ・過剰間隙水圧を考慮しない計算
B18: 確定論的安全率Fs | D18: =+計算結果!Q6 -> 1.186831041
B19: 確率的安全率の平均値Fs' | D19: =+確率計算!M3 -> 1.138170514
B20: 崩壊確率PF | D20: =+確率計算!M6 -> 0.148
B24: ・過剰間隙水圧を考慮した計算
B25: 比高⊿hごとの崩壊確率
B26: ⊿h | C26: PF
B27: =+計算結果!B12 -> 0.2 | C27: =+計算結果!G12 -> 0.173
B28: =+計算結果!B13 -> 0.4 | C28: =+計算結果!G13 -> 0.204
B29: =+計算結果!B14 -> 0.6 | C29: =+計算結果!G14 -> 0.239
B30: =+計算結果!B15 -> 0.8 | C30: =+計算結果!G15 -> 0.26
B31: =+計算結果!B16 -> 1 | C31: =+計算結果!G16 -> 0.29
B32: =+計算結果!B17 -> 1.2 | C32: =+計算結果!G17 -> 0.318
B33: =+計算結果!B18 -> 1.4 | C33: =+計算結果!G18 -> 0.342
B34: =+計算結果!B19 -> 1.6 | C34: =+計算結果!G19 -> 0.381
B35: =+計算結果!B20 -> 1.8 | C35: =+計算結果!G20 -> 0.423
B36: =+計算結果!B21 -> 2 | C36: =+計算結果!G21 -> 0.463
B37: =+計算結果!B22 -> 2.2 | C37: =+計算結果!G22 -> 0.498
B38: =+計算結果!B23 -> 2.4 | C38: =+計算結果!G23 -> 0.525 | E38: 【解決すべき課題】 ・円弧状に滑る土塊を無限長斜面の計算で行うため、浅い位置（粘着力がよく効く）効果が計算できないことの改善を図る必要があること。 ・過剰間隙水圧を考慮したφ成分抵抗力がマイナスとなった場合には、ゼロとしているが、実際には土を引き剥がすような揚圧力が作用するのではないかとも思えること。 ・過剰間隙水圧比αを、円弧すべりで逆算した実績の最大値0.3を使うのが適切かどうか再検討が必要なこと。 ・静水圧が地表面まで達していることを標準とすべきかどうか再検討すること。
B39: =+計算結果!B24 -> 2.6 | C39: =+計算結果!G24 -> 0.567
B40: =+計算結果!B25 -> 2.8 | C40: =+計算結果!G25 -> 0.623
B41: =+計算結果!B26 -> 3 | C41: =+計算結果!G26 -> 0.671
B42: =+計算結果!B27 -> 3.2 | C42: =+計算結果!G27 -> 0.692
B43: =+計算結果!B28 -> 3.4 | C43: =+計算結果!G28 -> 0.72
B44: =+計算結果!B29 -> 3.6 | C44: =+計算結果!G29 -> 0.752
B45: =+計算結果!B30 -> 3.8 | C45: =+計算結果!G30 -> 0.785
B46: =+計算結果!B31 -> 4 | C46: =+計算結果!G31 -> 0.814
B47: =+計算結果!B32 -> 4.2 | C47: =+計算結果!G32 -> 0.84

Sheet 計算結果
B1: 【安定計算結果】
B2: （１）過剰間隙水圧を考慮しない計算
B3: 斜面傾斜角 | C3: 土層深 | D3: 土塊幅 | E3: 水の 単位重量 | F3: 地下水位 (静水圧） | G3: 土の 単位重量 | H3: 粘着力 | I3: 内部摩擦角 | J3: 土塊重量 | K3: 滑動力 | L3: 法線力 | M3: 間隙水圧 （静水圧） | N3: φ成分 抵抗力 | O3: すべり面長 | P3: ｃ成分 抵抗力 | Q3: 静水圧時
B4: θ | C4: ｚ | D4: b | E4: γw | F4: ｚw | G4: γ | H4: ｃ | I4: φ | J4: W | K4: T | L4: N | M4: u | N4: （N-u） tanφ | O4: ℓ | P4: ｃ・ℓ | Q4: 安全率 Fs | R4: 崩壊確率 PF
B5: deg | C5: m | D5: m | E5: kN/m3 | F5: m | G5: kN/m3 | H5: kN/㎡ | I5: deg | J5: kN/m | K5: kN/m | L5: kN/m | M5: kN/m | N5: kN/m | O5: m | P5: kN/m
B6: =+入力・出力!B8 -> 30 | C6: =+入力・出力!C8 -> 1.5 | D6: =+入力・出力!D8 -> 1 | E6: =+入力・出力!E8 -> 9.81 | F6: =+入力・出力!F8 -> 1.5 | G6: =+入力・出力!G8 -> 18 | H6: =+入力・出力!H8 -> 10 | I6: =+入力・出力!I8 -> 35 | J6: =+G6*D6*C6 -> 27 | K6: =+J6*SIN(PI()/180*B6) -> 13.5 | L6: =+J6*COS(PI()/180*B6) -> 23.3826859 | M6: =+E6*D6*F6/COS(PI()/180*B6) -> 16.99141842 | N6: =+(L6-M6)*TAN(PI()/180*I6) -> 4.475213668 | O6: =+D6/COS(PI()/180*B6) -> 1.154700538 | P6: =+H6*O6 -> 11.54700538 | Q6: =+(N6+P6)/K6 -> 1.186831041 | R6: =+確率計算!M6 -> 0.148
B8: （２）過剰間隙水圧を考慮した計算
B9: 圧力水頭 ゼロ地点との比高 | C9: 過剰間隙水圧比 | D9: 過剰間隙水圧 | E9: 過剰間隙水圧を考慮したφ成分抵抗力 | F9: 過剰間隙水圧 考慮時
A10: min | B10: ⊿h | C10: α | D10: Ue | E10: (N-u-ue）tanφ | F10: 安全率 Fs-e | G10: 崩壊確率 PF
A11: =+MIN(A12:A32) -> 1.010571496 | B11: m | C11: (0≦α<1) | D11: kN/m | E11: kN/m
A12: =+IF(F12>1,F12,"") -> 1.169205086 | B12: =+入力・出力!C12 -> 0.2 | C12: =+入力・出力!J8 -> 0.15 | D12: =+B12*$E$6*C12*$O$6 -> 0.3398283684 | E12: =+IF($L$6-$M$6-D12<0,0,($L$6-$M$6-D12)*TAN($I$6*PI()/180)) -> 4.237263283 | F12: =+(E12+$P$6)/$K$6 -> 1.169205086 | G12: =+確率計算!O6 -> 0.173 | H12: =+IF(F12=$A$11,"<--Fs>1.0となる排水パイプの最大ピッチ","") -> 
A13: =+IF(F13>1,F13,"") -> 1.151579132 | B13: =+B12+入力・出力!$C$13 -> 0.4 | C13: =+C12 -> 0.15 | D13: =+B13*$E$6*C13*$O$6 -> 0.6796567369 | E13: =+IF($L$6-$M$6-D13<0,0,($L$6-$M$6-D13)*TAN($I$6*PI()/180)) -> 3.999312898 | F13: =+(E13+$P$6)/$K$6 -> 1.151579132 | G13: =+確率計算!P6 -> 0.204 | H13: =+IF(F13=$A$11,"<--Fs>1.0となる排水パイプの最大ピッチ","") -> 
A14: =+IF(F14>1,F14,"") -> 1.133953177 | B14: =+B13+入力・出力!$C$13 -> 0.6 | C14: =+C13 -> 0.15 | D14: 1.019485105 | E14: 3.761362512 | F14: =+(E14+$P$6)/$K$6 -> 1.133953177 | G14: =+確率計算!Q6 -> 0.239
A15: =+IF(F15>1,F15,"") -> 1.116327223 | B15: =+B14+入力・出力!$C$13 -> 0.8 | C15: =+C14 -> 0.15 | D15: 1.359313474 | E15: 3.523412127 | F15: =+(E15+$P$6)/$K$6 -> 1.116327223 | G15: =+確率計算!R6 -> 0.26
A16: =+IF(F16>1,F16,"") -> 1.098701269 | B16: =+B15+入力・出力!$C$13 -> 1 | C16: =+C15 -> 0.15 | D16: 1.699141842 | E16: 3.285461742 | F16: =+(E16+$P$6)/$K$6 -> 1.098701269 | G16: =+確率計算!S6 -> 0.29
A17: =+IF(F17>1,F17,"") -> 1.081075314 | B17: =+B16+入力・出力!$C$13 -> 1.2 | C17: =+C16 -> 0.15 | D17: 2.038970211 | E17: 3.047511356 | F17: =+(E17+$P$6)/$K$6 -> 1.081075314 | G17: =+確率計算!T6 -> 0.318
A18: =+IF(F18>1,F18,"") -> 1.06344936 | B18: =+B17+入力・出力!$C$13 -> 1.4 | C18: =+C17 -> 0.15 | D18: 2.378798579 | E18: 2.809560971 | F18: =+(E18+$P$6)/$K$6 -> 1.06344936 | G18: =+確率計算!U6 -> 0.342
A19: =+IF(F19>1,F19,"") -> 1.045823405 | B19: =+B18+入力・出力!$C$13 -> 1.6 | C19: =+C18 -> 0.15 | D19: 2.718626948 | E19: 2.571610586 | F19: =+(E19+$P$6)/$K$6 -> 1.045823405 | G19: =+確率計算!V6 -> 0.381
A20: =+IF(F20>1,F20,"") -> 1.028197451 | B20: =+B19+入力・出力!$C$13 -> 1.8 | C20: =+C19 -> 0.15 | D20: 3.058455316 | E20: 2.333660201 | F20: =+(E20+$P$6)/$K$6 -> 1.028197451 | G20: =+確率計算!W6 -> 0.423
A21: =+IF(F21>1,F21,"") -> 1.010571496 | B21: =+B20+入力・出力!$C$13 -> 2 | C21: =+C20 -> 0.15 | D21: 3.398283684 | E21: 2.095709815 | F21: =+(E21+$P$6)/$K$6 -> 1.010571496 | G21: =+確率計算!X6 -> 0.463 | H21: <--Fs>1.0となる排水パイプの最大ピッチ
A22: =+IF(F22>1,F22,"") ->  | B22: =+B21+入力・出力!$C$13 -> 2.2 | C22: =+C21 -> 0.15 | D22: 3.738112053 | E22: 1.85775943 | F22: =+(E22+$P$6)/$K$6 -> 0.9929455418 | G22: =+確率計算!Y6 -> 0.498
A23: =+IF(F23>1,F23,"") ->  | B23: =+B22+入力・出力!$C$13 -> 2.4 | C23: =+C22 -> 0.15 | D23: 4.077940421 | E23: 1.619809045 | F23: =+(E23+$P$6)/$K$6 -> 0.9753195873 | G23: =+確率計算!Z6 -> 0.525
A24: =+IF(F24>1,F24,"") ->  | B24: =+B23+入力・出力!$C$13 -> 2.6 | C24: =+C23 -> 0.15 | D24: 4.41776879 | E24: 1.381858659 | F24: =+(E24+$P$6)/$K$6 -> 0.9576936328 | G24: =+確率計算!AA6 -> 0.567
A25: =+IF(F25>1,F25,"") ->  | B25: =+B24+入力・出力!$C$13 -> 2.8 | C25: =+C24 -> 0.15 | D25: 4.757597158 | E25: 1.143908274 | F25: =+(E25+$P$6)/$K$6 -> 0.9400676784 | G25: =+確率計算!AB6 -> 0.623
A26: =+IF(F26>1,F26,"") ->  | B26: =+B25+入力・出力!$C$13 -> 3 | C26: =+C25 -> 0.15 | D26: 5.097425527 | E26: 0.9059578889 | F26: =+(E26+$P$6)/$K$6 -> 0.9224417239 | G26: =+確率計算!AC6 -> 0.671
A27: =+IF(F27>1,F27,"") ->  | B27: =+B26+入力・出力!$C$13 -> 3.2 | C27: =+C26 -> 0.15 | D27: 5.437253895 | E27: 0.6680075036 | F27: =+(E27+$P$6)/$K$6 -> 0.9048157694 | G27: =+確率計算!AD6 -> 0.692
A28: =+IF(F28>1,F28,"") ->  | B28: =+B27+入力・出力!$C$13 -> 3.4 | C28: =+C27 -> 0.15 | D28: 5.777082264 | E28: 0.4300571184 | F28: =+(E28+$P$6)/$K$6 -> 0.887189815 | G28: =+確率計算!AE6 -> 0.72
A29: =+IF(F29>1,F29,"") ->  | B29: =+B28+入力・出力!$C$13 -> 3.6 | C29: =+C28 -> 0.15 | D29: 6.116910632 | E29: 0.1921067331 | F29: =+(E29+$P$6)/$K$6 -> 0.8695638605 | G29: =+確率計算!AF6 -> 0.752
A30: =+IF(F30>1,F30,"") ->  | B30: =+B29+入力・出力!$C$13 -> 3.8 | C30: =+C29 -> 0.15 | D30: 6.456739 | E30: 0 | F30: =+(E30+$P$6)/$K$6 -> 0.8553337321 | G30: =+確率計算!AG6 -> 0.785
A31: =+IF(F31>1,F31,"") ->  | B31: =+B30+入力・出力!$C$13 -> 4 | C31: =+C30 -> 0.15 | D31: 6.796567369 | E31: 0 | F31: =+(E31+$P$6)/$K$6 -> 0.8553337321 | G31: =+確率計算!AH6 -> 0.814
A32: =+IF(F32>1,F32,"") ->  | B32: =+B31+入力・出力!$C$13 -> 4.2 | C32: =+C31 -> 0.15 | D32: 7.136395737 | E32: 0 | F32: =+(E32+$P$6)/$K$6 -> 0.8553337321 | G32: =+確率計算!AI6 -> 0.84
B34: 【解決すべき課題】 ・円弧状に滑る土塊を無限長斜面の計算で行うため、浅い位置（粘着力がよく効く）効果が計算できないことの改善を図る必要があること。 ・過剰間隙水圧を考慮したφ成分抵抗力がマイナスとなった場合には、ゼロとしているが、実際には土を引き剥がすような揚圧力が作用するのではないかとも思えること。 ・過剰間隙水圧比αを、円弧すべりで逆算した実績の最大値0.3を使うのが適切かどうか再検討が必要なこと。 ・静水圧が地表面まで達していることを標準とすべきかどうか再検討すること。

Sheet 確率計算
E2: 参照用 メモ | F2: 傾斜角θ | G2: =入力・出力!B8 -> 30
F3: 土層深Z | G3: =+入力・出力!C8 -> 1.5 | K3: 平均安全率 | M3: =+AVERAGE(M11:M36) -> 1.138170514 | O3: =+AVERAGE(O11:O36) -> 1.121171384 | P3: =+AVERAGE(P11:P36) -> 1.104172254 | Q3: 1.087173124 | R3: 1.070173994 | S3: 1.053174865 | T3: 1.036175735 | U3: 1.019176605 | V3: 1.002177475 | W3: 0.9851783453 | X3: 0.9681792154 | Y3: 0.9511800856 | Z3: 0.9341809558 | AA3: 0.9171818259 | AB3: 0.9001826961 | AC3: 0.8831835663 | AD3: 0.8661844364 | AE3: 0.8491853066 | AF3: 0.8321861768 | AG3: 0.8151870469 | AH3: 0.7981879171 | AI3: 0.7811887872
F4: 幅b | G4: =+入力・出力!D8 -> 1 | K4: 総数 | M4: =+COUNT(M11:M1010) -> 1000 | O4: =+COUNT(O11:O1010) -> 1000 | P4: =+COUNT(P11:P1010) -> 1000 | Q4: 1000 | R4: 1000 | S4: 1000 | T4: 1000 | U4: 1000 | V4: 1000 | W4: 1000 | X4: 1000 | Y4: 1000 | Z4: 1000 | AA4: 1000 | AB4: 1000 | AC4: 1000 | AD4: 1000 | AE4: 1000 | AF4: 1000 | AG4: 1000 | AH4: 1000 | AI4: 1000
F5: 水位Zw | G5: =+入力・出力!F8 -> 1.5 | K5: <1.00 | M5: =COUNTIF(M11:M1010,"<1") -> 148 | O5: =COUNTIF(O11:O1010,"<1") -> 173 | P5: =COUNTIF(P11:P1010,"<1") -> 204 | Q5: 239 | R5: 260 | S5: 290 | T5: 318 | U5: 342 | V5: 381 | W5: 423 | X5: 463 | Y5: 498 | Z5: 525 | AA5: 567 | AB5: 623 | AC5: 671 | AD5: 692 | AE5: 720 | AF5: 752 | AG5: 785 | AH5: 814 | AI5: 840
F6: γw | G6: =+入力・出力!E8 -> 9.81 | K6: 崩壊確率 | M6: =+M5/M4 -> 0.148 | O6: =+O5/O4 -> 0.173 | P6: =+P5/P4 -> 0.204 | Q6: 0.239 | R6: 0.26 | S6: 0.29 | T6: 0.318 | U6: 0.342 | V6: 0.381 | W6: 0.423 | X6: 0.463 | Y6: 0.498 | Z6: 0.525 | AA6: 0.567 | AB6: 0.623 | AC6: 0.671 | AD6: 0.692 | AE6: 0.72 | AF6: 0.752 | AG6: 0.785 | AH6: 0.814 | AI6: 0.84
A8: 計算ケース | B8: 3σで正規分布させたパラメータ | F8: 土塊重量 | G8: 滑動力 | H8: 法線力 | I8: 間隙水圧 （静水圧） | J8: φ成分 抵抗力 | K8: すべり面長 | L8: ｃ成分 抵抗力 | M8: 静水圧時 | O8: 過剰間隙水圧を考慮した安定計算
F9: W | G9: T | H9: N | I9: u | J9: （N-u） tanφ | K9: ℓ | L9: ｃ・ℓ | M9: 安全率 Fs | O9: 過剰間隙水圧の比高⊿h(m)ごとの安全率
B10: 正規乱数ｃ | C10: 正規乱数φ | D10: 正規乱数γ | E10: 正規乱数α | F10: kN/m | G10: kN/m | H10: kN/m | I10: kN/m | J10: kN/m | K10: m | L10: kN/m | O10: =+入力・出力!C12 -> 0.2 | P10: =+O10+入力・出力!$C$13 -> 0.4 | Q10: =+P10+入力・出力!$C$13 -> 0.6 | R10: =+Q10+入力・出力!$C$13 -> 0.8 | S10: =+R10+入力・出力!$C$13 -> 1 | T10: =+S10+入力・出力!$C$13 -> 1.2 | U10: =+T10+入力・出力!$C$13 -> 1.4 | V10: =+U10+入力・出力!$C$13 -> 1.6 | W10: =+V10+入力・出力!$C$13 -> 1.8 | X10: =+W10+入力・出力!$C$13 -> 2 | Y10: =+X10+入力・出力!$C$13 -> 2.2 | Z10: =+Y10+入力・出力!$C$13 -> 2.4 | AA10: =+Z10+入力・出力!$C$13 -> 2.6 | AB10: =+AA10+入力・出力!$C$13 -> 2.8 | AC10: =+AB10+入力・出力!$C$13 -> 3 | AD10: =+AC10+入力・出力!$C$13 -> 3.2 | AE10: =+AD10+入力・出力!$C$13 -> 3.4 | AF10: =+AE10+入力・出力!$C$13 -> 3.6 | AG10: =+AF10+入力・出力!$C$13 -> 3.8 | AH10: =+AG10+入力・出力!$C$13 -> 4 | AI10: =+AH10+入力・出力!$C$13 -> 4.2
A11: 1 | B11: =+正規乱数!L9 -> 9.655816444 | C11: =+正規乱数!M9 -> 36.31791258 | D11: =+正規乱数!N9 -> 18.48087834 | E11: =+正規乱数!O9 -> 0.1527543212 | F11: =+$G$3*$G$4*D11 -> 27.72131751 | G11: =+F11*SIN($G$2*PI()/180) -> 13.86065875 | H11: =+F11*COS($G$2*PI()/180) -> 24.00736519 | I11: =+$G$5*$G$4*$G$6/COS($G$2*PI()/180) -> 16.99141842 | J11: =+(H11-I11)*TAN(C11*PI()/180) -> 5.157103022 | K11: =+$G$4/COS($G$2*PI()/180) -> 1.154700538 | L11: =+K11*B11 -> 11.14957645 | M11: =+(J11+L11)/G11 -> 1.176472183 | O11: =+(($H11-$I11-O$10*$G$6*$E11*$K11)*TAN($C11*PI()/180)+$L11)/$G11 -> 1.158119586 | P11: =+(($H11-$I11-P$10*$G$6*$E11*$K11)*TAN($C11*PI()/180)+$L11)/$G11 -> 1.13976699 | Q11: 1.121414393 | R11: 1.103061796 | S11: 1.084709199 | T11: 1.066356602 | U11: 1.048004005 | V11: 1.029651408 | W11: 1.011298811 | X11: 0.992946214 | Y11: 0.9745936171 | Z11: 0.9562410202 | AA11: 0.9378884232 | AB11: 0.9195358263 | AC11: 0.9011832294 | AD11: 0.8828306324 | AE11: 0.8644780355 | AF11: 0.8461254385 | AG11: 0.8277728416 | AH11: 0.8094202447 | AI11: 0.7910676477
A12: 2 | B12: =+正規乱数!L10 -> 8.2954676 | C12: =+正規乱数!M10 -> 33.79482739 | D12: =+正規乱数!N10 -> 18.73039943 | E12: =+正規乱数!O10 -> 0.1427602376 | F12: =+$G$3*$G$4*D12 -> 28.09559915 | G12: =+F12*SIN($G$2*PI()/180) -> 14.04779957 | H12: =+F12*COS($G$2*PI()/180) -> 24.3315026 | I12: =+$G$5*$G$4*$G$6/COS($G$2*PI()/180) -> 16.99141842 | J12: =+(H12-I12)*TAN(C12*PI()/180) -> 4.912798503 | K12: =+$G$4/COS($G$2*PI()/180) -> 1.154700538 | L12: =+K12*B12 -> 9.578780903 | M12: =+(J12+L12)/G12 -> 1.031590701 | O12: =+(($H12-$I12-O$10*$G$6*$E12*$K12)*TAN($C12*PI()/180)+$L12)/$G12 -> 1.016180963 | P12: 1.000771226 | Q12: 0.985361488 | R12: 0.9699517505 | S12: 0.9545420129 | T12: 0.9391322753 | U12: 0.9237225377 | V12: 0.9083128002 | W12: 0.8929030626 | X12: 0.877493325 | Y12: 0.8620835874 | Z12: 0.8466738499 | AA12: 0.8312641123 | AB12: 0.8158543747 | AC12: 0.8004446371 | AD12: 0.7850348996 | AE12: 0.769625162 | AF12: 0.7542154244 | AG12: 0.7388056868 | AH12: 0.7233959493 | AI12: 0.7079862117
A13: 3 | B13: =+正規乱数!L11 -> 5.704223958 | C13: =+正規乱数!M11 -> 36.11495477 | D13: =+正規乱数!N11 -> 18.51719042 | E13: =+正規乱数!O11 -> 0.1900887598 | F13: 27.77578563 | G13: 13.88789281 | H13: 24.05453596 | I13: 16.99141842 | J13: 5.153338286 | K13: 1.154700538 | L13: 6.586670476 | M13: 0.8453412566 | O13: 0.822716669 | P13: 0.8000920814 | Q13: 0.7774674938 | R13: 0.7548429062 | S13: 0.7322183186 | T13: 0.7095937311 | U13: 0.6869691435 | V13: 0.6643445559 | W13: 0.6417199683 | X13: 0.6190953807 | Y13: 0.5964707932 | Z13: 0.5738462056 | AA13: 0.551221618 | AB13: 0.5285970304 | AC13: 0.5059724428 | AD13: 0.4833478552 | AE13: 0.4607232677 | AF13: 0.4380986801 | AG13: 0.4154740925 | AH13: 0.3928495049 | AI13: 0.3702249173
A14: 4 | B14: =+正規乱数!L12 -> 7.533832138 | C14: =+正規乱数!M12 -> 29.78025852 | D14: =+正規乱数!N12 -> 18.00742885 | E14: =+正規乱数!O12 -> 0.2321744627 | F14: 27.01114327 | G14: 13.50557164 | H14: 23.39233626 | I14: 16.99141842 | J14: 3.662911955 | K14: 1.154700538 | L14: 8.699320026 | M14: 0.9153431127 | O14: 0.8930559863 | P14: 0.8707688598 | Q14: 0.8484817334 | R14: 0.826194607 | S14: 0.8039074805 | T14: 0.7816203541 | U14: 0.7593332277 | V14: 0.7370461012 | W14: 0.7147589748 | X14: 0.6924718484 | Y14: 0.6701847219 | Z14: 0.6478975955 | AA14: 0.6256104691 | AB14: 0.6033233426 | AC14: 0.5810362162 | AD14: 0.5587490898 | AE14: 0.5364619633 | AF14: 0.5141748369 | AG14: 0.4918877105 | AH14: 0.469600584 | AI14: 0.4473134576
A15: 5 | B15: =+正規乱数!L13 -> 5.151639242 | C15: =+正規乱数!M13 -> 35.87648365 | D15: =+正規乱数!N13 -> 17.55566364 | E15: =+正規乱数!O13 -> 0.1367043949 | F15: 26.33349547 | G15: 13.16674773 | H15: 22.80547604 | I15: 16.99141842 | J15: 4.205040169 | K15: 1.154700538 | L15: 5.948600607 | M15: 0.7711578426 | O15: 0.754145538 | P15: 0.7371332334 | Q15: 0.7201209287 | R15: 0.7031086241 | S15: 0.6860963195 | T15: 0.6690840149 | U15: 0.6520717102 | V15: 0.6350594056 | W15: 0.618047101 | X15: 0.6010347964 | Y15: 0.5840224918 | Z15: 0.5670101871 | AA15: 0.5499978825 | AB15: 0.5329855779 | AC15: 0.5159732733 | AD15: 0.4989609686 | AE15: 0.481948664 | AF15: 0.4649363594 | AG15: 0.4479240548 | AH15: 0.4309117501 | AI15: 0.4138994455
A16: 6 | B16: =+正規乱数!L14 -> 11.58684114 | C16: =+正規乱数!M14 -> 34.82671259 | D16: =+正規乱数!N14 -> 18.06143771 | E16: =+正規乱数!O14 -> 0.1827613115 | F16: 27.09215657 | G16: 13.54607828 | H16: 23.46249583 | I16: 16.99141842 | J16: 4.501991717 | K16: 1.154700538 | L16: 13.3793317 | M16: 1.320036917 | O16: 1.298771831 | P16: 1.277506744 | Q16: 1.256241658 | R16: 1.234976572 | S16: 1.213711485 | T16: 1.192446399 | U16: 1.171181312 | V16: 1.149916226 | W16: 1.128651139 | X16: 1.107386053 | Y16: 1.086120966 | Z16: 1.06485588 | AA16: 1.043590793 | AB16: 1.022325707 | AC16: 1.00106062 | AD16: 0.9797955339 | AE16: 0.9585304475 | AF16: 0.937265361 | AG16: 0.9160002745 | AH16: 0.8947351881 | AI16: 0.8734701016
A17: 7 | B17: =+正規乱数!L15 -> 7.449671458 | C17: =+正規乱数!M15 -> 35.50192086 | D17: =+正規乱数!N15 -> 17.65524902 | E17: =+正規乱数!O15 -> 0.08491997717 | F17: 26.48287353 | G17: 13.24143676 | H17: 22.93484124 | I17: 16.99141842 | J17: 4.239702936 | K17: 1.154700538 | L17: 8.602139643 | M17: 0.9698224452 | O17: 0.9594580985 | P17: 0.9490937519 | Q17: 0.9387294052 | R17: 0.9283650586 | S17: 0.9180007119 | T17: 0.9076363653 | U17: 0.8972720187 | V17: 0.886907672 | W17: 0.8765433254 | X17: 0.8661789787 | Y17: 0.8558146321 | Z17: 0.8454502854 | AA17: 0.8350859388 | AB17: 0.8247215921 | AC17: 0.8143572455 | AD17: 0.8039928988 | AE17: 0.7936285522 | AF17: 0.7832642056 | AG17: 0.7728998589 | AH17: 0.7625355123 | AI17: 0.7521711656
A18: 8 | B18: =+正規乱数!L16 -> 12.11321788 | C18: =+正規乱数!M16 -> 37.97255398 | D18: =+正規乱数!N16 -> 17.95345051 | E18: =+正規乱数!O16 -> 0.1614682082 | F18: 26.93017577 | G18: 13.46508788 | H18: 23.32221634 | I18: 16.99141842 | J18: 4.941279526 | K18: 1.154700538 | L18: 13.98713921 | M18: 1.405740452 | O18: 1.384535994 | P18: 1.363331536 | Q18: 1.342127078 | R18: 1.32092262 | S18: 1.299718162 | T18: 1.278513704 | U18: 1.257309246 | V18: 1.236104788 | W18: 1.21490033 | X18: 1.193695872 | Y18: 1.172491414 | Z18: 1.151286956 | AA18: 1.130082498 | AB18: 1.10887804 | AC18: 1.087673582 | AD18: 1.066469124 | AE18: 1.045264666 | AF18: 1.024060208 | AG18: 1.00285575 | AH18: 0.9816512922 | AI18: 0.9604468342
A19: 9 | B19: =+正規乱数!L17 -> 11.34624615 | C19: =+正規乱数!M17 -> 27.21641872 | D19: =+正規乱数!N17 -> 18.98072399 | E19: =+正規乱数!O17 -> 0.2016407702 | F19: 28.47108598 | G19: 14.23554299 | H19: 24.65668373 | I19: 16.99141842 | J19: 3.942188407 | K19: 1.154700538 | L19: 13.10151654 | M19: 1.197264127 | O19: 1.180760368 | P19: 1.164256609 | Q19: 1.14775285 | R19: 1.131249091 | S19: 1.114745333 | T19: 1.098241574 | U19: 1.081737815 | V19: 1.065234056 | W19: 1.048730298 | X19: 1.032226539 | Y19: 1.01572278 | Z19: 0.9992190213 | AA19: 0.9827152625 | AB19: 0.9662115037 | AC19: 0.949707745 | AD19: 0.9332039862 | AE19: 0.9167002274 | AF19: 0.9001964687 | AG19: 0.8836927099 | AH19: 0.8671889511 | AI19: 0.8506851923
A20: 10 | B20: =+正規乱数!L18 -> 9.093951575 | C20: =+正規乱数!M18 -> 30.33876104 | D20: =+正規乱数!N18 -> 16.75315886 | E20: =+正規乱数!O18 -> 0.1898863554 | F20: 25.12973829 | G20: 12.56486915 | H20: 21.76299175 | I20: 16.99141842 | J20: 2.792614307 | K20: 1.154700538 | L20: 10.50079078 | M20: 1.057981976 | O20: 1.037944015 | P20: 1.017906055 | Q20: 0.9978680944 | R20: 0.9778301339 | S20: 0.9577921734 | T20: 0.9377542129 | U20: 0.9177162524 | V20: 0.8976782919 | W20: 0.8776403314 | X20: 0.8576023709 | Y20: 0.8375644104 | Z20: 0.8175264499 | AA20: 0.7974884894 | AB20: 0.7774505289 | AC20: 0.7574125684 | AD20: 0.7373746079 | AE20: 0.7173366474 | AF20: 0.6972986869 | AG20: 0.6772607264 | AH20: 0.6572227659 | AI20: 0.6371848054
A21: 11 | B21: =+正規乱数!L19 -> 10.24828154 | C21: =+正規乱数!M19 -> 32.89007746 | D21: =+正規乱数!N19 -> 16.31731743 | E21: =+正規乱数!O19 -> 0.1745212794 | F21: 24.47597614 | G21: 12.23798807 | H21: 21.19681712 | I21: 16.99141842 | J21: 2.719561446 | K21: 1.154700538 | L21: 11.83369621 | M21: 1.189187109 | O21: 1.168294223 | P21: 1.147401337 | Q21: 1.126508451 | R21: 1.105615565 | S21: 1.084722679 | T21: 1.063829793 | U21: 1.042936907 | V21: 1.022044021 | W21: 1.001151136 | X21: 0.9802582496 | Y21: 0.9593653636 | Z21: 0.9384724777 | AA21: 0.9175795917 | AB21: 0.8966867058 | AC21: 0.8757938198 | AD21: 0.8549009339 | AE21: 0.8340080479 | AF21: 0.813115162 | AG21: 0.792222276 | AH21: 0.7713293901 | AI21: 0.7504365041
A22: 12 | B22: =+正規乱数!L20 -> 10.09253834 | C22: =+正規乱数!M20 -> 34.63257016 | D22: =+正規乱数!N20 -> 19.55868032 | E22: =+正規乱数!O20 -> 0.141204889 | F22: 29.33802048 | G22: 14.66901024 | H22: 25.40747103 | I22: 16.99141842 | J22: 5.812909508 | K22: 1.154700538 | L22: 11.65385945 | M22: 1.190725801 | O22: 1.175663115 | P22: 1.160600429 | Q22: 1.145537743 | R22: 1.130475058 | S22: 1.115412372 | T22: 1.100349686 | U22: 1.085287001 | V22: 1.070224315 | W22: 1.055161629 | X22: 1.040098944 | Y22: 1.025036258 | Z22: 1.009973572 | AA22: 0.9949108865 | AB22: 0.9798482008 | AC22: 0.9647855151 | AD22: 0.9497228294 | AE22: 0.9346601437 | AF22: 0.919597458 | AG22: 0.9045347723 | AH22: 0.8894720866 | AI22: 0.8744094009
A23: 13 | B23: =+正規乱数!L21 -> 7.559279435 | C23: =+正規乱数!M21 -> 29.9427698 | D23: =+正規乱数!N21 -> 18.79602384 | E23: =+正規乱数!O21 -> 0.1585096738 | F23: 28.19403576 | G23: 14.09701788 | H23: 24.4167512 | I23: 16.99141842 | J23: 4.277134464 | K23: 1.154700538 | L23: 8.728704033 | M23: 0.9225950204 | O23: 0.907921515 | P23: 0.8932480097 | Q23: 0.8785745043 | R23: 0.863900999 | S23: 0.8492274936 | T23: 0.8345539883 | U23: 0.819880483 | V23: 0.8052069776 | W23: 0.7905334723 | X23: 0.7758599669 | Y23: 0.7611864616 | Z23: 0.7465129562 | AA23: 0.7318394509 | AB23: 0.7171659455 | AC23: 0.7024924402 | AD23: 0.6878189348 | AE23: =+(($H23-$I23-AE$10*$G$6*$E23*$K23)*TAN($C23*PI()/180)+$L23)/$G23 -> 0.6731454295 | AF23: 0.6584719241 | AG23: 0.6437984188 | AH23: 0.6291249134 | AI23: 0.6144514081
A24: 14 | B24: =+正規乱数!L22 -> 7.260197844 | C24: =+正規乱数!M22 -> 36.96067957 | D24: =+正規乱数!N22 -> 17.74978731 | E24: =+正規乱数!O22 -> 0.1068763369 | F24: 26.62468096 | G24: 13.31234048 | H24: 23.05765008 | I24: 16.99141842 | J24: 4.564709748 | K24: 1.154700538 | L24: 8.383354359 | M24: 0.9726361888 | O24: 0.9589497742 | P24: 0.9452633596 | Q24: 0.931576945 | R24: 0.9178905304 | S24: 0.9042041158 | T24: 0.8905177012 | U24: 0.8768312866 | V24: 0.863144872 | W24: 0.8494584574 | X24: 0.8357720428 | Y24: 0.8220856282 | Z24: 0.8083992136 | AA24: 0.794712799 | AB24: 0.7810263844 | AC24: 0.7673399698 | AD24: 0.7536535552 | AE24: 0.7399671406 | AF24: 0.726280726 | AG24: 0.7125943114 | AH24: 0.6989078968 | AI24: 0.6852214822
A25: 15 | B25: =+正規乱数!L23 -> 12.0786011 | C25: =+正規乱数!M23 -> 27.33418431 | D25: =+正規乱数!N23 -> 17.44227782 | E25: =+正規乱数!O23 -> 0.153908001 | F25: 26.16341674 | G25: 13.08170837 | H25: 22.65818354 | I25: 16.99141842 | J25: 2.929118536 | K25: 1.154700538 | L25: 13.9471672 | M25: 1.290067418 | O25: 1.276290031 | P25: 1.262512645 | Q25: 1.248735258 | R25: 1.234957872 | S25: 1.221180485 | T25: 1.207403099 | U25: 1.193625712 | V25: 1.179848326 | W25: 1.16607094 | X25: 1.152293553 | Y25: 1.138516167 | Z25: 1.12473878 | AA25: 1.110961394 | AB25: 1.097184007 | AC25: 1.083406621 | AD25: 1.069629234 | AE25: 1.055851848 | AF25: 1.042074461 | AG25: 1.028297075 | AH25: 1.014519688 | AI25: 1.000742302
A26: 16 | B26: =+正規乱数!L24 -> 6.507776328 | C26: =+正規乱数!M24 -> 34.61728081 | D26: =+正規乱数!N24 -> 20.12196425 | E26: =+正規乱数!O24 -> 0.1676275814 | F26: 30.18294638 | G26: 15.09147319 | H26: 26.13919832 | I26: 16.99141842 | J26: 6.314703553 | K26: 1.154700538 | L26: 7.51453283 | M26: 0.9163609285 | O26: 0.8989901423 | P26: 0.8816193562 | Q26: 0.86424857 | R26: 0.8468777838 | S26: 0.8295069977 | T26: 0.8121362115 | U26: 0.7947654253 | V26: 0.7773946392 | W26: 0.760023853 | X26: 0.7426530668 | Y26: 0.7252822806 | Z26: 0.7079114945 | AA26: 0.6905407083 | AB26: 0.6731699221 | AC26: 0.655799136 | AD26: 0.6384283498 | AE26: 0.6210575636 | AF26: 0.6036867775 | AG26: 0.5863159913 | AH26: 0.5689452051 | AI26: 0.551574419
A27: 17 | B27: =+正規乱数!L25 -> 11.86932939 | C27: =+正規乱数!M25 -> 32.81299794 | D27: =+正規乱数!N25 -> 17.51191507 | E27: =+正規乱数!O25 -> 0.1104257124 | F27: 26.2678726 | G27: 13.1339363 | H27: 22.74864497 | I27: 16.99141842 | J27: 3.712128104 | K27: 1.154700538 | L27: 13.70552104 | M27: 1.326156054 | O27: 1.313874501 | P27: 1.301592947 | Q27: 1.289311393 | R27: 1.27702984 | S27: 1.264748286 | T27: 1.252466732 | U27: 1.240185179 | V27: 1.227903625 | W27: 1.215622071 | X27: 1.203340518 | Y27: 1.191058964 | Z27: 1.17877741 | AA27: 1.166495857 | AB27: 1.154214303 | AC27: 1.141932749 | AD27: 1.129651195 | AE27: 1.117369642 | AF27: 1.105088088 | AG27: 1.092806534 | AH27: 1.080524981 | AI27: 1.068243427
A28: 18 | B28: =+正規乱数!L26 -> 8.6994259 | C28: =+正規乱数!M26 -> 37.50281668 | D28: =+正規乱数!N26 -> 17.02707077 | E28: =+正規乱数!O26 -> 0.09099637901 | F28: 25.54060615 | G28: 12.77030308 | H28: 22.11881376 | I28: 16.99141842 | J28: 3.934789312 | K28: 1.154700538 | L28: 10.04523177 | M28: 1.094728997 | O28: 1.082340576 | P28: 1.069952155 | Q28: 1.057563734 | R28: 1.045175313 | S28: 1.032786892 | T28: 1.020398471 | U28: 1.00801005 | V28: 0.995621629 | W28: 0.983233208 | X28: 0.9708447869 | Y28: 0.9584563659 | Z28: 0.9460679449 | AA28: 0.9336795238 | AB28: 0.9212911028 | AC28: 0.9089026818 | AD28: 0.8965142607 | AE28: 0.8841258397 | AF28: 0.8717374187 | AG28: 0.8593489976 | AH28: 0.8469605766 | AI28: 0.8345721556
A29: 19 | B29: =+正規乱数!L27 -> 9.319922671 | C29: =+正規乱数!M27 -> 37.97219947 | D29: =+正規乱数!N27 -> 19.33996566 | E29: =+正規乱数!O27 -> 0.131349355 | F29: 29.00994849 | G29: 14.50497424 | H29: 25.12335235 | I29: 16.99141842 | J29: 6.347011316 | K29: 1.154700538 | L29: 10.76171973 | M29: 1.179507854 | O29: 1.163495515 | P29: 1.147483175 | Q29: 1.131470836 | R29: 1.115458497 | S29: 1.099446157 | T29: 1.083433818 | U29: 1.067421479 | V29: 1.051409139 | W29: 1.0353968 | X29: 1.019384461 | Y29: 1.003372121 | Z29: 0.987359782 | AA29: 0.9713474427 | AB29: 0.9553351033 | AC29: 0.939322764 | AD29: 0.9233104247 | AE29: 0.9072980853 | AF29: 0.891285746 | AG29: 0.8752734067 | AH29: 0.8592610673 | AI29: 0.843248728
A30: 20 | B30: =+正規乱数!L28 -> 12.73492465 | C30: =+正規乱数!M28 -> 36.21033988 | D30: =+正規乱数!N28 -> 17.76642912 | E30: =+正規乱数!O28 -> 0.1265377149 | F30: 26.64964367 | G30: 13.32482184 | H30: 23.07926842 | I30: 16.99141842 | J30: 4.457320018 | K30: 1.154700538 | L30: 14.70502434 | M30: 1.438093852 | O30: 1.422341812 | P30: 1.406589771 | Q30: 1.39083773 | R30: 1.37508569 | S30: 1.359333649 | T30: 1.343581609 | U30: 1.327829568 | V30: 1.312077528 | W30: 1.296325487 | X30: 1.280573447 | Y30: 1.264821406 | Z30: 1.249069366 | AA30: 1.233317325 | AB30: 1.217565285 | AC30: 1.201813244 | AD30: 1.186061204 | AE30: 1.170309163 | AF30: 1.154557123 | AG30: 1.138805082 | AH30: 1.123053042 | AI30: 1.107301001
A31: 21 | B31: =+正規乱数!L29 -> 8.284879857 | C31: =+正規乱数!M29 -> 33.73225904 | D31: =+正規乱数!N29 -> 20.8755647 | E31: =+正規乱数!O29 -> 0.1736832617 | F31: 31.31334705 | G31: 15.65667353 | H31: 27.11815403 | I31: 16.99141842 | J31: 6.761933779 | K31: 1.154700538 | L31: 9.566555231 | M31: 1.042909209 | O31: 1.026127806 | P31: 1.009346402 | Q31: 0.9925649984 | R31: 0.9757835947 | S31: 0.9590021911 | T31: 0.9422207874 | U31: 0.9254393837 | V31: 0.9086579801 | W31: 0.8918765764 | X31: 0.8750951728 | Y31: 0.8583137691 | Z31: 0.8415323654 | AA31: 0.8247509618 | AB31: 0.8079695581 | AC31: 0.7911881545 | AD31: 0.7744067508 | AE31: 0.7576253471 | AF31: 0.7408439435 | AG31: 0.7240625398 | AH31: 0.7072811361 | AI31: 0.6904997325
A32: 22 | B32: =+正規乱数!L30 -> 8.345183281 | C32: =+正規乱数!M30 -> 37.43665416 | D32: =+正規乱数!N30 -> 16.9283671 | E32: =+正規乱数!O30 -> 0.164465078 | F32: 25.39255065 | G32: 12.69627532 | H32: 21.99059393 | I32: 16.99141842 | J32: 3.827228388 | K32: 1.154700538 | L32: 9.636187627 | M32: 1.0604225 | O32: 1.037955156 | P32: 1.015487812 | Q32: 0.9930204683 | R32: 0.9705531245 | S32: 0.9480857807 | T32: 0.925618437 | U32: 0.9031510932 | V32: 0.8806837494 | W32: 0.8582164056 | X32: 0.8357490618 | Y32: 0.8132817181 | Z32: 0.7908143743 | AA32: 0.7683470305 | AB32: 0.7458796867 | AC32: 0.7234123429 | AD32: 0.7009449991 | AE32: 0.6784776554 | AF32: 0.6560103116 | AG32: 0.6335429678 | AH32: 0.611075624 | AI32: 0.5886082802
A33: 23 | B33: =+正規乱数!L31 -> 13.59597983 | C33: =+正規乱数!M31 -> 31.89005909 | D33: =+正規乱数!N31 -> 16.40416026 | E33: =+正規乱数!O31 -> 0.1503536859 | F33: 24.60624038 | G33: 12.30312019 | H33: 21.30962926 | I33: 16.99141842 | J33: 2.686810144 | K33: 1.154700538 | L33: 15.69928523 | M33: 1.494425405 | O33: 1.477198775 | P33: 1.459972145 | Q33: 1.442745516 | R33: 1.425518886 | S33: 1.408292256 | T33: 1.391065626 | U33: 1.373838997 | V33: 1.356612367 | W33: 1.339385737 | X33: 1.322159107 | Y33: 1.304932478 | Z33: 1.287705848 | AA33: 1.270479218 | AB33: 1.253252588 | AC33: 1.236025958 | AD33: 1.218799329 | AE33: 1.201572699 | AF33: 1.184346069 | AG33: 1.167119439 | AH33: 1.14989281 | AI33: 1.13266618
A34: 24 | B34: =+正規乱数!L32 -> 11.58586732 | C34: =+正規乱数!M32 -> 38.01709534 | D34: =+正規乱数!N32 -> 19.35341669 | E34: =+正規乱数!O32 -> 0.1562319827 | F34: 29.03012504 | G34: 14.51506252 | H34: 25.14082576 | I34: 16.99141842 | J34: 6.3709315 | K34: 1.154700538 | L34: 13.37820723 | M34: 1.360596188 | O34: 1.341532965 | P34: 1.322469743 | Q34: 1.30340652 | R34: 1.284343298 | S34: 1.265280076 | T34: 1.246216853 | U34: 1.227153631 | V34: 1.208090409 | W34: 1.189027186 | X34: 1.169963964 | Y34: 1.150900741 | Z34: 1.131837519 | AA34: 1.112774297 | AB34: 1.093711074 | AC34: 1.074647852 | AD34: 1.055584629 | AE34: 1.036521407 | AF34: 1.017458185 | AG34: 0.9983949623 | AH34: 0.9793317399 | AI34: 0.9602685175
A35: 25 | B35: =+正規乱数!L33 -> 12.22736689 | C35: =+正規乱数!M33 -> 37.47154274 | D35: =+正規乱数!N33 -> 18.63528495 | E35: =+正規乱数!O33 -> 0.1702516716 | F35: 27.95292743 | G35: 13.97646372 | H35: 24.20794527 | I35: 16.99141842 | J35: 5.531743348 | K35: 1.154700538 | L35: 14.11894713 | M35: 1.405984438 | O35: 1.384830255 | P35: 1.363676073 | Q35: 1.34252189 | R35: 1.321367708 | S35: 1.300213526 | T35: 1.279059343 | U35: 1.257905161 | V35: 1.236750978 | W35: 1.215596796 | X35: 1.194442613 | Y35: 1.173288431 | Z35: 1.152134248 | AA35: 1.130980066 | AB35: 1.109825884 | AC35: 1.088671701 | AD35: 1.067517519 | AE35: 1.046363336 | AF35: 1.025209154 | AG35: 1.004054971 | AH35: 0.982900789 | AI35: 0.9617466065
A36: 26 | B36: =+正規乱数!L34 -> 9.097881944 | C36: =+正規乱数!M34 -> 26.92664946 | D36: =+正規乱数!N34 -> 18.17632308 | E36: =+正規乱数!O34 -> 0.09862176482 | F36: 27.26448461 | G36: 13.63224231 | H36: 23.6117363 | I36: 16.99141842 | J36: 3.362551659 | K36: 1.154700538 | L36: 10.50532918 | M36: 1.017285383 | O36: 1.008960772 | P36: 1.00063616 | Q36: 0.9923115491 | R36: 0.9839869377 | S36: 0.9756623264 | T36: 0.967337715 | U36: 0.9590131037 | V36: 0.9506884923 | W36: 0.942363881 | X36: 0.9340392696 | Y36: 0.9257146582 | Z36: 0.9173900469 | AA36: 0.9090654355 | AB36: 0.9007408242 | AC36: 0.8924162128 | AD36: 0.8840916015 | AE36: 0.8757669901 | AF36: 0.8674423788 | AG36: 0.8591177674 | AH36: 0.850793156 | AI36: 0.8424685447
A37: 27 | B37: =+正規乱数!L35 -> 12.78884948 | C37: =+正規乱数!M35 -> 36.47387344 | D37: =+正規乱数!N35 -> 17.76642611 | E37: =+正規乱数!O35 -> 0.1692602417 | F37: =+$G$3*$G$4*D37 -> 26.64963917 | G37: 13.32481959 | H37: =+F37*COS($G$2*PI()/180) -> 23.07926452 | I37: 16.99141842 | J37: =+(H37-I37)*TAN(C37*PI()/180) -> 4.500474579 | K37: 1.154700538 | L37: =+K37*B37 -> 14.76729138 | M37: =+(J37+L37)/G37 -> 1.446005766 | O37: 1.4247314 | P37: 1.403457033 | Q37: 1.382182667 | R37: 1.3609083 | S37: 1.339633934 | T37: 1.318359567 | U37: 1.2970852 | V37: 1.275810834 | W37: 1.254536467 | X37: 1.233262101 | Y37: 1.211987734 | Z37: 1.190713367 | AA37: 1.169439001 | AB37: 1.148164634 | AC37: 1.126890268 | AD37: 1.105615901 | AE37: 1.084341535 | AF37: 1.063067168 | AG37: 1.041792801 | AH37: 1.020518435 | AI37: 0.9992440682
A38: 28 | B38: =+正規乱数!L36 -> 9.375931363 | C38: =+正規乱数!M36 -> 35.99193461 | D38: =+正規乱数!N36 -> 17.58225224 | E38: =+正規乱数!O36 -> 0.1992839474 | F38: 26.37337836 | G38: 13.18668918 | H38: 22.84001564 | I38: 16.99141842 | J38: 4.247996856 | K38: 1.154700538 | L38: 10.82639299 | M38: 1.14315198 | O38: =+(($H38-$I38-O$10*$G$6*$E38*$K38)*TAN($C38*PI()/180)+$L38)/$G38 -> 1.118284179 | P38: 1.093416377 | Q38: 1.068548576 | R38: 1.043680774 | S38: 1.018812973 | T38: 0.9939451714 | U38: 0.9690773699 | V38: 0.9442095684 | W38: 0.9193417669 | X38: 0.8944739654 | Y38: 0.8696061639 | Z38: 0.8447383624 | AA38: 0.8198705609 | AB38: 0.7950027594 | AC38: 0.7701349579 | AD38: 0.7452671564 | AE38: 0.7203993549 | AF38: 0.6955315534 | AG38: 0.6706637519 | AH38: 0.6457959504 | AI38: 0.6209281489
A39: 29 | B39: =+正規乱数!L37 -> 13.05238612 | C39: =+正規乱数!M37 -> 34.42707576 | D39: =+正規乱数!N37 -> 18.57154248 | E39: =+正規乱数!O37 -> 0.1917736514 | F39: 27.85731372 | G39: 13.92865686 | H39: 24.12514136 | I39: 16.99141842 | J39: 4.889515256 | K39: 1.154700538 | L39: 15.07159728 | M39: 1.433096726 | O39: 1.411717221 | P39: 1.390337717 | Q39: 1.368958212 | R39: 1.347578708 | S39: 1.326199203 | T39: 1.304819699 | U39: 1.283440194 | V39: 1.262060689 | W39: 1.240681185 | X39: 1.21930168 | Y39: 1.197922176 | Z39: 1.176542671 | AA39: 1.155163167 | AB39: 1.133783662 | AC39: 1.112404157 | AD39: 1.091024653 | AE39: =+(($H39-$I39-AE$10*$G$6*$E39*$K39)*TAN($C39*PI()/180)+$L39)/$G39 -> 1.069645148 | AF39: 1.048265644 | AG39: 1.026886139 | AH39: 1.005506635 | AI39: 0.9841271301
A40: 30 | B40: =+正規乱数!L38 -> 11.55270613 | C40: =+正規乱数!M38 -> 28.93535763 | D40: =+正規乱数!N38 -> 17.22936657 | E40: =+正規乱数!O38 -> 0.1331487995 | F40: 25.84404986 | G40: 12.92202493 | H40: 22.38160371 | I40: 16.99141842 | J40: 2.979883594 | K40: 1.154700538 | L40: 13.33991599 | M40: 1.262944443 | O40: 1.250039068 | P40: 1.237133692 | Q40: 1.224228316 | R40: 1.21132294 | S40: 1.198417564 | T40: 1.185512188 | U40: 1.172606813 | V40: 1.159701437 | W40: 1.146796061 | X40: 1.133890685 | Y40: 1.120985309 | Z40: 1.108079933 | AA40: 1.095174558 | AB40: 1.082269182 | AC40: 1.069363806 | AD40: 1.05645843 | AE40: 1.043553054 | AF40: 1.030647678 | AG40: 1.017742303 | AH40: 1.004836927 | AI40: 0.991931551
A41: 31 | B41: =+正規乱数!L39 -> 9.91684095 | C41: =+正規乱数!M39 -> 33.05611901 | D41: =+正規乱数!N39 -> 15.62660653 | E41: =+正規乱数!O39 -> 0.1551754645 | F41: 23.4399098 | G41: 11.7199549 | H41: 20.29955735 | I41: 16.99141842 | J41: 2.152940154 | K41: 1.154700538 | L41: 11.45098158 | M41: 1.160748642 | O41: 1.141227119 | P41: 1.121705596 | Q41: 1.102184073 | R41: 1.082662549 | S41: 1.063141026 | T41: 1.043619503 | U41: 1.024097979 | V41: 1.004576456 | W41: 0.9850549328 | X41: 0.9655334095 | Y41: 0.9460118862 | Z41: 0.9264903629 | AA41: 0.9069688397 | AB41: 0.8874473164 | AC41: 0.8679257931 | AD41: 0.8484042698 | AE41: 0.8288827465 | AF41: 0.8093612232 | AG41: 0.7898396999 | AH41: 0.7703181767 | AI41: 0.7507966534
A42: 32 | B42: =+正規乱数!L40 -> 10.00217072 | C42: =+正規乱数!M40 -> 33.44027203 | D42: =+正規乱数!N40 -> 17.05809658 | E42: =+正規乱数!O40 -> 0.1704473454 | F42: 25.58714487 | G42: 12.79357244 | H42: 22.15911747 | I42: 16.99141842 | J42: 3.412683624 | K42: 1.154700538 | L42: 11.54951191 | M42: 1.169508799 | O42: 1.149576124 | P42: 1.129643448 | Q42: 1.109710773 | R42: 1.089778097 | S42: 1.069845422 | T42: 1.049912746 | U42: 1.029980071 | V42: 1.010047395 | W42: 0.99011472 | X42: 0.9701820446 | Y42: 0.9502493691 | Z42: 0.9303166937 | AA42: 0.9103840182 | AB42: 0.8904513428 | AC42: 0.8705186673 | AD42: 0.8505859919 | AE42: 0.8306533164 | AF42: 0.810720641 | AG42: 0.7907879655 | AH42: 0.7708552901 | AI42: 0.7509226146
A43: 33 | B43: =+正規乱数!L41 -> 9.600185182 | C43: =+正規乱数!M41 -> 31.95360963 | D43: =+正規乱数!N41 -> 19.3438435 | E43: =+正規乱数!O41 -> 0.1234688436 | F43: 29.01576525 | G43: 14.50788262 | H43: 25.12838981 | I43: 16.99141842 | J43: 5.075388004 | K43: 1.154700538 | L43: 11.085339 | M43: 1.113927333 | O43: 1.10190114 | P43: 1.089874947 | Q43: 1.077848754 | R43: 1.06582256 | S43: 1.053796367 | T43: 1.041770174 | U43: 1.029743981 | V43: 1.017717787 | W43: 1.005691594 | X43: 0.9936654008 | Y43: 0.9816392075 | Z43: 0.9696130143 | AA43: 0.957586821 | AB43: 0.9455606278 | AC43: 0.9335344345 | AD43: 0.9215082413 | AE43: 0.909482048 | AF43: 0.8974558548 | AG43: 0.8854296615 | AH43: 0.8734034683 | AI43: 0.861377275
A44: 34 | B44: =+正規乱数!L42 -> 12.41646242 | C44: =+正規乱数!M42 -> 35.76796415 | D44: =+正規乱数!N42 -> 20.29760077 | E44: =+正規乱数!O42 -> 0.1499746073 | F44: 30.44640116 | G44: 15.22320058 | H44: 26.36735686 | I44: 16.99141842 | J44: 6.754174011 | K44: 1.154700538 | L44: 14.33729584 | M44: 1.385481965 | O44: 1.369403757 | P44: 1.35332555 | Q44: 1.337247342 | R44: 1.321169134 | S44: 1.305090927 | T44: 1.289012719 | U44: 1.272934511 | V44: 1.256856304 | W44: 1.240778096 | X44: 1.224699888 | Y44: 1.208621681 | Z44: 1.192543473 | AA44: 1.176465265 | AB44: 1.160387058 | AC44: 1.14430885 | AD44: 1.128230642 | AE44: 1.112152435 | AF44: 1.096074227 | AG44: 1.079996019 | AH44: 1.063917812 | AI44: 1.047839604
A45: 35 | B45: =+正規乱数!L43 -> 14.00164684 | C45: =+正規乱数!M43 -> 37.08693565 | D45: =+正規乱数!N43 -> 18.3312407 | E45: =+正規乱数!O43 -> 0.1261878111 | F45: 27.49686105 | G45: 13.74843053 | H45: 23.81298019 | I45: 16.99141842 | J45: 5.156661972 | K45: 1.154700538 | L45: 16.16770914 | M45: 1.551040395 | O45: 1.535321663 | P45: 1.519602931 | Q45: 1.5038842 | R45: 1.488165468 | S45: 1.472446736 | T45: 1.456728004 | U45: 1.441009273 | V45: 1.425290541 | W45: 1.409571809 | X45: 1.393853077 | Y45: 1.378134346 | Z45: 1.362415614 | AA45: 1.346696882 | AB45: 1.330978151 | AC45: 1.315259419 | AD45: 1.299540687 | AE45: 1.283821955 | AF45: 1.268103224 | AG45: 1.252384492 | AH45: 1.23666576 | AI45: 1.220947028
A46: 36 | B46: =+正規乱数!L44 -> 9.401570089 | C46: =+正規乱数!M44 -> 41.15738078 | D46: =+正規乱数!N44 -> 18.48812101 | E46: =+正規乱数!O44 -> 0.1850187928 | F46: 27.73218152 | G46: 13.86609076 | H46: 24.0167737 | I46: 16.99141842 | J46: 6.141008897 | K46: 1.154700538 | L46: 10.85599804 | M46: 1.225796602 | O46: 1.199372417 | P46: 1.172948231 | Q46: 1.146524045 | R46: 1.12009986 | S46: 1.093675674 | T46: 1.067251489 | U46: 1.040827303 | V46: 1.014403118 | W46: 0.9879789321 | X46: 0.9615547465 | Y46: 0.935130561 | Z46: 0.9087063754 | AA46: 0.8822821899 | AB46: 0.8558580043 | AC46: 0.8294338188 | AD46: 0.8030096332 | AE46: 0.7765854476 | AF46: 0.7501612621 | AG46: 0.7237370765 | AH46: 0.697312891 | AI46: 0.6708887054
A47: 37 | B47: =+正規乱数!L45 -> 10.05733532 | C47: =+正規乱数!M45 -> 36.07057787 | D47: =+正規乱数!N45 -> 18.30243883 | E47: =+正規乱数!O45 -> 0.1763500849 | F47: 27.45365824 | G47: 13.72682912 | H47: 23.77556546 | I47: 16.99141842 | J47: 4.941750875 | K47: 1.154700538 | L47: 11.6132105 | M47: 1.206029538 | O47: 1.184828388 | P47: 1.163627238 | Q47: 1.142426089 | R47: 1.121224939 | S47: 1.100023789 | T47: 1.078822639 | U47: 1.05762149 | V47: 1.03642034 | W47: 1.01521919 | X47: 0.9940180407 | Y47: 0.972816891 | Z47: 0.9516157413 | AA47: 0.9304145916 | AB47: 0.9092134419 | AC47: 0.8880122922 | AD47: 0.8668111425 | AE47: 0.8456099928 | AF47: 0.8244088431 | AG47: 0.8032076934 | AH47: 0.7820065437 | AI47: 0.760805394
A48: 38 | B48: =+正規乱数!L46 -> 11.92409635 | C48: =+正規乱数!M46 -> 41.1383678 | D48: =+正規乱数!N46 -> 18.48140316 | E48: =+正規乱数!O46 -> 0.1616773581 | F48: 27.72210474 | G48: 13.86105237 | H48: 24.00804695 | I48: 16.99141842 | J48: 6.129274367 | K48: 1.154700538 | L48: 13.76876048 | M48: 1.435535652 | O48: 1.412452136 | P48: 1.389368621 | Q48: 1.366285106 | R48: 1.34320159 | S48: 1.320118075 | T48: 1.297034559 | U48: 1.273951044 | V48: 1.250867529 | W48: 1.227784013 | X48: 1.204700498 | Y48: 1.181616982 | Z48: 1.158533467 | AA48: 1.135449952 | AB48: 1.112366436 | AC48: 1.089282921 | AD48: 1.066199405 | AE48: 1.04311589 | AF48: 1.020032375 | AG48: 0.9969488592 | AH48: 0.9738653438 | AI48: 0.9507818284
A49: 39 | B49: =+正規乱数!L47 -> 11.02679843 | C49: =+正規乱数!M47 -> 40.45487245 | D49: =+正規乱数!N47 -> 19.14334061 | E49: =+正規乱数!O47 -> 0.2005070602 | F49: 28.71501091 | G49: 14.35750545 | H49: 24.86792892 | I49: 16.99141842 | J49: 6.716453627 | K49: 1.154700538 | L49: 12.73265008 | M49: 1.354629728 | O49: 1.327650767 | P49: 1.300671807 | Q49: 1.273692846 | R49: 1.246713885 | S49: 1.219734924 | T49: 1.192755964 | U49: 1.165777003 | V49: 1.138798042 | W49: 1.111819082 | X49: 1.084840121 | Y49: 1.05786116 | Z49: 1.030882199 | AA49: 1.003903239 | AB49: 0.9769242781 | AC49: 0.9499453174 | AD49: 0.9229663567 | AE49: 0.895987396 | AF49: 0.8690084353 | AG49: 0.8420294746 | AH49: 0.8150505139 | AI49: 0.7880715532
A50: 40 | B50: =+正規乱数!L48 -> 12.83021152 | C50: =+正規乱数!M48 -> 38.81419386 | D50: =+正規乱数!N48 -> 17.85526744 | E50: =+正規乱数!O48 -> 0.1402638719 | F50: 26.78290116 | G50: 13.39145058 | H50: 23.1946728 | I50: 16.99141842 | J50: 4.990075218 | K50: 1.154700538 | L50: 14.81505215 | M50: 1.478938167 | O50: 1.459849567 | P50: 1.440760967 | Q50: 1.421672367 | R50: 1.402583767 | S50: 1.383495167 | T50: 1.364406568 | U50: 1.345317968 | V50: 1.326229368 | W50: 1.307140768 | X50: 1.288052168 | Y50: 1.268963569 | Z50: 1.249874969 | AA50: 1.230786369 | AB50: 1.211697769 | AC50: 1.192609169 | AD50: 1.17352057 | AE50: 1.15443197 | AF50: 1.13534337 | AG50: 1.11625477 | AH50: 1.09716617 | AI50: 1.07807757
A51: 41 | B51: =+正規乱数!L49 -> 6.940444812 | C51: =+正規乱数!M49 -> 36.0358379 | D51: =+正規乱数!N49 -> 15.9144627 | E51: =+正規乱数!O49 -> 0.1151646456 | F51: 23.87169404 | G51: 11.93584702 | H51: 20.67349347 | I51: 16.99141842 | J51: 2.678704538 | K51: 1.154700538 | L51: 8.014135361 | M51: 0.8958593286 | O51: 0.8799567892 | P51: 0.8640542499 | Q51: 0.8481517105 | R51: 0.8322491711 | S51: 0.8163466317 | T51: 0.8004440923 | U51: 0.784541553 | V51: 0.7686390136 | W51: 0.7527364742 | X51: 0.7368339348 | Y51: 0.7209313954 | Z51: 0.7050288561 | AA51: 0.6891263167 | AB51: 0.6732237773 | AC51: 0.6573212379 | AD51: 0.6414186985 | AE51: 0.6255161591 | AF51: 0.6096136198 | AG51: 0.5937110804 | AH51: 0.577808541 | AI51: 0.5619060016
A52: 42 | B52: =+正規乱数!L50 -> 9.515900013 | C52: =+正規乱数!M50 -> 29.82872584 | D52: =+正規乱数!N50 -> 18.38717026 | E52: =+正規乱数!O50 -> 0.1520139488 | F52: 27.58075539 | G52: 13.7903777 | H52: 23.88563483 | I52: 16.99141842 | J52: 3.952946468 | K52: 1.154700538 | L52: 10.98801487 | M52: 1.083433802 | O52: 1.069114835 | P52: 1.054795869 | Q52: 1.040476902 | R52: 1.026157936 | S52: 1.011838969 | T52: 0.9975200029 | U52: 0.9832010364 | V52: 0.9688820699 | W52: 0.9545631034 | X52: 0.9402441369 | Y52: 0.9259251705 | Z52: 0.911606204 | AA52: 0.8972872375 | AB52: 0.882968271 | AC52: 0.8686493045 | AD52: 0.8543303381 | AE52: 0.8400113716 | AF52: 0.8256924051 | AG52: 0.8113734386 | AH52: 0.7970544721 | AI52: 0.7827355057
A53: 43 | B53: =+正規乱数!L51 -> 11.08054906 | C53: =+正規乱数!M51 -> 32.98446143 | D53: =+正規乱数!N51 -> 18.42169449 | E53: =+正規乱数!O51 -> 0.1746492222 | F53: 27.63254173 | G53: 13.81627087 | H53: 23.93048311 | I53: 16.99141842 | J53: 4.50360626 | K53: 1.154700538 | L53: 12.79471596 | M53: 1.252025412 | O53: 1.233438653 | P53: 1.214851894 | Q53: 1.196265135 | R53: 1.177678376 | S53: 1.159091617 | T53: 1.140504858 | U53: 1.121918099 | V53: 1.10333134 | W53: 1.084744581 | X53: 1.066157823 | Y53: 1.047571064 | Z53: 1.028984305 | AA53: 1.010397546 | AB53: 0.9918107868 | AC53: 0.9732240279 | AD53: =+(($H53-$I53-AD$10*$G$6*$E53*$K53)*TAN($C53*PI()/180)+$L53)/$G53 -> 0.954637269 | AE53: 0.93605051 | AF53: 0.9174637511 | AG53: 0.8988769922 | AH53: 0.8802902332 | AI53: 0.8617034743
A54: 44 | B54: =+正規乱数!L52 -> 10.36393272 | C54: =+正規乱数!M52 -> 33.41755138 | D54: =+正規乱数!N52 -> 17.68358868 | E54: =+正規乱数!O52 -> 0.1095691472 | F54: 26.52538302 | G54: 13.26269151 | H54: 22.97165554 | I54: 16.99141842 | J54: 3.945868775 | K54: 1.154700538 | L54: 11.96723869 | M54: 1.199839976 | O54: 1.187490481 | P54: 1.175140985 | Q54: 1.16279149 | R54: 1.150441994 | S54: 1.138092498 | T54: 1.125743003 | U54: 1.113393507 | V54: 1.101044012 | W54: 1.088694516 | X54: 1.076345021 | Y54: 1.063995525 | Z54: 1.051646029 | AA54: 1.039296534 | AB54: 1.026947038 | AC54: 1.014597543 | AD54: 1.002248047 | AE54: 0.9898985515 | AF54: 0.977549056 | AG54: 0.9651995604 | AH54: 0.9528500648 | AI54: 0.9405005692
A55: 45 | B55: =+正規乱数!L53 -> 9.206192681 | C55: =+正規乱数!M53 -> 32.97897216 | D55: =+正規乱数!N53 -> 18.15069587 | E55: =+正規乱数!O53 -> 0.1509208429 | F55: 27.2260438 | G55: 13.6130219 | H55: 23.57844558 | I55: 16.99141842 | J55: 4.274229277 | K55: 1.154700538 | L55: 10.63039565 | M55: 1.094879964 | O55: 1.078582072 | P55: 1.062284181 | Q55: 1.04598629 | R55: 1.029688399 | S55: 1.013390508 | T55: 0.997092617 | U55: 0.9807947259 | V55: 0.9644968349 | W55: 0.9481989438 | X55: 0.9319010527 | Y55: 0.9156031616 | Z55: 0.8993052705 | AA55: 0.8830073794 | AB55: 0.8667094883 | AC55: 0.8504115972 | AD55: 0.8341137062 | AE55: 0.8178158151 | AF55: 0.801517924 | AG55: 0.7852200329 | AH55: 0.7689221418 | AI55: 0.7526242507
A56: 46 | B56: =+正規乱数!L54 -> 8.534020924 | C56: =+正規乱数!M54 -> 30.15872184 | D56: =+正規乱数!N54 -> 18.36210094 | E56: =+正規乱数!O54 -> 0.1544031503 | F56: 27.54315141 | G56: 13.7715757 | H56: 23.85306882 | I56: 16.99141842 | J56: 3.986960733 | K56: 1.154700538 | L56: 9.854238556 | M56: 1.0050556 | O56: 0.9902966911 | P56: 0.9755377817 | Q56: 0.9607788723 | R56: 0.9460199629 | S56: 0.9312610536 | T56: 0.9165021442 | U56: 0.9017432348 | V56: 0.8869843255 | W56: 0.8722254161 | X56: 0.8574665067 | Y56: 0.8427075973 | Z56: 0.827948688 | AA56: 0.8131897786 | AB56: 0.7984308692 | AC56: 0.7836719598 | AD56: 0.7689130505 | AE56: 0.7541541411 | AF56: 0.7393952317 | AG56: 0.7246363224 | AH56: 0.709877413 | AI56: 0.6951185036
A57: 47 | B57: =+正規乱数!L55 -> 14.63942725 | C57: =+正規乱数!M55 -> 34.61423136 | D57: =+正規乱数!N55 -> 19.55755682 | E57: =+正規乱数!O55 -> 0.1928719937 | F57: 29.33633522 | G57: 14.66816761 | H57: 25.40601156 | I57: 16.99141842 | J57: 5.807924212 | K57: 1.154700538 | L57: 16.90415452 | M57: 1.548392365 | O57: 1.527831116 | P57: 1.507269866 | Q57: 1.486708617 | R57: 1.466147368 | S57: 1.445586119 | T57: 1.42502487 | U57: 1.404463621 | V57: 1.383902371 | W57: 1.363341122 | X57: 1.342779873 | Y57: 1.322218624 | Z57: 1.301657375 | AA57: 1.281096126 | AB57: 1.260534876 | AC57: 1.239973627 | AD57: 1.219412378 | AE57: 1.198851129 | AF57: 1.17828988 | AG57: 1.157728631 | AH57: 1.137167381 | AI57: 1.116606132
A58: 48 | B58: =+正規乱数!L56 -> 9.88793279 | C58: =+正規乱数!M56 -> 32.00957682 | D58: =+正規乱数!N56 -> 17.98499535 | E58: =+正規乱数!O56 -> 0.1688964504 | F58: 26.97749302 | G58: 13.48874651 | H58: 23.36319429 | I58: 16.99141842 | J58: 3.983008485 | K58: 1.154700538 | L58: 11.41760132 | M58: 1.141737654 | O58: 1.124005233 | P58: 1.106272812 | Q58: 1.08854039 | R58: 1.070807969 | S58: 1.053075548 | T58: 1.035343126 | U58: 1.017610705 | V58: 0.9998782837 | W58: 0.9821458624 | X58: 0.9644134411 | Y58: 0.9466810198 | Z58: 0.9289485985 | AA58: 0.9112161772 | AB58: 0.8934837559 | AC58: 0.8757513346 | AD58: 0.8580189133 | AE58: 0.840286492 | AF58: 0.8225540706 | AG58: 0.8048216493 | AH58: 0.787089228 | AI58: 0.7693568067
A59: 49 | B59: =+正規乱数!L57 -> 12.05472574 | C59: =+正規乱数!M57 -> 37.32759931 | D59: =+正規乱数!N57 -> 18.37778838 | E59: =+正規乱数!O57 -> 0.1446517423 | F59: 27.56668256 | G59: 13.78334128 | H59: 23.8734474 | I59: 16.99141842 | J59: 5.247941976 | K59: 1.154700538 | L59: 13.9195983 | M59: 1.390630899 | O59: 1.372500387 | P59: 1.354369876 | Q59: 1.336239364 | R59: 1.318108853 | S59: 1.299978341 | T59: 1.28184783 | U59: 1.263717318 | V59: 1.245586806 | W59: 1.227456295 | X59: 1.209325783 | Y59: 1.191195272 | Z59: 1.17306476 | AA59: 1.154934249 | AB59: 1.136803737 | AC59: 1.118673225 | AD59: 1.100542714 | AE59: 1.082412202 | AF59: 1.064281691 | AG59: 1.046151179 | AH59: 1.028020667 | AI59: 1.009890156
A60: 50 | B60: =+正規乱数!L58 -> 5.908822667 | C60: =+正規乱数!M58 -> 32.86355006 | D60: =+正規乱数!N58 -> 18.39830017 | E60: =+正規乱数!O58 -> 0.09206177454 | F60: 27.59745025 | G60: 13.79872512 | H60: 23.90009299 | I60: 16.99141842 | J60: 4.463190056 | K60: 1.154700538 | L60: 6.822920715 | M60: 0.8179096742 | O60: 0.8081449632 | P60: 0.7983802522 | Q60: 0.7886155412 | R60: 0.7788508302 | S60: 0.7690861192 | T60: 0.7593214082 | U60: 0.7495566972 | V60: 0.7397919862 | W60: 0.7300272752 | X60: 0.7202625642 | Y60: 0.7104978532 | Z60: 0.7007331422 | AA60: 0.6909684312 | AB60: 0.6812037202 | AC60: 0.6714390091 | AD60: 0.6616742981 | AE60: 0.6519095871 | AF60: 0.6421448761 | AG60: 0.6323801651 | AH60: 0.6226154541 | AI60: 0.6128507431
A61: 51 | B61: =+正規乱数!L59 -> 8.942066825 | C61: =+正規乱数!M59 -> 33.10704714 | D61: =+正規乱数!N59 -> 16.4841299 | E61: =+正規乱数!O59 -> 0.1866458257 | F61: 24.72619484 | G61: 12.36309742 | H61: 21.41351287 | I61: 16.99141842 | J61: 2.883502205 | K61: 1.154700538 | L61: 10.32540938 | M61: 1.068414422 | O61: 1.04611202 | P61: 1.023809618 | Q61: 1.001507216 | R61: 0.9792048147 | S61: 0.9569024129 | T61: 0.9346000112 | U61: 0.9122976094 | V61: 0.8899952077 | W61: 0.867692806 | X61: 0.8453904042 | Y61: 0.8230880025 | Z61: 0.8007856007 | AA61: 0.778483199 | AB61: 0.7561807973 | AC61: 0.7338783955 | AD61: 0.7115759938 | AE61: 0.689273592 | AF61: 0.6669711903 | AG61: 0.6446687886 | AH61: 0.6223663868 | AI61: 0.6000639851
A62: 52 | B62: =+正規乱数!L60 -> 7.985281549 | C62: =+正規乱数!M60 -> 34.46054571 | D62: =+正規乱数!N60 -> 18.2003104 | E62: =+正規乱数!O60 -> 0.2273981818 | F62: 27.30046559 | G62: 13.6502328 | H62: 23.64289674 | I62: 16.99141842 | J62: 4.564693819 | K62: 1.154700538 | L62: 9.220608904 | M62: 1.009895064 | O62: 0.9839945266 | P62: 0.9580939893 | Q62: 0.932193452 | R62: 0.9062929147 | S62: 0.8803923773 | T62: 0.85449184 | U62: 0.8285913027 | V62: 0.8026907654 | W62: 0.7767902281 | X62: 0.7508896908 | Y62: 0.7249891535 | Z62: 0.6990886162 | AA62: 0.6731880788 | AB62: 0.6472875415 | AC62: 0.6213870042 | AD62: 0.5954864669 | AE62: 0.5695859296 | AF62: 0.5436853923 | AG62: 0.517784855 | AH62: 0.4918843176 | AI62: 0.4659837803
A63: 53 | B63: =+正規乱数!L61 -> 11.09926402 | C63: =+正規乱数!M61 -> 38.14035389 | D63: =+正規乱数!N61 -> 16.64866176 | E63: =+正規乱数!O61 -> 0.211218211 | F63: 24.97299265 | G63: 12.48649632 | H63: 21.62724604 | I63: 16.99141842 | J63: 3.64022853 | K63: 1.154700538 | L63: 12.81632614 | M63: 1.317948145 | O63: 1.28785549 | P63: 1.257762835 | Q63: 1.22767018 | R63: 1.197577525 | S63: 1.16748487 | T63: 1.137392214 | U63: 1.107299559 | V63: 1.077206904 | W63: 1.047114249 | X63: 1.017021594 | Y63: 0.9869289386 | Z63: 0.9568362835 | AA63: 0.9267436283 | AB63: 0.8966509732 | AC63: 0.866558318 | AD63: 0.8364656629 | AE63: 0.8063730077 | AF63: 0.7762803526 | AG63: 0.7461876974 | AH63: 0.7160950423 | AI63: 0.6860023871
A64: 54 | B64: =+正規乱数!L62 -> 9.290960841 | C64: =+正規乱数!M62 -> 33.22247049 | D64: =+正規乱数!N62 -> 16.73684916 | E64: =+正規乱数!O62 -> 0.1592101796 | F64: 25.10527374 | G64: 12.55263687 | H64: 21.74180483 | I64: 16.99141842 | J64: 3.111227247 | K64: 1.154700538 | L64: 10.72827749 | M64: 1.102517732 | O64: 1.083698277 | P64: 1.064878823 | Q64: 1.046059368 | R64: 1.027239913 | S64: 1.008420459 | T64: 0.989601004 | U64: 0.9707815494 | V64: 0.9519620947 | W64: 0.9331426401 | X64: 0.9143231855 | Y64: 0.8955037308 | Z64: 0.8766842762 | AA64: 0.8578648216 | AB64: 0.8390453669 | AC64: 0.8202259123 | AD64: 0.8014064577 | AE64: 0.7825870031 | AF64: 0.7637675484 | AG64: 0.7449480938 | AH64: 0.7261286392 | AI64: 0.7073091845
A65: 55 | B65: =+正規乱数!L63 -> 10.83274187 | C65: =+正規乱数!M63 -> 32.16213527 | D65: =+正規乱数!N63 -> 17.04858568 | E65: =+正規乱数!O63 -> 0.1242681756 | F65: 25.57287852 | G65: 12.78643926 | H65: 22.14676245 | I65: 16.99141842 | J65: 3.241737305 | K65: 1.154700538 | L65: 12.50857287 | M65: 1.231797989 | O65: 1.217952802 | P65: 1.204107614 | Q65: 1.190262427 | R65: 1.176417239 | S65: 1.162572052 | T65: 1.148726864 | U65: 1.134881677 | V65: 1.12103649 | W65: 1.107191302 | X65: 1.093346115 | Y65: 1.079500927 | Z65: 1.06565574 | AA65: 1.051810552 | AB65: 1.037965365 | AC65: 1.024120177 | AD65: 1.01027499 | AE65: 0.9964298023 | AF65: 0.9825846148 | AG65: 0.9687394274 | AH65: 0.9548942399 | AI65: 0.9410490524
A66: 56 | B66: =+正規乱数!L64 -> 9.091717683 | C66: =+正規乱数!M64 -> 36.38486194 | D66: =+正規乱数!N64 -> 16.61419304 | E66: =+正規乱数!O64 -> 0.1799044158 | F66: 24.92128956 | G66: 12.46064478 | H66: 21.58246986 | I66: 16.99141842 | J66: 3.382943073 | K66: 1.154700538 | L66: 10.4982113 | M66: 1.113999686 | O66: 1.089897735 | P66: 1.065795783 | Q66: 1.041693831 | R66: 1.01759188 | S66: 0.993489928 | T66: 0.9693879764 | U66: 0.9452860248 | V66: 0.9211840732 | W66: 0.8970821215 | X66: 0.8729801699 | Y66: 0.8488782183 | Z66: 0.8247762666 | AA66: 0.800674315 | AB66: 0.7765723634 | AC66: 0.7524704117 | AD66: 0.7283684601 | AE66: 0.7042665085 | AF66: 0.6801645568 | AG66: 0.6560626052 | AH66: 0.6319606536 | AI66: 0.6078587019
A67: 57 | B67: =+正規乱数!L65 -> 11.52835604 | C67: =+正規乱数!M65 -> 35.07549536 | D67: =+正規乱数!N65 -> 17.70934772 | E67: =+正規乱数!O65 -> 0.1331280361 | F67: 26.56402158 | G67: 13.28201079 | H67: 23.00511752 | I67: 16.99141842 | J67: 4.222657273 | K67: 1.154700538 | L67: 13.31179893 | M67: 1.320165785 | O67: 1.304221017 | P67: 1.288276248 | Q67: 1.27233148 | R67: 1.256386712 | S67: 1.240441944 | T67: 1.224497176 | U67: 1.208552408 | V67: 1.19260764 | W67: 1.176662872 | X67: 1.160718103 | Y67: 1.144773335 | Z67: 1.128828567 | AA67: 1.112883799 | AB67: 1.096939031 | AC67: 1.080994263 | AD67: 1.065049495 | AE67: 1.049104727 | AF67: 1.033159958 | AG67: 1.01721519 | AH67: 1.001270422 | AI67: 0.985325654
A68: 58 | B68: =+正規乱数!L66 -> 9.480564705 | C68: =+正規乱数!M66 -> 31.89050952 | D68: =+正規乱数!N66 -> 16.30258174 | E68: =+正規乱数!O66 -> 0.1195104803 | F68: 24.45387261 | G68: 12.2269363 | H68: 21.1776749 | I68: 16.99141842 | J68: 2.604753198 | K68: 1.154700538 | L68: 10.94721317 | M68: 1.108369753 | O68: 1.094591395 | P68: 1.080813037 | Q68: 1.067034679 | R68: 1.053256321 | S68: 1.039477963 | T68: 1.025699606 | U68: 1.011921248 | V68: 0.9981428898 | W68: 0.9843645319 | X68: 0.970586174 | Y68: 0.9568078161 | Z68: 0.9430294583 | AA68: 0.9292511004 | AB68: 0.9154727425 | AC68: 0.9016943846 | AD68: 0.8879160268 | AE68: 0.8741376689 | AF68: 0.860359311 | AG68: 0.8465809532 | AH68: 0.8328025953 | AI68: 0.8190242374
A69: 59 | B69: =+正規乱数!L67 -> 13.77003466 | C69: =+正規乱数!M67 -> 36.43694028 | D69: =+正規乱数!N67 -> 17.07519898 | E69: =+正規乱数!O67 -> 0.1855204745 | F69: 25.61279847 | G69: 12.80639924 | H69: 22.18133414 | I69: 16.99141842 | J69: 3.831503211 | K69: 1.154700538 | L69: 15.90026643 | M69: 1.540774208 | O69: 1.516544841 | P69: 1.492315474 | Q69: 1.468086107 | R69: 1.44385674 | S69: 1.419627373 | T69: 1.395398006 | U69: 1.371168639 | V69: 1.346939272 | W69: 1.322709905 | X69: 1.298480537 | Y69: 1.27425117 | Z69: 1.250021803 | AA69: 1.225792436 | AB69: 1.201563069 | AC69: =+(($H69-$I69-AC$10*$G$6*$E69*$K69)*TAN($C69*PI()/180)+$L69)/$G69 -> 1.177333702 | AD69: 1.153104335 | AE69: 1.128874968 | AF69: 1.104645601 | AG69: 1.080416234 | AH69: 1.056186867 | AI69: 1.031957499
A70: 60 | B70: =+正規乱数!L68 -> 9.623546279 | C70: =+正規乱数!M68 -> 36.57214883 | D70: =+正規乱数!N68 -> 19.02457972 | E70: =+正規乱数!O68 -> 0.1653173689 | F70: 28.53686957 | G70: 14.26843479 | H70: 24.713654 | I70: 16.99141842 | J70: 5.729216247 | K70: 1.154700538 | L70: 11.11231407 | M70: 1.180334814 | O70: 1.160860476 | P70: 1.141386139 | Q70: 1.121911801 | R70: 1.102437464 | S70: 1.082963127 | T70: 1.063488789 | U70: 1.044014452 | V70: 1.024540114 | W70: 1.005065777 | X70: 0.9855914397 | Y70: 0.9661171023 | Z70: 0.9466427649 | AA70: 0.9271684275 | AB70: 0.9076940901 | AC70: 0.8882197527 | AD70: 0.8687454153 | AE70: 0.8492710778 | AF70: 0.8297967404 | AG70: 0.810322403 | AH70: 0.7908480656 | AI70: 0.7713737282
A71: 61 | B71: =+正規乱数!L69 -> 11.79557182 | C71: =+正規乱数!M69 -> 33.46381335 | D71: =+正規乱数!N69 -> 17.5066284 | E71: =+正規乱数!O69 -> 0.1256656101 | F71: 26.2599426 | G71: 13.1299713 | H71: 22.74177739 | I71: 16.99141842 | J71: 3.800858905 | K71: 1.154700538 | L71: 13.62035313 | M71: 1.326827884 | O71: 1.31249585 | P71: 1.298163816 | Q71: 1.283831782 | R71: 1.269499748 | S71: 1.255167714 | T71: 1.24083568 | U71: 1.226503646 | V71: 1.212171612 | W71: 1.197839578 | X71: 1.183507544 | Y71: 1.16917551 | Z71: 1.154843476 | AA71: 1.140511442 | AB71: 1.126179408 | AC71: 1.111847374 | AD71: 1.09751534 | AE71: 1.083183306 | AF71: 1.068851272 | AG71: 1.054519238 | AH71: 1.040187204 | AI71: 1.02585517
A72: 62 | B72: =+正規乱数!L70 -> 11.46031668 | C72: =+正規乱数!M70 -> 30.50146997 | D72: =+正規乱数!N70 -> 17.93110361 | E72: =+正規乱数!O70 -> 0.1075918863 | F72: 26.89665541 | G72: 13.44832771 | H72: 23.29318686 | I72: 16.99141842 | J72: 3.712243074 | K72: 1.154700538 | L72: 13.23323384 | M72: 1.260043426 | O72: 1.249366319 | P72: 1.238689213 | Q72: 1.228012106 | R72: 1.217335 | S72: 1.206657893 | T72: 1.195980787 | U72: 1.18530368 | V72: 1.174626574 | W72: 1.163949467 | X72: 1.153272361 | Y72: 1.142595255 | Z72: 1.131918148 | AA72: 1.121241042 | AB72: 1.110563935 | AC72: 1.099886829 | AD72: 1.089209722 | AE72: 1.078532616 | AF72: 1.067855509 | AG72: 1.057178403 | AH72: 1.046501296 | AI72: 1.03582419
A73: 63 | B73: =+正規乱数!L71 -> 10.66565125 | C73: =+正規乱数!M71 -> 38.3159644 | D73: =+正規乱数!N71 -> 19.4880606 | E73: =+正規乱数!O71 -> 0.2008471566 | F73: 29.23209091 | G73: 14.61604545 | H73: 25.31573333 | I73: 16.99141842 | J73: 6.577914662 | K73: 1.154700538 | L73: 12.31563324 | M73: 1.292657988 | O73: 1.268057489 | P73: 1.243456991 | Q73: 1.218856492 | R73: 1.194255994 | S73: 1.169655495 | T73: 1.145054997 | U73: 1.120454498 | V73: 1.095854 | W73: 1.071253501 | X73: 1.046653003 | Y73: 1.022052504 | Z73: 0.9974520057 | AA73: 0.9728515072 | AB73: 0.9482510087 | AC73: 0.9236505102 | AD73: 0.8990500116 | AE73: 0.8744495131 | AF73: 0.8498490146 | AG73: 0.8252485161 | AH73: 0.8006480175 | AI73: 0.776047519
A74: 64 | B74: =+正規乱数!L72 -> 10.65863737 | C74: =+正規乱数!M72 -> 31.7649589 | D74: =+正規乱数!N72 -> 20.73829751 | E74: =+正規乱数!O72 -> 0.1602150427 | F74: 31.10744627 | G74: 15.55372314 | H74: 26.93983872 | I74: 16.99141842 | J74: 6.159861835 | K74: 1.154700538 | L74: 12.30753431 | M74: 1.187329618 | O74: 1.172880074 | P74: 1.15843053 | Q74: 1.143980986 | R74: 1.129531442 | S74: 1.115081898 | T74: 1.100632354 | U74: 1.08618281 | V74: 1.071733266 | W74: 1.057283722 | X74: 1.042834177 | Y74: 1.028384633 | Z74: 1.013935089 | AA74: 0.9994855453 | AB74: 0.9850360012 | AC74: 0.9705864572 | AD74: 0.9561369131 | AE74: 0.941687369 | AF74: 0.927237825 | AG74: 0.9127882809 | AH74: 0.8983387369 | AI74: 0.8838891928
A75: 65 | B75: =+正規乱数!L73 -> 9.163047523 | C75: =+正規乱数!M73 -> 27.43656149 | D75: =+正規乱数!N73 -> 18.65973479 | E75: =+正規乱数!O73 -> 0.1817688322 | F75: 27.98960219 | G75: 13.99480109 | H75: 24.23970654 | I75: 16.99141842 | J75: 3.763025654 | K75: 1.154700538 | L75: 10.58057591 | M75: 1.024923575 | O75: 1.009647112 | P75: 0.9943706501 | Q75: 0.979094188 | R75: 0.9638177258 | S75: 0.9485412636 | T75: 0.9332648014 | U75: 0.9179883392 | V75: 0.902711877 | W75: 0.8874354149 | X75: 0.8721589527 | Y75: 0.8568824905 | Z75: 0.8416060283 | AA75: 0.8263295661 | AB75: 0.8110531039 | AC75: 0.7957766418 | AD75: 0.7805001796 | AE75: 0.7652237174 | AF75: 0.7499472552 | AG75: 0.734670793 | AH75: 0.7193943308 | AI75: 0.7041178687
A76: 66 | B76: =+正規乱数!L74 -> 9.310217188 | C76: =+正規乱数!M74 -> 32.83856916 | D76: =+正規乱数!N74 -> 17.60196657 | E76: =+正規乱数!O74 -> 0.1962944059 | F76: 26.40294985 | G76: =+F76*SIN($G$2*PI()/180) -> 13.20147492 | H76: 22.8656253 | I76: =+$G$5*$G$4*$G$6/COS($G$2*PI()/180) -> 16.99141842 | J76: 3.791267012 | K76: =+$G$4/COS($G$2*PI()/180) -> 1.154700538 | L76: 10.7505128 | M76: 1.101526905 | O76: 1.079785431 | P76: 1.058043958 | Q76: 1.036302484 | R76: 1.014561011 | S76: 0.9928195375 | T76: 0.9710780641 | U76: 0.9493365906 | V76: 0.9275951171 | W76: 0.9058536437 | X76: 0.8841121702 | Y76: 0.8623706968 | Z76: 0.8406292233 | AA76: 0.8188877499 | AB76: 0.7971462764 | AC76: 0.775404803 | AD76: 0.7536633295 | AE76: 0.731921856 | AF76: 0.7101803826 | AG76: 0.6884389091 | AH76: 0.6666974357 | AI76: 0.6449559622
A77: 67 | B77: =+正規乱数!L75 -> 15.95246568 | C77: =+正規乱数!M75 -> 36.68951414 | D77: =+正規乱数!N75 -> 17.84807422 | E77: =+正規乱数!O75 -> 0.1337742033 | F77: 26.77211133 | G77: 13.38605567 | H77: 23.18532853 | I77: 16.99141842 | J77: 4.615035189 | K77: 1.154700538 | L77: 18.42032071 | M77: 1.720847162 | O77: 1.703977816 | P77: 1.68710847 | Q77: 1.670239125 | R77: 1.653369779 | S77: 1.636500434 | T77: 1.619631088 | U77: 1.602761742 | V77: 1.585892397 | W77: 1.569023051 | X77: 1.552153705 | Y77: 1.53528436 | Z77: 1.518415014 | AA77: 1.501545668 | AB77: 1.484676323 | AC77: 1.467806977 | AD77: 1.450937631 | AE77: 1.434068286 | AF77: 1.41719894 | AG77: 1.400329594 | AH77: 1.383460249 | AI77: 1.366590903
A78: 68 | B78: =+正規乱数!L76 -> 9.339602985 | C78: =+正規乱数!M76 -> 36.20169056 | D78: =+正規乱数!N76 -> 17.98222691 | E78: =+正規乱数!O76 -> 0.2238059166 | F78: 26.97334036 | G78: 13.48667018 | H78: 23.35959797 | I78: 16.99141842 | J78: 4.661091422 | K78: 1.154700538 | L78: 10.78444459 | M78: 1.145244587 | O78: 1.117727179 | P78: 1.090209771 | Q78: 1.062692364 | R78: 1.035174956 | S78: 1.007657548 | T78: 0.9801401403 | U78: 0.9526227325 | V78: 0.9251053248 | W78: 0.897587917 | X78: 0.8700705092 | Y78: 0.8425531015 | Z78: 0.8150356937 | AA78: 0.787518286 | AB78: 0.7600008782 | AC78: 0.7324834704 | AD78: 0.7049660627 | AE78: 0.6774486549 | AF78: 0.6499312472 | AG78: 0.6224138394 | AH78: 0.5948964316 | AI78: 0.5673790239
A79: 69 | B79: =+正規乱数!L77 -> 8.223340836 | C79: =+正規乱数!M77 -> 35.53152818 | D79: =+正規乱数!N77 -> 18.9434766 | E79: =+正規乱数!O77 -> 0.1697296653 | F79: 28.4152149 | G79: 14.20760745 | H79: 24.60829795 | I79: 16.99141842 | J79: 5.439393699 | K79: 1.154700538 | L79: 9.49549609 | M79: 1.051189642 | O79: 1.031862013 | P79: 1.012534384 | Q79: 0.9932067547 | R79: 0.9738791256 | S79: 0.9545514964 | T79: 0.9352238673 | U79: 0.9158962381 | V79: 0.896568609 | W79: 0.8772409798 | X79: 0.8579133507 | Y79: 0.8385857215 | Z79: 0.8192580924 | AA79: 0.7999304632 | AB79: 0.780602834 | AC79: 0.7612752049 | AD79: 0.7419475757 | AE79: 0.7226199466 | AF79: 0.7032923174 | AG79: 0.6839646883 | AH79: 0.6646370591 | AI79: 0.64530943
A80: 70 | B80: =+正規乱数!L78 -> 11.65260471 | C80: =+正規乱数!M78 -> 30.52974512 | D80: =+正規乱数!N78 -> 17.9542122 | E80: =+正規乱数!O78 -> 0.161091191 | F80: 26.93131829 | G80: 13.46565915 | H80: 23.3232058 | I80: 16.99141842 | J80: 3.734136859 | K80: 1.154700538 | L80: 13.45526893 | M80: 1.276536529 | O80: 1.260552861 | P80: 1.244569193 | Q80: 1.228585524 | R80: 1.212601856 | S80: 1.196618188 | T80: 1.18063452 | U80: 1.164650852 | V80: 1.148667184 | W80: 1.132683515 | X80: 1.116699847 | Y80: 1.100716179 | Z80: 1.084732511 | AA80: 1.068748843 | AB80: 1.052765175 | AC80: 1.036781506 | AD80: 1.020797838 | AE80: 1.00481417 | AF80: 0.9888305018 | AG80: 0.9728468336 | AH80: 0.9568631654 | AI80: 0.9408794973
A81: 71 | B81: =+正規乱数!L79 -> 8.051089563 | C81: =+正規乱数!M79 -> 34.71867708 | D81: =+正規乱数!N79 -> 18.20312703 | E81: =+正規乱数!O79 -> 0.1553346777 | F81: 27.30469054 | G81: 13.65234527 | H81: 23.64655565 | I81: 16.99141842 | J81: 4.611445793 | K81: 1.154700538 | L81: 9.296597453 | M81: 1.018729234 | O81: 1.000868076 | P81: 0.9830069176 | Q81: 0.9651457593 | R81: 0.9472846009 | S81: 0.9294234425 | T81: 0.9115622841 | U81: 0.8937011257 | V81: 0.8758399674 | W81: 0.857978809 | X81: 0.8401176506 | Y81: 0.8222564922 | Z81: 0.8043953338 | AA81: 0.7865341755 | AB81: 0.7686730171 | AC81: 0.7508118587 | AD81: 0.7329507003 | AE81: 0.7150895419 | AF81: 0.6972283836 | AG81: 0.6793672252 | AH81: 0.6615060668 | AI81: 0.6436449084
A82: 72 | B82: =+正規乱数!L80 -> 7.356193302 | C82: =+正規乱数!M80 -> 34.71009655 | D82: =+正規乱数!N80 -> 16.19493317 | E82: =+正規乱数!O80 -> 0.1119964542 | F82: 24.29239976 | G82: 12.14619988 | H82: 21.03783531 | I82: 16.99141842 | J82: 2.802926953 | K82: 1.154700538 | L82: 8.494200366 | M82: 0.9300956209 | O82: 0.9156254594 | P82: 0.901155298 | Q82: 0.8866851366 | R82: 0.8722149752 | S82: 0.8577448138 | T82: 0.8432746523 | U82: 0.8288044909 | V82: 0.8143343295 | W82: 0.7998641681 | X82: 0.7853940066 | Y82: 0.7709238452 | Z82: 0.7564536838 | AA82: 0.7419835224 | AB82: 0.727513361 | AC82: 0.7130431995 | AD82: 0.6985730381 | AE82: 0.6841028767 | AF82: 0.6696327153 | AG82: 0.6551625538 | AH82: 0.6406923924 | AI82: 0.626222231
A83: 73 | B83: =+正規乱数!L81 -> 9.869818259 | C83: =+正規乱数!M81 -> 34.11755004 | D83: =+正規乱数!N81 -> 18.6527057 | E83: =+正規乱数!O81 -> 0.1094982978 | F83: 27.97905855 | G83: 13.98952927 | H83: 24.23057548 | I83: 16.99141842 | J83: 4.904512315 | K83: 1.154700538 | L83: 11.39668446 | M83: 1.165242694 | O83: 1.153228892 | P83: 1.14121509 | Q83: 1.129201288 | R83: 1.117187486 | S83: 1.105173684 | T83: 1.093159882 | U83: 1.08114608 | V83: 1.069132278 | W83: 1.057118476 | X83: 1.045104674 | Y83: 1.033090872 | Z83: 1.02107707 | AA83: 1.009063268 | AB83: 0.9970494662 | AC83: 0.9850356643 | AD83: 0.9730218623 | AE83: 0.9610080604 | AF83: 0.9489942584 | AG83: 0.9369804565 | AH83: 0.9249666545 | AI83: 0.9129528526
A84: 74 | B84: =+正規乱数!L82 -> 11.08067388 | C84: =+正規乱数!M82 -> 34.05744756 | D84: =+正規乱数!N82 -> 18.3031432 | E84: =+正規乱数!O82 -> 0.1341144592 | F84: 27.4547148 | G84: 13.7273574 | H84: 23.77648047 | I84: 16.99141842 | J84: 4.586487002 | K84: 1.154700538 | L84: 12.7948601 | M84: 1.266183038 | O84: 1.251221254 | P84: 1.23625947 | Q84: 1.221297686 | R84: 1.206335902 | S84: 1.191374119 | T84: 1.176412335 | U84: 1.161450551 | V84: 1.146488767 | W84: 1.131526983 | X84: 1.116565199 | Y84: 1.101603415 | Z84: 1.086641632 | AA84: 1.071679848 | AB84: 1.056718064 | AC84: 1.04175628 | AD84: 1.026794496 | AE84: 1.011832712 | AF84: 0.9968709285 | AG84: 0.9819091447 | AH84: 0.9669473608 | AI84: 0.951985577
A85: 75 | B85: =+正規乱数!L83 -> 6.755136281 | C85: =+正規乱数!M83 -> 40.83218673 | D85: =+正規乱数!N83 -> 16.20933681 | E85: =+正規乱数!O83 -> 0.1993730534 | F85: 24.31400521 | G85: 12.1570026 | H85: 21.05654618 | I85: 16.99141842 | J85: 3.512911213 | K85: 1.154700538 | L85: 7.800159501 | M85: 0.9305805948 | O85: 0.8984734789 | P85: 0.8663663629 | Q85: 0.8342592469 | R85: 0.802152131 | S85: 0.770045015 | T85: 0.7379378991 | U85: 0.7058307831 | V85: 0.6737236672 | W85: 0.6416165512 | X85: 0.6095094353 | Y85: 0.5774023193 | Z85: 0.5452952034 | AA85: 0.5131880874 | AB85: =+(($H85-$I85-AB$10*$G$6*$E85*$K85)*TAN($C85*PI()/180)+$L85)/$G85 -> 0.4810809715 | AC85: 0.4489738555 | AD85: 0.4168667396 | AE85: 0.3847596236 | AF85: 0.3526525077 | AG85: 0.3205453917 | AH85: 0.2884382758 | AI85: 0.2563311598
A86: 76 | B86: =+正規乱数!L84 -> 10.21819513 | C86: =+正規乱数!M84 -> 38.00915833 | D86: =+正規乱数!N84 -> 18.66478523 | E86: =+正規乱数!O84 -> 0.1520406101 | F86: 27.99717784 | G86: 13.99858892 | H86: 24.24626725 | I86: 16.99141842 | J86: 5.669976829 | K86: 1.154700538 | L86: 11.79895542 | M86: 1.247906653 | O86: 1.228675885 | P86: 1.209445117 | Q86: 1.190214349 | R86: 1.17098358 | S86: 1.151752812 | T86: 1.132522044 | U86: 1.113291276 | V86: 1.094060508 | W86: 1.07482974 | X86: 1.055598972 | Y86: 1.036368203 | Z86: 1.017137435 | AA86: 0.9979066672 | AB86: 0.978675899 | AC86: 0.9594451309 | AD86: 0.9402143628 | AE86: 0.9209835946 | AF86: 0.9017528265 | AG86: 0.8825220583 | AH86: 0.8632912902 | AI86: 0.8440605221
A87: 77 | B87: =+正規乱数!L85 -> 9.424204396 | C87: =+正規乱数!M85 -> 36.14474915 | D87: =+正規乱数!N85 -> 20.28956341 | E87: =+正規乱数!O85 -> 0.1059869827 | F87: 30.43434511 | G87: 15.21717255 | H87: 26.35691601 | I87: 16.99141842 | J87: 6.840648903 | K87: 1.154700538 | L87: 10.88213389 | M87: 1.164656754 | O87: 1.153131424 | P87: 1.141606094 | Q87: 1.130080763 | R87: 1.118555433 | S87: 1.107030103 | T87: 1.095504772 | U87: 1.083979442 | V87: 1.072454112 | W87: 1.060928782 | X87: 1.049403451 | Y87: 1.037878121 | Z87: 1.026352791 | AA87: 1.014827461 | AB87: 1.00330213 | AC87: 0.9917768002 | AD87: 0.9802514699 | AE87: 0.9687261397 | AF87: 0.9572008094 | AG87: 0.9456754791 | AH87: 0.9341501489 | AI87: 0.9226248186
A88: 78 | B88: =+正規乱数!L86 -> 6.267272405 | C88: =+正規乱数!M86 -> 28.09125703 | D88: =+正規乱数!N86 -> 18.62315928 | E88: =+正規乱数!O86 -> 0.1687826766 | F88: 27.93473892 | G88: 13.96736946 | H88: 24.19219356 | I88: 16.99141842 | J88: 3.843443905 | K88: 1.154700538 | L88: 7.23682282 | M88: 0.7932966015 | O88: 0.7786841555 | P88: 0.7640717096 | Q88: 0.7494592636 | R88: 0.7348468177 | S88: 0.7202343717 | T88: 0.7056219257 | U88: 0.6910094798 | V88: 0.6763970338 | W88: 0.6617845879 | X88: 0.6471721419 | Y88: 0.6325596959 | Z88: 0.61794725 | AA88: 0.603334804 | AB88: 0.5887223581 | AC88: 0.5741099121 | AD88: 0.5594974662 | AE88: 0.5448850202 | AF88: 0.5302725742 | AG88: 0.5156601283 | AH88: 0.5010476823 | AI88: 0.4864352364
A89: 79 | B89: =+正規乱数!L87 -> 9.598028707 | C89: =+正規乱数!M87 -> 33.37480573 | D89: =+正規乱数!N87 -> 18.29493016 | E89: =+正規乱数!O87 -> 0.08567381117 | F89: 27.44239525 | G89: 13.72119762 | H89: 23.76581142 | I89: 16.99141842 | J89: 4.462616399 | K89: 1.154700538 | L89: 11.08284892 | M89: 1.132952512 | O89: 1.123634064 | P89: 1.114315615 | Q89: 1.104997167 | R89: 1.095678718 | S89: 1.08636027 | T89: 1.077041821 | U89: 1.067723373 | V89: 1.058404924 | W89: 1.049086476 | X89: 1.039768027 | Y89: 1.030449579 | Z89: 1.02113113 | AA89: 1.011812682 | AB89: 1.002494233 | AC89: 0.9931757849 | AD89: 0.9838573364 | AE89: 0.974538888 | AF89: 0.9652204395 | AG89: 0.955901991 | AH89: 0.9465835426 | AI89: 0.9372650941
A90: 80 | B90: =+正規乱数!L88 -> 9.682311504 | C90: =+正規乱数!M88 -> 34.04742625 | D90: =+正規乱数!N88 -> 18.05828407 | E90: =+正規乱数!O88 -> 0.1873039511 | F90: 27.0874261 | G90: 13.54371305 | H90: 23.45839913 | I90: 16.99141842 | J90: 4.369826334 | K90: 1.154700538 | L90: 11.18017031 | M90: 1.148133941 | O90: 1.126962999 | P90: 1.105792057 | Q90: 1.084621116 | R90: 1.063450174 | S90: 1.042279232 | T90: 1.02110829 | U90: 0.9999373483 | V90: 0.9787664065 | W90: 0.9575954647 | X90: 0.9364245228 | Y90: 0.915253581 | Z90: 0.8940826392 | AA90: 0.8729116974 | AB90: 0.8517407556 | AC90: 0.8305698137 | AD90: 0.8093988719 | AE90: =+(($H90-$I90-AE$10*$G$6*$E90*$K90)*TAN($C90*PI()/180)+$L90)/$G90 -> 0.7882279301 | AF90: 0.7670569883 | AG90: 0.7458860464 | AH90: 0.7247151046 | AI90: 0.7035441628
A91: 81 | B91: =+正規乱数!L89 -> 12.09962983 | C91: =+正規乱数!M89 -> 31.18384515 | D91: =+正規乱数!N89 -> 18.01232755 | E91: =+正規乱数!O89 -> 0.1078757217 | F91: 27.01849133 | G91: 13.50924566 | H91: 23.39869986 | I91: 16.99141842 | J91: 3.877918815 | K91: 1.154700538 | L91: 13.97144907 | M91: 1.321270509 | O91: 1.31032122 | P91: 1.299371932 | Q91: 1.288422643 | R91: 1.277473355 | S91: 1.266524066 | T91: 1.255574778 | U91: 1.244625489 | V91: 1.233676201 | W91: 1.222726912 | X91: 1.211777624 | Y91: 1.200828335 | Z91: 1.189879047 | AA91: 1.178929758 | AB91: 1.16798047 | AC91: 1.157031181 | AD91: 1.146081893 | AE91: 1.135132604 | AF91: 1.124183316 | AG91: 1.113234027 | AH91: 1.102284739 | AI91: 1.09133545
A92: 82 | B92: =+正規乱数!L90 -> 12.77620883 | C92: =+正規乱数!M90 -> 34.76440912 | D92: =+正規乱数!N90 -> 17.79953686 | E92: =+正規乱数!O90 -> 0.1229554873 | F92: 26.69930529 | G92: 13.34965264 | H92: 23.12227664 | I92: 16.99141842 | J92: 4.25541192 | K92: 1.154700538 | L92: 14.75269521 | M92: 1.423865297 | O92: 1.409382026 | P92: 1.394898755 | Q92: 1.380415485 | R92: 1.365932214 | S92: 1.351448943 | T92: 1.336965672 | U92: 1.322482401 | V92: 1.30799913 | W92: 1.293515859 | X92: 1.279032588 | Y92: 1.264549317 | Z92: 1.250066046 | AA92: 1.235582776 | AB92: 1.221099505 | AC92: 1.206616234 | AD92: 1.192132963 | AE92: 1.177649692 | AF92: 1.163166421 | AG92: 1.14868315 | AH92: 1.134199879 | AI92: 1.119716608
A93: 83 | B93: =+正規乱数!L91 -> 10.55802719 | C93: =+正規乱数!M91 -> 30.09853966 | D93: =+正規乱数!N91 -> 17.69401972 | E93: =+正規乱数!O91 -> 0.1536565841 | F93: 26.54102958 | G93: 13.27051479 | H93: 22.98520586 | I93: 16.99141842 | J93: 3.474272951 | K93: 1.154700538 | L93: 12.19135968 | M93: 1.180484169 | O93: 1.165278891 | P93: 1.150073613 | Q93: 1.134868335 | R93: 1.119663056 | S93: 1.104457778 | T93: 1.0892525 | U93: 1.074047221 | V93: 1.058841943 | W93: 1.043636665 | X93: 1.028431387 | Y93: 1.013226108 | Z93: 0.9980208299 | AA93: 0.9828155516 | AB93: 0.9676102734 | AC93: 0.9524049951 | AD93: 0.9371997168 | AE93: 0.9219944385 | AF93: 0.9067891602 | AG93: 0.8915838819 | AH93: 0.8763786036 | AI93: 0.8611733253
A94: 84 | B94: =+正規乱数!L92 -> 10.86962862 | C94: =+正規乱数!M92 -> 36.06630094 | D94: =+正規乱数!N92 -> 16.61895956 | E94: =+正規乱数!O92 -> 0.1179914922 | F94: 24.92843934 | G94: 12.46421967 | H94: 21.58866174 | I94: 16.99141842 | J94: 3.348227542 | K94: 1.154700538 | L94: 12.55116602 | M94: 1.275602805 | O94: 1.259983149 | P94: 1.244363494 | Q94: 1.228743839 | R94: 1.213124183 | S94: 1.197504528 | T94: 1.181884873 | U94: 1.166265218 | V94: 1.150645562 | W94: 1.135025907 | X94: 1.119406252 | Y94: 1.103786596 | Z94: 1.088166941 | AA94: 1.072547286 | AB94: 1.056927631 | AC94: 1.041307975 | AD94: 1.02568832 | AE94: 1.010068665 | AF94: 0.9944490095 | AG94: 0.9788293542 | AH94: 0.963209699 | AI94: 0.9475900437
A95: 85 | B95: =+正規乱数!L93 -> 11.24748753 | C95: =+正規乱数!M93 -> 33.53231325 | D95: =+正規乱数!N93 -> 17.82655095 | E95: =+正規乱数!O93 -> 0.1242197128 | F95: 26.73982642 | G95: 13.36991321 | H95: 23.15736897 | I95: 16.99141842 | J95: 4.086156371 | K95: 1.154700538 | L95: 12.98747991 | M95: 1.27701923 | O95: 1.26307016 | P95: 1.249121091 | Q95: 1.235172021 | R95: 1.221222951 | S95: 1.207273881 | T95: 1.193324811 | U95: 1.179375741 | V95: 1.165426672 | W95: 1.151477602 | X95: 1.137528532 | Y95: 1.123579462 | Z95: 1.109630392 | AA95: 1.095681322 | AB95: 1.081732253 | AC95: 1.067783183 | AD95: 1.053834113 | AE95: 1.039885043 | AF95: 1.025935973 | AG95: 1.011986903 | AH95: 0.9980378335 | AI95: 0.9840887637
A96: 86 | B96: =+正規乱数!L94 -> 5.182876845 | C96: =+正規乱数!M94 -> 35.85823386 | D96: =+正規乱数!N94 -> 17.72852787 | E96: =+正規乱数!O94 -> 0.1740865713 | F96: 26.5927918 | G96: 13.2963959 | H96: 23.03003326 | I96: 16.99141842 | J96: 4.364523192 | K96: 1.154700538 | L96: 5.984670683 | M96: 0.7783457978 | O96: 0.7569070616 | P96: 0.7354683253 | Q96: 0.7140295891 | R96: 0.6925908528 | S96: 0.6711521166 | T96: 0.6497133803 | U96: 0.628274644 | V96: 0.6068359078 | W96: 0.5853971715 | X96: 0.5639584353 | Y96: 0.542519699 | Z96: 0.5210809628 | AA96: 0.4996422265 | AB96: 0.4782034903 | AC96: 0.456764754 | AD96: 0.4353260178 | AE96: 0.4138872815 | AF96: 0.3924485453 | AG96: 0.371009809 | AH96: 0.3495710728 | AI96: 0.3281323365
A97: 87 | B97: =+正規乱数!L95 -> 9.589601264 | C97: =+正規乱数!M95 -> 32.3786987 | D97: =+正規乱数!N95 -> 18.59223641 | E97: =+正規乱数!O95 -> 0.1365191279 | F97: 27.88835462 | G97: 13.94417731 | H97: 24.15202357 | I97: 16.99141842 | J97: 4.540524777 | K97: 1.154700538 | L97: 11.07311774 | M97: 1.119724898 | O97: 1.105660366 | P97: 1.091595833 | Q97: 1.0775313 | R97: 1.063466768 | S97: 1.049402235 | T97: 1.035337703 | U97: 1.02127317 | V97: 1.007208637 | W97: 0.9931441049 | X97: 0.9790795723 | Y97: 0.9650150397 | Z97: 0.9509505071 | AA97: 0.9368859745 | AB97: 0.9228214419 | AC97: 0.9087569094 | AD97: 0.8946923768 | AE97: 0.8806278442 | AF97: 0.8665633116 | AG97: 0.852498779 | AH97: 0.8384342464 | AI97: 0.8243697138
A98: 88 | B98: =+正規乱数!L96 -> 7.863770335 | C98: =+正規乱数!M96 -> 36.18008697 | D98: =+正規乱数!N96 -> 17.14320703 | E98: =+正規乱数!O96 -> 0.08073803735 | F98: 25.71481055 | G98: 12.85740528 | H98: 22.26967919 | I98: 16.99141842 | J98: 3.860286527 | K98: 1.154700538 | L98: 9.08029984 | M98: 1.006469508 | O98: 0.9960649913 | P98: 0.9856604743 | Q98: 0.9752559573 | R98: 0.9648514403 | S98: 0.9544469233 | T98: 0.9440424063 | U98: 0.9336378893 | V98: 0.9232333723 | W98: 0.9128288553 | X98: 0.9024243383 | Y98: 0.8920198212 | Z98: 0.8816153042 | AA98: 0.8712107872 | AB98: 0.8608062702 | AC98: 0.8504017532 | AD98: 0.8399972362 | AE98: 0.8295927192 | AF98: 0.8191882022 | AG98: 0.8087836852 | AH98: 0.7983791682 | AI98: 0.7879746512
A99: 89 | B99: =+正規乱数!L97 -> 9.950473296 | C99: =+正規乱数!M97 -> 35.69166663 | D99: =+正規乱数!N97 -> 17.92631087 | E99: =+正規乱数!O97 -> 0.1652576172 | F99: 26.88946631 | G99: 13.44473315 | H99: 23.28696092 | I99: 16.99141842 | J99: 4.522417896 | K99: 1.154700538 | L99: 11.48981687 | M99: 1.190967094 | O99: 1.170963169 | P99: 1.150959245 | Q99: 1.130955321 | R99: 1.110951396 | S99: 1.090947472 | T99: 1.070943548 | U99: 1.050939624 | V99: 1.030935699 | W99: 1.010931775 | X99: 0.9909278506 | Y99: 0.9709239263 | Z99: 0.950920002 | AA99: 0.9309160777 | AB99: 0.9109121534 | AC99: 0.8909082291 | AD99: 0.8709043048 | AE99: 0.8509003805 | AF99: 0.8308964562 | AG99: 0.8108925319 | AH99: 0.7908886076 | AI99: 0.7708846833
A100: 90 | B100: =+正規乱数!L98 -> 7.192141206 | C100: =+正規乱数!M98 -> 32.32808936 | D100: =+正規乱数!N98 -> 17.74551625 | E100: =+正規乱数!O98 -> 0.1720757226 | F100: 26.61827438 | G100: 13.30913719 | H100: 23.05210182 | I100: 16.99141842 | J100: 3.835564995 | K100: 1.154700538 | L100: 8.304769322 | M100: 0.9121804173 | O100: 0.8936431454 | P100: 0.8751058735 | Q100: 0.8565686016 | R100: 0.8380313297 | S100: 0.8194940578 | T100: 0.8009567859 | U100: 0.7824195139 | V100: 0.763882242 | W100: 0.7453449701 | X100: 0.7268076982 | Y100: 0.7082704263 | Z100: 0.6897331544 | AA100: 0.6711958825 | AB100: 0.6526586106 | AC100: 0.6341213387 | AD100: 0.6155840668 | AE100: 0.5970467948 | AF100: 0.5785095229 | AG100: 0.559972251 | AH100: 0.5414349791 | AI100: 0.5228977072
A101: 91 | B101: =+正規乱数!L99 -> 11.74579573 | C101: =+正規乱数!M99 -> 33.45523808 | D101: =+正規乱数!N99 -> 18.18915127 | E101: =+正規乱数!O99 -> 0.1365526073 | F101: =+$G$3*$G$4*D101 -> 27.2837269 | G101: 13.64186345 | H101: =+F101*COS($G$2*PI()/180) -> 23.62840061 | I101: 16.99141842 | J101: =+(H101-I101)*TAN(C101*PI()/180) -> 4.385469883 | K101: 1.154700538 | L101: =+K101*B101 -> 13.56287665 | M101: =+(J101+L101)/G101 -> 1.315681439 | O101: 1.300697012 | P101: 1.285712584 | Q101: 1.270728157 | R101: 1.255743729 | S101: 1.240759302 | T101: 1.225774875 | U101: 1.210790447 | V101: 1.19580602 | W101: 1.180821593 | X101: 1.165837165 | Y101: 1.150852738 | Z101: 1.13586831 | AA101: =+(($H101-$I101-AA$10*$G$6*$E101*$K101)*TAN($C101*PI()/180)+$L101)/$G101 -> 1.120883883 | AB101: 1.105899456 | AC101: 1.090915028 | AD101: 1.075930601 | AE101: 1.060946174 | AF101: 1.045961746 | AG101: 1.030977319 | AH101: 1.015992891 | AI101: 1.001008464
A102: 92 | B102: =+正規乱数!L100 -> 10.45949952 | C102: =+正規乱数!M100 -> 37.84734773 | D102: =+正規乱数!N100 -> 18.35058575 | E102: =+正規乱数!O100 -> 0.1400186258 | F102: 27.52587863 | G102: 13.76293932 | H102: 23.83811016 | I102: 16.99141842 | J102: 5.319906492 | K102: 1.154700538 | L102: 12.07758972 | M102: 1.264082898 | O102: 1.246174109 | P102: 1.228265321 | Q102: 1.210356532 | R102: 1.192447743 | S102: 1.174538955 | T102: 1.156630166 | U102: 1.138721377 | V102: 1.120812589 | W102: 1.1029038 | X102: 1.084995011 | Y102: 1.067086223 | Z102: 1.049177434 | AA102: 1.031268645 | AB102: 1.013359857 | AC102: 0.995451068 | AD102: 0.9775422794 | AE102: 0.9596334907 | AF102: 0.9417247021 | AG102: 0.9238159134 | AH102: 0.9059071247 | AI102: 0.8879983361
A103: 93 | B103: =+正規乱数!L101 -> 11.7661584 | C103: =+正規乱数!M101 -> 38.54360319 | D103: =+正規乱数!N101 -> 19.47707254 | E103: =+正規乱数!O101 -> 0.120100041 | F103: 29.21560881 | G103: 14.60780441 | H103: 25.30145942 | I103: 16.99141842 | J103: 6.62043681 | K103: 1.154700538 | L103: 13.58638944 | M103: 1.38328976 | O103: 1.368450575 | P103: 1.353611389 | Q103: 1.338772204 | R103: 1.323933019 | S103: 1.309093833 | T103: 1.294254648 | U103: 1.279415462 | V103: 1.264576277 | W103: 1.249737092 | X103: 1.234897906 | Y103: 1.220058721 | Z103: 1.205219536 | AA103: 1.19038035 | AB103: 1.175541165 | AC103: 1.160701979 | AD103: 1.145862794 | AE103: 1.131023609 | AF103: 1.116184423 | AG103: 1.101345238 | AH103: 1.086506053 | AI103: 1.071666867
A104: 94 | B104: =+正規乱数!L102 -> 8.609293113 | C104: =+正規乱数!M102 -> 33.43192942 | D104: =+正規乱数!N102 -> 17.64400568 | E104: =+正規乱数!O102 -> 0.1703539213 | F104: 26.46600851 | G104: 13.23300426 | H104: 22.92023571 | I104: 16.99141842 | J104: 3.914076925 | K104: 1.154700538 | L104: 9.941155393 | M104: 1.047020922 | O104: 1.027766817 | P104: 1.008512711 | Q104: 0.989258606 | R104: 0.9700045006 | S104: 0.9507503952 | T104: 0.9314962898 | U104: 0.9122421844 | V104: 0.8929880791 | W104: 0.8737339737 | X104: 0.8544798683 | Y104: 0.8352257629 | Z104: 0.8159716576 | AA104: 0.7967175522 | AB104: 0.7774634468 | AC104: 0.7582093414 | AD104: 0.738955236 | AE104: 0.7197011307 | AF104: 0.7004470253 | AG104: 0.6811929199 | AH104: 0.6619388145 | AI104: 0.6426847092
A105: 95 | B105: =+正規乱数!L103 -> 11.51638143 | C105: =+正規乱数!M103 -> 33.60305646 | D105: =+正規乱数!N103 -> 16.78658699 | E105: =+正規乱数!O103 -> 0.1545715475 | F105: 25.17988049 | G105: 12.58994025 | H105: 21.80641617 | I105: 16.99141842 | J105: 3.199447109 | K105: 1.154700538 | L105: 13.29797184 | M105: 1.310365151 | O105: 1.291882974 | P105: 1.273400798 | Q105: 1.254918622 | R105: 1.236436446 | S105: 1.21795427 | T105: 1.199472094 | U105: 1.180989918 | V105: 1.162507742 | W105: 1.144025565 | X105: 1.125543389 | Y105: 1.107061213 | Z105: 1.088579037 | AA105: 1.070096861 | AB105: 1.051614685 | AC105: 1.033132509 | AD105: 1.014650333 | AE105: 0.9961681565 | AF105: 0.9776859804 | AG105: 0.9592038043 | AH105: 0.9407216282 | AI105: 0.9222394521
A106: 96 | B106: =+正規乱数!L104 -> 10.60786718 | C106: =+正規乱数!M104 -> 35.17319495 | D106: =+正規乱数!N104 -> 18.00915749 | E106: =+正規乱数!O104 -> 0.1315928937 | F106: 27.01373624 | G106: 13.50686812 | H106: 23.39458184 | I106: 16.99141842 | J106: 4.512450067 | K106: 1.154700538 | L106: 12.24890995 | M106: 1.24095089 | O106: 1.225396106 | P106: 1.209841323 | Q106: 1.194286539 | R106: 1.178731756 | S106: 1.163176972 | T106: 1.147622189 | U106: 1.132067405 | V106: 1.116512621 | W106: 1.100957838 | X106: 1.085403054 | Y106: 1.069848271 | Z106: 1.054293487 | AA106: 1.038738704 | AB106: 1.02318392 | AC106: 1.007629136 | AD106: 0.9920743529 | AE106: 0.9765195693 | AF106: 0.9609647858 | AG106: 0.9454100022 | AH106: 0.9298552186 | AI106: 0.9143004351
A107: 97 | B107: =+正規乱数!L105 -> 10.92049666 | C107: =+正規乱数!M105 -> 36.56814301 | D107: =+正規乱数!N105 -> 17.71898923 | E107: =+正規乱数!O105 -> 0.1610617058 | F107: 26.57848385 | G107: 13.28924192 | H107: 23.01764221 | I107: 16.99141842 | J107: 4.470272207 | K107: 1.154700538 | L107: 12.60990338 | M107: 1.285263349 | O107: 1.264895312 | P107: 1.244527276 | Q107: 1.224159239 | R107: 1.203791202 | S107: 1.183423165 | T107: 1.163055128 | U107: 1.142687091 | V107: 1.122319054 | W107: 1.101951018 | X107: 1.081582981 | Y107: 1.061214944 | Z107: 1.040846907 | AA107: 1.02047887 | AB107: 1.000110833 | AC107: 0.9797427964 | AD107: 0.9593747595 | AE107: 0.9390067227 | AF107: 0.9186386858 | AG107: 0.8982706489 | AH107: 0.8779026121 | AI107: 0.8575345752
A108: 98 | B108: =+正規乱数!L106 -> 10.68779473 | C108: =+正規乱数!M106 -> 36.58773577 | D108: =+正規乱数!N106 -> 17.28291512 | E108: =+正規乱数!O106 -> 0.13572168 | F108: 25.92437268 | G108: 12.96218634 | H108: 22.45116532 | I108: 16.99141842 | J108: 4.05295293 | K108: 1.154700538 | L108: 12.34120232 | M108: 1.26476775 | O108: 1.2471586 | P108: 1.22954945 | Q108: 1.211940301 | R108: 1.194331151 | S108: 1.176722001 | T108: 1.159112851 | U108: 1.141503702 | V108: 1.123894552 | W108: 1.106285402 | X108: 1.088676252 | Y108: 1.071067102 | Z108: 1.053457953 | AA108: 1.035848803 | AB108: 1.018239653 | AC108: 1.000630503 | AD108: 0.9830213536 | AE108: 0.9654122038 | AF108: 0.9478030541 | AG108: 0.9301939043 | AH108: 0.9125847545 | AI108: 0.8949756047
A109: 99 | B109: =+正規乱数!L107 -> 7.133039496 | C109: =+正規乱数!M107 -> 34.31837007 | D109: =+正規乱数!N107 -> 17.40861732 | E109: =+正規乱数!O107 -> 0.1201278616 | F109: 26.11292598 | G109: 13.05646299 | H109: 22.61445727 | I109: 16.99141842 | J109: 3.838419385 | K109: 1.154700538 | L109: 8.236524547 | M109: 0.9248250418 | O109: 0.9105962535 | P109: 0.8963674653 | Q109: 0.8821386771 | R109: 0.8679098889 | S109: 0.8536811007 | T109: 0.8394523124 | U109: 0.8252235242 | V109: 0.810994736 | W109: 0.7967659478 | X109: 0.7825371596 | Y109: 0.7683083713 | Z109: 0.7540795831 | AA109: 0.7398507949 | AB109: 0.7256220067 | AC109: 0.7113932184 | AD109: 0.6971644302 | AE109: 0.682935642 | AF109: 0.6687068538 | AG109: 0.6544780656 | AH109: 0.6402492773 | AI109: 0.6260204891
A110: 100 | B110: =+正規乱数!L108 -> 8.980153678 | C110: =+正規乱数!M108 -> 30.3800078 | D110: =+正規乱数!N108 -> 18.33365976 | E110: =+正規乱数!O108 -> 0.1466766583 | F110: 27.50048964 | G110: 13.75024482 | H110: 23.81612264 | I110: 16.99141842 | J110: 4.00082981 | K110: 1.154700538 | L110: 10.36938829 | M110: 1.045088163 | O110: 1.030920925 | P110: 1.016753687 | Q110: 1.002586449 | R110: 0.9884192106 | S110: 0.9742519726 | T110: 0.9600847345 | U110: 0.9459174965 | V110: 0.9317502585 | W110: 0.9175830204 | X110: 0.9034157824 | Y110: 0.8892485443 | Z110: 0.8750813063 | AA110: 0.8609140683 | AB110: 0.8467468302 | AC110: 0.8325795922 | AD110: 0.8184123542 | AE110: 0.8042451161 | AF110: 0.7900778781 | AG110: 0.7759106401 | AH110: 0.761743402 | AI110: 0.747576164
A111: 101 | B111: =+正規乱数!L109 -> 9.592112642 | C111: =+正規乱数!M109 -> 33.36695624 | D111: =+正規乱数!N109 -> 17.92511035 | E111: =+正規乱数!O109 -> 0.1221805942 | F111: 26.88766553 | G111: 13.44383277 | H111: 23.2854014 | I111: 16.99141842 | J111: 4.144911016 | K111: 1.154700538 | L111: 11.07601763 | M111: 1.1321867 | O111: 1.118627403 | P111: 1.105068107 | Q111: 1.091508811 | R111: 1.077949514 | S111: 1.064390218 | T111: 1.050830922 | U111: 1.037271626 | V111: 1.023712329 | W111: 1.010153033 | X111: 0.9965937367 | Y111: 0.9830344405 | Z111: 0.9694751442 | AA111: 0.9559158479 | AB111: 0.9423565516 | AC111: 0.9287972554 | AD111: 0.9152379591 | AE111: 0.9016786628 | AF111: 0.8881193665 | AG111: 0.8745600702 | AH111: 0.861000774 | AI111: 0.8474414777
A112: 102 | B112: =+正規乱数!L110 -> 10.87564585 | C112: =+正規乱数!M110 -> 37.75635903 | D112: =+正規乱数!N110 -> 16.26891817 | E112: =+正規乱数!O110 -> 0.1028069022 | F112: 24.40337725 | G112: 12.20168862 | H112: 21.13394464 | I112: 16.99141842 | J112: 3.208221956 | K112: 1.154700538 | L112: 12.55811411 | M112: 1.292143781 | O112: 1.277360533 | P112: 1.262577286 | Q112: 1.247794038 | R112: 1.233010791 | S112: 1.218227543 | T112: 1.203444296 | U112: 1.188661048 | V112: 1.173877801 | W112: 1.159094553 | X112: 1.144311306 | Y112: 1.129528058 | Z112: 1.114744811 | AA112: 1.099961563 | AB112: 1.085178316 | AC112: 1.070395068 | AD112: 1.055611821 | AE112: 1.040828573 | AF112: 1.026045326 | AG112: 1.011262078 | AH112: 0.9964788307 | AI112: 0.9816955832
A113: 103 | B113: =+正規乱数!L111 -> 8.442357928 | C113: =+正規乱数!M111 -> 38.28549849 | D113: =+正規乱数!N111 -> 18.80992819 | E113: =+正規乱数!O111 -> 0.1176881692 | F113: 28.21489228 | G113: 14.10744614 | H113: 24.43481348 | I113: 16.99141842 | J113: 5.875380885 | K113: 1.154700538 | L113: 9.748395245 | M113: 1.107484372 | O113: 1.092566127 | P113: 1.077647882 | Q113: 1.062729637 | R113: 1.047811392 | S113: 1.032893147 | T113: 1.017974902 | U113: 1.003056657 | V113: 0.9881384124 | W113: 0.9732201675 | X113: 0.9583019226 | Y113: 0.9433836776 | Z113: 0.9284654327 | AA113: 0.9135471878 | AB113: 0.8986289428 | AC113: 0.8837106979 | AD113: 0.868792453 | AE113: 0.853874208 | AF113: 0.8389559631 | AG113: 0.8240377182 | AH113: 0.8091194733 | AI113: 0.7942012283
A114: 104 | B114: =+正規乱数!L112 -> 13.44031274 | C114: =+正規乱数!M112 -> 36.44169393 | D114: =+正規乱数!N112 -> 18.8325718 | E114: =+正規乱数!O112 -> 0.1269903601 | F114: 28.24885769 | G114: 14.12442885 | H114: 24.46422839 | I114: 16.99141842 | J114: 5.517828942 | K114: 1.154700538 | L114: 15.51953636 | M114: 1.489431221 | O114: 1.474391059 | P114: 1.459350896 | Q114: 1.444310734 | R114: 1.429270572 | S114: 1.414230409 | T114: 1.399190247 | U114: 1.384150084 | V114: 1.369109922 | W114: 1.35406976 | X114: 1.339029597 | Y114: 1.323989435 | Z114: 1.308949272 | AA114: 1.29390911 | AB114: 1.278868948 | AC114: 1.263828785 | AD114: 1.248788623 | AE114: 1.23374846 | AF114: 1.218708298 | AG114: 1.203668136 | AH114: 1.188627973 | AI114: 1.173587811
A115: 105 | B115: =+正規乱数!L113 -> 7.77903213 | C115: =+正規乱数!M113 -> 38.09536177 | D115: =+正規乱数!N113 -> 18.20523694 | E115: =+正規乱数!O113 -> 0.1713640344 | F115: 27.30785542 | G115: 13.65392771 | H115: 23.64929651 | I115: 16.99141842 | J115: 5.219572983 | K115: 1.154700538 | L115: 8.982452588 | M115: 1.040142139 | O115: 1.017851137 | P115: 0.9955601354 | Q115: 0.9732691336 | R115: 0.9509781319 | S115: 0.9286871301 | T115: 0.9063961283 | U115: 0.8841051266 | V115: 0.8618141248 | W115: 0.8395231231 | X115: 0.8172321213 | Y115: 0.7949411196 | Z115: 0.7726501178 | AA115: 0.750359116 | AB115: 0.7280681143 | AC115: 0.7057771125 | AD115: 0.6834861108 | AE115: 0.661195109 | AF115: 0.6389041072 | AG115: 0.6166131055 | AH115: 0.5943221037 | AI115: 0.572031102
A116: 106 | B116: =+正規乱数!L114 -> 10.67807539 | C116: =+正規乱数!M114 -> 37.88233426 | D116: =+正規乱数!N114 -> 19.07383169 | E116: =+正規乱数!O114 -> 0.2205076687 | F116: 28.61074754 | G116: 14.30537377 | H116: 24.77763419 | I116: 16.99141842 | J116: 6.057548947 | K116: 1.154700538 | L116: 12.3299794 | M116: 1.285358121 | O116: 1.258189765 | P116: 1.231021409 | Q116: 1.203853053 | R116: 1.176684697 | S116: 1.149516342 | T116: 1.122347986 | U116: 1.09517963 | V116: 1.068011274 | W116: 1.040842918 | X116: 1.013674562 | Y116: 0.9865062063 | Z116: 0.9593378504 | AA116: 0.9321694945 | AB116: 0.9050011387 | AC116: 0.8778327828 | AD116: 0.8506644269 | AE116: 0.823496071 | AF116: 0.7963277152 | AG116: 0.7691593593 | AH116: 0.7419910034 | AI116: 0.7148226475
A117: 107 | B117: =+正規乱数!L115 -> 12.39985517 | C117: =+正規乱数!M115 -> 29.9861659 | D117: =+正規乱数!N115 -> 16.48429417 | E117: =+正規乱数!O115 -> 0.1484308289 | F117: 24.72644125 | G117: 12.36322063 | H117: 21.41372627 | I117: 16.99141842 | J117: 2.551797133 | K117: 1.154700538 | L117: 14.31811944 | M117: 1.364524429 | O117: 1.348829548 | P117: 1.333134667 | Q117: 1.317439785 | R117: 1.301744904 | S117: 1.286050022 | T117: 1.270355141 | U117: 1.25466026 | V117: 1.238965378 | W117: 1.223270497 | X117: 1.207575615 | Y117: 1.191880734 | Z117: =+(($H117-$I117-Z$10*$G$6*$E117*$K117)*TAN($C117*PI()/180)+$L117)/$G117 -> 1.176185853 | AA117: 1.160490971 | AB117: 1.14479609 | AC117: 1.129101208 | AD117: 1.113406327 | AE117: 1.097711446 | AF117: 1.082016564 | AG117: 1.066321683 | AH117: 1.050626801 | AI117: 1.03493192
A118: 108 | B118: =+正規乱数!L116 -> 10.51450091 | C118: =+正規乱数!M116 -> 35.54731943 | D118: =+正規乱数!N116 -> 17.78700364 | E118: =+正規乱数!O116 -> 0.1586282602 | F118: 26.68050546 | G118: 13.34025273 | H118: 23.10599552 | I118: 16.99141842 | J118: 4.369109181 | K118: 1.154700538 | L118: 12.14109986 | M118: 1.237623407 | O118: 1.218374267 | P118: 1.199125126 | Q118: 1.179875985 | R118: 1.160626844 | S118: 1.141377704 | T118: 1.122128563 | U118: 1.102879422 | V118: 1.083630282 | W118: 1.064381141 | X118: 1.045132 | Y118: 1.025882859 | Z118: 1.006633719 | AA118: 0.987384578 | AB118: 0.9681354372 | AC118: 0.9488862965 | AD118: 0.9296371558 | AE118: 0.9103880151 | AF118: 0.8911388744 | AG118: 0.8718897336 | AH118: 0.8526405929 | AI118: 0.8333914522
A119: 109 | B119: =+正規乱数!L117 -> 9.527772962 | C119: =+正規乱数!M117 -> 31.87404221 | D119: =+正規乱数!N117 -> 16.92017236 | E119: =+正規乱数!O117 -> 0.118608734 | F119: 25.38025853 | G119: 12.69012927 | H119: 21.97994865 | I119: 16.99141842 | J119: 3.101951798 | K119: 1.154700538 | L119: 11.00172457 | M119: 1.111389496 | O119: 1.09822266 | P119: 1.085055823 | Q119: 1.071888987 | R119: 1.058722151 | S119: 1.045555315 | T119: 1.032388479 | U119: 1.019221642 | V119: 1.006054806 | W119: 0.9928879699 | X119: 0.9797211337 | Y119: 0.9665542975 | Z119: 0.9533874613 | AA119: 0.9402206251 | AB119: 0.9270537889 | AC119: 0.9138869527 | AD119: 0.9007201165 | AE119: 0.8875532803 | AF119: 0.8743864441 | AG119: 0.8612196079 | AH119: 0.8480527717 | AI119: 0.8348859355
A120: 110 | B120: =+正規乱数!L118 -> 8.918107291 | C120: =+正規乱数!M118 -> 31.84566276 | D120: =+正規乱数!N118 -> 18.13737715 | E120: =+正規乱数!O118 -> 0.1214570233 | F120: 27.20606572 | G120: 13.60303286 | H120: 23.56114405 | I120: 16.99141842 | J120: 4.080654731 | K120: 1.154700538 | L120: 10.29774329 | M120: 1.056999433 | O120: 1.044435145 | P120: 1.031870857 | Q120: 1.01930657 | R120: 1.006742282 | S120: 0.9941779941 | T120: 0.9816137064 | U120: 0.9690494186 | V120: 0.9564851308 | W120: 0.9439208431 | X120: 0.9313565553 | Y120: 0.9187922675 | Z120: 0.9062279798 | AA120: 0.893663692 | AB120: 0.8810994043 | AC120: 0.8685351165 | AD120: 0.8559708287 | AE120: 0.843406541 | AF120: 0.8308422532 | AG120: 0.8182779654 | AH120: 0.8057136777 | AI120: 0.7931493899
A121: 111 | B121: =+正規乱数!L119 -> 13.0296111 | C121: =+正規乱数!M119 -> 33.68528271 | D121: =+正規乱数!N119 -> 19.88815571 | E121: =+正規乱数!O119 -> 0.1138353427 | F121: 29.83223356 | G121: 14.91611678 | H121: 25.83547212 | I121: 16.99141842 | J121: 5.894969026 | K121: 1.154700538 | L121: 15.04529895 | M121: 1.4038686 | O121: 1.392344159 | P121: 1.380819718 | Q121: 1.369295277 | R121: 1.357770835 | S121: 1.346246394 | T121: 1.334721953 | U121: 1.323197512 | V121: 1.311673071 | W121: 1.30014863 | X121: 1.288624189 | Y121: 1.277099748 | Z121: 1.265575307 | AA121: 1.254050865 | AB121: 1.242526424 | AC121: 1.231001983 | AD121: 1.219477542 | AE121: 1.207953101 | AF121: 1.19642866 | AG121: 1.184904219 | AH121: 1.173379778 | AI121: 1.161855337
A122: 112 | B122: =+正規乱数!L120 -> 11.31049762 | C122: =+正規乱数!M120 -> 30.00703518 | D122: =+正規乱数!N120 -> 19.46338991 | E122: =+正規乱数!O120 -> 0.1263573031 | F122: 29.19508487 | G122: 14.59754243 | H122: 25.28368516 | I122: 16.99141842 | J122: 4.788900108 | K122: 1.154700538 | L122: 13.0602377 | M122: 1.222749506 | O122: 1.21142416 | P122: 1.200098814 | Q122: 1.188773468 | R122: 1.177448121 | S122: 1.166122775 | T122: 1.154797429 | U122: 1.143472083 | V122: 1.132146736 | W122: 1.12082139 | X122: 1.109496044 | Y122: 1.098170698 | Z122: 1.086845352 | AA122: 1.075520005 | AB122: 1.064194659 | AC122: 1.052869313 | AD122: 1.041543967 | AE122: 1.03021862 | AF122: 1.018893274 | AG122: 1.007567928 | AH122: 0.9962425818 | AI122: 0.9849172356
A123: 113 | B123: =+正規乱数!L121 -> 9.052549355 | C123: =+正規乱数!M121 -> 30.10390074 | D123: =+正規乱数!N121 -> 17.20450413 | E123: =+正規乱数!O121 -> 0.09937115714 | F123: 25.80675619 | G123: 12.90337809 | H123: 22.34930645 | I123: 16.99141842 | J123: 3.106346416 | K123: 1.154700538 | L123: 10.45298361 | M123: 1.050835675 | O123: 1.04072031 | P123: 1.030604946 | Q123: 1.020489581 | R123: 1.010374216 | S123: 1.000258851 | T123: 0.9901434865 | U123: 0.9800281217 | V123: 0.9699127569 | W123: 0.9597973922 | X123: 0.9496820274 | Y123: 0.9395666626 | Z123: 0.9294512979 | AA123: 0.9193359331 | AB123: 0.9092205683 | AC123: 0.8991052036 | AD123: 0.8889898388 | AE123: 0.878874474 | AF123: 0.8687591093 | AG123: 0.8586437445 | AH123: 0.8485283797 | AI123: 0.838413015
A124: 114 | B124: =+正規乱数!L122 -> 8.742099177 | C124: =+正規乱数!M122 -> 33.68698013 | D124: =+正規乱数!N122 -> 18.9562234 | E124: =+正規乱数!O122 -> 0.2134059818 | F124: 28.4343351 | G124: 14.21716755 | H124: 24.62485654 | I124: 16.99141842 | J124: 5.088364621 | K124: 1.154700538 | L124: 10.09450663 | M124: 1.067925182 | O124: 1.045256832 | P124: 1.022588482 | Q124: 0.9999201316 | R124: 0.9772517814 | S124: 0.9545834312 | T124: 0.931915081 | U124: 0.9092467308 | V124: 0.8865783806 | W124: 0.8639100304 | X124: 0.8412416801 | Y124: 0.8185733299 | Z124: 0.7959049797 | AA124: 0.7732366295 | AB124: 0.7505682793 | AC124: 0.7278999291 | AD124: 0.7052315789 | AE124: 0.6825632286 | AF124: 0.6598948784 | AG124: 0.6372265282 | AH124: 0.614558178 | AI124: 0.5918898278
A125: 115 | B125: =+正規乱数!L123 -> 13.43323257 | C125: =+正規乱数!M123 -> 36.21175896 | D125: =+正規乱数!N123 -> 16.71847532 | E125: =+正規乱数!O123 -> 0.1247766835 | F125: 25.07771297 | G125: 12.53885649 | H125: 21.7179365 | I125: 16.99141842 | J125: 3.460778172 | K125: 1.154700538 | L125: 15.51136088 | M125: 1.513067724 | O125: 1.496560414 | P125: 1.480053103 | Q125: 1.463545793 | R125: 1.447038483 | S125: 1.430531172 | T125: 1.414023862 | U125: 1.397516552 | V125: 1.381009241 | W125: 1.364501931 | X125: 1.34799462 | Y125: 1.33148731 | Z125: 1.31498 | AA125: 1.298472689 | AB125: 1.281965379 | AC125: 1.265458069 | AD125: 1.248950758 | AE125: 1.232443448 | AF125: 1.215936137 | AG125: 1.199428827 | AH125: 1.182921517 | AI125: 1.166414206
A126: 116 | B126: =+正規乱数!L124 -> 9.193704101 | C126: =+正規乱数!M124 -> 33.11060078 | D126: =+正規乱数!N124 -> 19.71833106 | E126: =+正規乱数!O124 -> 0.1760592136 | F126: 29.57749659 | G126: 14.78874829 | H126: 25.61486343 | I126: 16.99141842 | J126: 5.623826875 | K126: 1.154700538 | L126: 10.61597507 | M126: 1.098118761 | O126: 1.08052953 | P126: 1.062940298 | Q126: 1.045351067 | R126: 1.027761836 | S126: 1.010172605 | T126: 0.9925833737 | U126: 0.9749941425 | V126: 0.9574049114 | W126: 0.9398156802 | X126: 0.922226449 | Y126: 0.9046372179 | Z126: 0.8870479867 | AA126: 0.8694587555 | AB126: 0.8518695244 | AC126: 0.8342802932 | AD126: 0.816691062 | AE126: 0.7991018309 | AF126: 0.7815125997 | AG126: 0.7639233685 | AH126: 0.7463341374 | AI126: 0.7287449062
A127: 117 | B127: =+正規乱数!L125 -> 12.6908603 | C127: =+正規乱数!M125 -> 36.61123248 | D127: =+正規乱数!N125 -> 17.04598822 | E127: =+正規乱数!O125 -> 0.1289546122 | F127: 25.56898232 | G127: 12.78449116 | H127: 22.14338824 | I127: 16.99141842 | J127: 3.827757769 | K127: 1.154700538 | L127: 14.65414322 | M127: 1.445650105 | O127: 1.428671855 | P127: 1.411693604 | Q127: 1.394715353 | R127: 1.377737103 | S127: 1.360758852 | T127: 1.343780601 | U127: 1.326802351 | V127: 1.3098241 | W127: 1.292845849 | X127: 1.275867599 | Y127: 1.258889348 | Z127: 1.241911098 | AA127: 1.224932847 | AB127: 1.207954596 | AC127: 1.190976346 | AD127: 1.173998095 | AE127: 1.157019844 | AF127: 1.140041594 | AG127: 1.123063343 | AH127: 1.106085093 | AI127: 1.089106842
A128: 118 | B128: =+正規乱数!L126 -> 10.80985356 | C128: =+正規乱数!M126 -> 32.64199746 | D128: =+正規乱数!N126 -> 19.14200281 | E128: =+正規乱数!O126 -> 0.112519804 | F128: 28.71300422 | G128: 14.35650211 | H128: 24.86619107 | I128: 16.99141842 | J128: 5.044263972 | K128: 1.154700538 | L128: 12.48214372 | M128: 1.220799298 | O128: 1.209425422 | P128: 1.198051546 | Q128: 1.18667767 | R128: 1.175303795 | S128: 1.163929919 | T128: 1.152556043 | U128: 1.141182167 | V128: 1.129808292 | W128: 1.118434416 | X128: 1.10706054 | Y128: 1.095686664 | Z128: 1.084312788 | AA128: 1.072938913 | AB128: 1.061565037 | AC128: 1.050191161 | AD128: 1.038817285 | AE128: 1.02744341 | AF128: 1.016069534 | AG128: 1.004695658 | AH128: 0.9933217823 | AI128: 0.9819479066
A129: 119 | B129: =+正規乱数!L127 -> 12.01817674 | C129: =+正規乱数!M127 -> 36.75288954 | D129: =+正規乱数!N127 -> 20.69591988 | E129: =+正規乱数!O127 -> 0.1269743319 | F129: 31.04387982 | G129: 15.52193991 | H129: 26.88478856 | I129: 16.99141842 | J129: 7.388507071 | K129: 1.154700538 | L129: 13.87739516 | M129: 1.37005441 | O129: 1.356213943 | P129: 1.342373476 | Q129: 1.328533009 | R129: 1.314692542 | S129: 1.300852075 | T129: 1.287011608 | U129: 1.273171141 | V129: 1.259330674 | W129: 1.245490207 | X129: 1.23164974 | Y129: 1.217809272 | Z129: 1.203968805 | AA129: 1.190128338 | AB129: 1.176287871 | AC129: 1.162447404 | AD129: 1.148606937 | AE129: 1.13476647 | AF129: 1.120926003 | AG129: 1.107085536 | AH129: 1.093245069 | AI129: 1.079404602
A130: 120 | B130: =+正規乱数!L128 -> 12.1917838 | C130: =+正規乱数!M128 -> 38.69764884 | D130: =+正規乱数!N128 -> 16.96070414 | E130: =+正規乱数!O128 -> 0.1608971654 | F130: 25.44105621 | G130: 12.7205281 | H130: 22.03260097 | I130: 16.99141842 | J130: 4.038409165 | K130: 1.154700538 | L130: 14.07785932 | M130: 1.424175815 | O130: 1.401220169 | P130: 1.378264523 | Q130: 1.355308878 | R130: 1.332353232 | S130: 1.309397586 | T130: 1.28644194 | U130: 1.263486294 | V130: 1.240530648 | W130: 1.217575002 | X130: 1.194619356 | Y130: 1.17166371 | Z130: 1.148708064 | AA130: 1.125752419 | AB130: 1.102796773 | AC130: 1.079841127 | AD130: 1.056885481 | AE130: 1.033929835 | AF130: 1.010974189 | AG130: 0.9880185432 | AH130: 0.9650628973 | AI130: 0.9421072514
A131: 121 | B131: =+正規乱数!L129 -> 10.27992991 | C131: =+正規乱数!M129 -> 35.1968323 | D131: =+正規乱数!N129 -> 16.65021254 | E131: =+正規乱数!O129 -> 0.128246758 | F131: 24.97531881 | G131: 12.4876594 | H131: 21.62926056 | I131: 16.99141842 | J131: 3.271253741 | K131: 1.154700538 | L131: 11.8702406 | M131: 1.212516601 | O131: 1.196105717 | P131: 1.179694832 | Q131: 1.163283947 | R131: 1.146873063 | S131: 1.130462178 | T131: 1.114051293 | U131: 1.097640409 | V131: 1.081229524 | W131: 1.06481864 | X131: 1.048407755 | Y131: 1.03199687 | Z131: 1.015585986 | AA131: 0.9991751012 | AB131: 0.9827642166 | AC131: 0.9663533319 | AD131: 0.9499424473 | AE131: 0.9335315627 | AF131: 0.9171206781 | AG131: 0.9007097935 | AH131: 0.8842989088 | AI131: 0.8678880242
A132: 122 | B132: =+正規乱数!L130 -> 13.08131429 | C132: =+正規乱数!M130 -> 40.0771663 | D132: =+正規乱数!N130 -> 19.55745242 | E132: =+正規乱数!O130 -> 0.115854562 | F132: 29.33617863 | G132: 14.66808932 | H132: 25.40587594 | I132: 16.99141842 | J132: 7.079901885 | K132: 1.154700538 | L132: 15.10500066 | M132: 1.512460285 | O132: 1.497404303 | P132: 1.482348321 | Q132: 1.467292339 | R132: 1.452236357 | S132: 1.437180376 | T132: 1.422124394 | U132: 1.407068412 | V132: 1.39201243 | W132: 1.376956448 | X132: 1.361900466 | Y132: 1.346844485 | Z132: 1.331788503 | AA132: 1.316732521 | AB132: 1.301676539 | AC132: 1.286620557 | AD132: 1.271564575 | AE132: 1.256508594 | AF132: 1.241452612 | AG132: 1.22639663 | AH132: 1.211340648 | AI132: 1.196284666
A133: 123 | B133: =+正規乱数!L131 -> 10.42256908 | C133: =+正規乱数!M131 -> 37.88350125 | D133: =+正規乱数!N131 -> 20.18638232 | E133: =+正規乱数!O131 -> 0.1221796307 | F133: 30.27957348 | G133: 15.13978674 | H133: 26.22287985 | I133: 16.99141842 | J133: 7.18222835 | K133: 1.154700538 | L133: 12.03494613 | M133: 1.269316061 | O133: 1.255091589 | P133: 1.240867116 | Q133: 1.226642644 | R133: 1.212418171 | S133: 1.198193699 | T133: 1.183969226 | U133: 1.169744754 | V133: 1.155520281 | W133: 1.141295809 | X133: 1.127071336 | Y133: =+(($H133-$I133-Y$10*$G$6*$E133*$K133)*TAN($C133*PI()/180)+$L133)/$G133 -> 1.112846863 | Z133: 1.098622391 | AA133: 1.084397918 | AB133: 1.070173446 | AC133: 1.055948973 | AD133: 1.041724501 | AE133: 1.027500028 | AF133: 1.013275556 | AG133: 0.9990510832 | AH133: 0.9848266106 | AI133: 0.9706021381
A134: 124 | B134: =+正規乱数!L132 -> 12.01512133 | C134: =+正規乱数!M132 -> 34.83699356 | D134: =+正規乱数!N132 -> 18.61651406 | E134: =+正規乱数!O132 -> 0.1574334029 | F134: 27.92477109 | G134: 13.96238555 | H134: 24.18356116 | I134: 16.99141842 | J134: 5.005559317 | K134: 1.154700538 | L134: 13.87386707 | M134: 1.352163376 | O134: 1.334384679 | P134: 1.316605981 | Q134: 1.298827284 | R134: 1.281048586 | S134: 1.263269888 | T134: 1.245491191 | U134: 1.227712493 | V134: 1.209933796 | W134: 1.192155098 | X134: 1.174376401 | Y134: 1.156597703 | Z134: 1.138819006 | AA134: 1.121040308 | AB134: 1.10326161 | AC134: 1.085482913 | AD134: 1.067704215 | AE134: 1.049925518 | AF134: 1.03214682 | AG134: 1.014368123 | AH134: 0.9965894252 | AI134: 0.9788107276
A135: 125 | B135: =+正規乱数!L133 -> 9.973734963 | C135: =+正規乱数!M133 -> 34.32950639 | D135: =+正規乱数!N133 -> 17.9856789 | E135: =+正規乱数!O133 -> 0.2142939825 | F135: 26.97851834 | G135: 13.48925917 | H135: 23.36408224 | I135: 16.99141842 | J135: 4.351947168 | K135: 1.154700538 | L135: 11.51667713 | M135: 1.176389607 | O135: 1.15181125 | P135: 1.127232893 | Q135: 1.102654535 | R135: 1.078076178 | S135: 1.053497821 | T135: 1.028919463 | U135: 1.004341106 | V135: 0.9797627485 | W135: 0.9551843911 | X135: 0.9306060338 | Y135: 0.9060276764 | Z135: 0.8814493191 | AA135: 0.8568709618 | AB135: 0.8322926044 | AC135: 0.8077142471 | AD135: 0.7831358897 | AE135: 0.7585575324 | AF135: 0.733979175 | AG135: 0.7094008177 | AH135: 0.6848224603 | AI135: 0.660244103
A136: 126 | B136: =+正規乱数!L134 -> 12.98218858 | C136: =+正規乱数!M134 -> 37.48374848 | D136: =+正規乱数!N134 -> 18.71361136 | E136: =+正規乱数!O134 -> 0.1937869752 | F136: 28.07041705 | G136: 14.03520852 | H136: 24.30969426 | I136: 16.99141842 | J136: 5.612213299 | K136: 1.154700538 | L136: 14.99054014 | M136: 1.467933547 | O136: 1.443945247 | P136: 1.419956947 | Q136: 1.395968646 | R136: 1.371980346 | S136: 1.347992045 | T136: 1.324003745 | U136: 1.300015444 | V136: 1.276027144 | W136: 1.252038843 | X136: 1.228050543 | Y136: 1.204062242 | Z136: 1.180073942 | AA136: 1.156085641 | AB136: 1.132097341 | AC136: 1.10810904 | AD136: 1.08412074 | AE136: 1.06013244 | AF136: 1.036144139 | AG136: 1.012155839 | AH136: 0.9881675381 | AI136: 0.9641792376
A137: 127 | B137: =+正規乱数!L135 -> 6.939430759 | C137: =+正規乱数!M135 -> 33.48361936 | D137: =+正規乱数!N135 -> 17.35245674 | E137: =+正規乱数!O135 -> 0.1360052063 | F137: 26.02868511 | G137: 13.01434255 | H137: 22.54150253 | I137: 16.99141842 | J137: 3.671239078 | K137: 1.154700538 | L137: 8.012964434 | M137: 0.8977943728 | O137: 0.8821335429 | P137: 0.866472713 | Q137: 0.850811883 | R137: 0.8351510531 | S137: 0.8194902231 | T137: 0.8038293932 | U137: 0.7881685632 | V137: 0.7725077333 | W137: 0.7568469033 | X137: 0.7411860734 | Y137: 0.7255252434 | Z137: 0.7098644135 | AA137: 0.6942035836 | AB137: 0.6785427536 | AC137: 0.6628819237 | AD137: 0.6472210937 | AE137: 0.6315602638 | AF137: 0.6158994338 | AG137: 0.6002386039 | AH137: 0.5845777739 | AI137: 0.568916944
A138: 128 | B138: =+正規乱数!L136 -> 9.491755621 | C138: =+正規乱数!M136 -> 38.78738397 | D138: =+正規乱数!N136 -> 18.58314358 | E138: =+正規乱数!O136 -> 0.2106745479 | F138: 27.87471537 | G138: 13.93735768 | H138: 24.14021163 | I138: 16.99141842 | J138: 5.745186091 | K138: 1.154700538 | L138: 10.96013533 | M138: 1.198600323 | O138: 1.171078869 | P138: 1.143557416 | Q138: 1.116035963 | R138: 1.08851451 | S138: 1.060993057 | T138: 1.033471603 | U138: 1.00595015 | V138: 0.9784286969 | W138: 0.9509072437 | X138: 0.9233857905 | Y138: 0.8958643373 | Z138: 0.8683428841 | AA138: 0.8408214309 | AB138: 0.8132999777 | AC138: 0.7857785245 | AD138: 0.7582570713 | AE138: 0.7307356181 | AF138: 0.7032141649 | AG138: 0.6756927117 | AH138: 0.6481712585 | AI138: 0.6206498053
A139: 129 | B139: =+正規乱数!L137 -> 11.68636182 | C139: =+正規乱数!M137 -> 40.37638448 | D139: =+正規乱数!N137 -> 19.00122777 | E139: =+正規乱数!O137 -> 0.1065175257 | F139: 28.50184165 | G139: 14.25092083 | H139: 24.68331892 | I139: 16.99141842 | J139: 6.540855665 | K139: 1.154700538 | L139: 13.49424829 | M139: 1.40588136 | O139: 1.39148186 | P139: 1.377082359 | Q139: 1.362682859 | R139: 1.348283359 | S139: 1.333883858 | T139: 1.319484358 | U139: 1.305084858 | V139: 1.290685358 | W139: 1.276285857 | X139: 1.261886357 | Y139: 1.247486857 | Z139: 1.233087356 | AA139: 1.218687856 | AB139: 1.204288356 | AC139: 1.189888855 | AD139: 1.175489355 | AE139: 1.161089855 | AF139: 1.146690354 | AG139: 1.132290854 | AH139: 1.117891354 | AI139: 1.103491853
A140: 130 | B140: =+正規乱数!L138 -> 12.16852329 | C140: =+正規乱数!M138 -> 38.79644768 | D140: =+正規乱数!N138 -> 17.27431721 | E140: =+正規乱数!O138 -> 0.09329278262 | F140: 25.91147582 | G140: =+F140*SIN($G$2*PI()/180) -> 12.95573791 | H140: 22.43999631 | I140: =+$G$5*$G$4*$G$6/COS($G$2*PI()/180) -> 16.99141842 | J140: 4.380212932 | K140: =+$G$4/COS($G$2*PI()/180) -> 1.154700538 | L140: 14.05100039 | M140: 1.422629375 | O140: 1.409514434 | P140: 1.396399494 | Q140: 1.383284554 | R140: 1.370169613 | S140: 1.357054673 | T140: 1.343939732 | U140: 1.330824792 | V140: 1.317709851 | W140: 1.304594911 | X140: 1.29147997 | Y140: 1.27836503 | Z140: 1.265250089 | AA140: 1.252135149 | AB140: 1.239020208 | AC140: 1.225905268 | AD140: 1.212790327 | AE140: 1.199675387 | AF140: 1.186560446 | AG140: 1.173445506 | AH140: 1.160330565 | AI140: 1.147215625
A141: 131 | B141: =+正規乱数!L139 -> 8.711446177 | C141: =+正規乱数!M139 -> 37.97528897 | D141: =+正規乱数!N139 -> 17.69579276 | E141: =+正規乱数!O139 -> 0.1975371711 | F141: 26.54368914 | G141: 13.27184457 | H141: 22.98750911 | I141: 16.99141842 | J141: 4.680496282 | K141: 1.154700538 | L141: 10.05911159 | M141: 1.110592261 | O141: 1.084270822 | P141: 1.057949384 | Q141: 1.031627945 | R141: 1.005306506 | S141: 0.9789850669 | T141: 0.952663628 | U141: 0.9263421891 | V141: 0.9000207503 | W141: 0.8736993114 | X141: 0.8473778725 | Y141: 0.8210564336 | Z141: 0.7947349948 | AA141: 0.7684135559 | AB141: 0.742092117 | AC141: 0.7157706781 | AD141: 0.6894492393 | AE141: =+(($H141-$I141-AE$10*$G$6*$E141*$K141)*TAN($C141*PI()/180)+$L141)/$G141 -> 0.6631278004 | AF141: 0.6368063615 | AG141: 0.6104849226 | AH141: 0.5841634838 | AI141: 0.5578420449
A142: 132 | B142: =+正規乱数!L140 -> 11.01685229 | C142: =+正規乱数!M140 -> 37.51825989 | D142: =+正規乱数!N140 -> 18.62334005 | E142: =+正規乱数!O140 -> 0.1145207032 | F142: 27.93501008 | G142: 13.96750504 | H142: 24.19242839 | I142: 16.99141842 | J142: 5.529176337 | K142: 1.154700538 | L142: 12.72116528 | M142: 1.306628604 | O142: 1.292365943 | P142: 1.278103281 | Q142: 1.26384062 | R142: 1.249577959 | S142: 1.235315297 | T142: 1.221052636 | U142: 1.206789975 | V142: 1.192527313 | W142: 1.178264652 | X142: 1.164001991 | Y142: 1.149739329 | Z142: 1.135476668 | AA142: 1.121214007 | AB142: 1.106951346 | AC142: 1.092688684 | AD142: 1.078426023 | AE142: 1.064163362 | AF142: 1.0499007 | AG142: 1.035638039 | AH142: 1.021375378 | AI142: 1.007112716
A143: 133 | B143: =+正規乱数!L141 -> 9.575932896 | C143: =+正規乱数!M141 -> 40.02758008 | D143: =+正規乱数!N141 -> 19.2429527 | E143: =+正規乱数!O141 -> 0.1640652566 | F143: 28.86442906 | G143: 14.43221453 | H143: 24.99732883 | I143: 16.99141842 | J143: 6.724326253 | K143: 1.154700538 | L143: 11.05733487 | M143: 1.232081264 | O143: 1.210449593 | P143: 1.188817922 | Q143: 1.167186251 | R143: 1.14555458 | S143: 1.12392291 | T143: 1.102291239 | U143: 1.080659568 | V143: 1.059027897 | W143: 1.037396226 | X143: 1.015764555 | Y143: 0.9941328837 | Z143: 0.9725012127 | AA143: 0.9508695417 | AB143: 0.9292378707 | AC143: 0.9076061997 | AD143: 0.8859745288 | AE143: 0.8643428578 | AF143: 0.8427111868 | AG143: 0.8210795158 | AH143: 0.7994478449 | AI143: 0.7778161739
A144: 134 | B144: =+正規乱数!L142 -> 9.591522606 | C144: =+正規乱数!M142 -> 33.93645835 | D144: =+正規乱数!N142 -> 17.68381528 | E144: =+正規乱数!O142 -> 0.1835765907 | F144: 26.52572292 | G144: 13.26286146 | H144: 22.9719499 | I144: 16.99141842 | J144: 4.024276631 | K144: 1.154700538 | L144: 11.07533632 | M144: 1.138488326 | O144: 1.117387645 | P144: 1.096286963 | Q144: 1.075186282 | R144: 1.0540856 | S144: 1.032984918 | T144: 1.011884237 | U144: 0.9907835552 | V144: 0.9696828736 | W144: 0.948582192 | X144: 0.9274815104 | Y144: 0.9063808288 | Z144: 0.8852801472 | AA144: 0.8641794656 | AB144: 0.843078784 | AC144: 0.8219781024 | AD144: 0.8008774208 | AE144: 0.7797767392 | AF144: 0.7586760576 | AG144: 0.737575376 | AH144: 0.7164746943 | AI144: 0.6953740127
A145: 135 | B145: =+正規乱数!L143 -> 10.19008871 | C145: =+正規乱数!M143 -> 36.42168986 | D145: =+正規乱数!N143 -> 18.58194057 | E145: =+正規乱数!O143 -> 0.1423405717 | F145: 27.87291086 | G145: 13.93645543 | H145: 24.13864888 | I145: 16.99141842 | J145: 5.273570247 | K145: 1.154700538 | L145: 11.76650092 | M145: 1.222697641 | O145: 1.205624568 | P145: 1.188551495 | Q145: 1.171478422 | R145: 1.154405349 | S145: 1.137332276 | T145: 1.120259203 | U145: 1.10318613 | V145: 1.086113057 | W145: 1.069039984 | X145: 1.051966911 | Y145: 1.034893838 | Z145: 1.017820765 | AA145: 1.000747692 | AB145: 0.9836746189 | AC145: 0.9666015459 | AD145: 0.949528473 | AE145: 0.9324554 | AF145: 0.915382327 | AG145: 0.898309254 | AH145: 0.8812361811 | AI145: 0.8641631081
A146: 136 | B146: =+正規乱数!L144 -> 9.587191883 | C146: =+正規乱数!M144 -> 38.07567958 | D146: =+正規乱数!N144 -> 19.19580815 | E146: =+正規乱数!O144 -> 0.1768781869 | F146: 28.79371223 | G146: 14.39685611 | H146: 24.93608626 | I146: 16.99141842 | J146: 6.223971509 | K146: 1.154700538 | L146: 11.07033563 | M146: 1.201255816 | O146: 1.179450276 | P146: 1.157644737 | Q146: 1.135839197 | R146: 1.114033658 | S146: 1.092228118 | T146: 1.070422579 | U146: 1.048617039 | V146: 1.0268115 | W146: 1.00500596 | X146: 0.9832004208 | Y146: 0.9613948812 | Z146: 0.9395893417 | AA146: 0.9177838022 | AB146: 0.8959782627 | AC146: 0.8741727231 | AD146: 0.8523671836 | AE146: 0.8305616441 | AF146: 0.8087561046 | AG146: 0.786950565 | AH146: 0.7651450255 | AI146: 0.743339486
A147: 137 | B147: =+正規乱数!L145 -> 8.228984349 | C147: =+正規乱数!M145 -> 32.9977279 | D147: =+正規乱数!N145 -> 16.754033 | E147: =+正規乱数!O145 -> 0.1811319842 | F147: 25.1310495 | G147: 12.56552475 | H147: 21.76412729 | I147: 16.99141842 | J147: 3.099164301 | K147: 1.154700538 | L147: 9.502012658 | M147: 1.002837304 | O147: 0.9816311188 | P147: 0.960424934 | Q147: 0.9392187491 | R147: 0.9180125642 | S147: 0.8968063793 | T147: 0.8756001944 | U147: 0.8543940095 | V147: 0.8331878246 | W147: 0.8119816398 | X147: 0.7907754549 | Y147: 0.76956927 | Z147: 0.7483630851 | AA147: 0.7271569002 | AB147: 0.7059507153 | AC147: 0.6847445304 | AD147: 0.6635383456 | AE147: 0.6423321607 | AF147: 0.6211259758 | AG147: 0.5999197909 | AH147: 0.578713606 | AI147: 0.5575074211
A148: 138 | B148: =+正規乱数!L146 -> 9.813353446 | C148: =+正規乱数!M146 -> 36.91057716 | D148: =+正規乱数!N146 -> 19.91306478 | E148: =+正規乱数!O146 -> 0.1178502081 | F148: 29.86959717 | G148: 14.93479858 | H148: 25.86782995 | I148: 16.99141842 | J148: 6.667161042 | K148: 1.154700538 | L148: 11.33148451 | M148: 1.205148195 | O148: 1.191720456 | P148: 1.178292718 | Q148: 1.164864979 | R148: 1.151437241 | S148: 1.138009503 | T148: 1.124581764 | U148: 1.111154026 | V148: 1.097726287 | W148: 1.084298549 | X148: 1.070870811 | Y148: 1.057443072 | Z148: 1.044015334 | AA148: 1.030587595 | AB148: 1.017159857 | AC148: 1.003732119 | AD148: 0.9903043801 | AE148: 0.9768766417 | AF148: 0.9634489033 | AG148: 0.9500211649 | AH148: 0.9365934265 | AI148: 0.9231656881
A149: 139 | B149: =+正規乱数!L147 -> 10.42581009 | C149: =+正規乱数!M147 -> 38.46612594 | D149: =+正規乱数!N147 -> 18.56752238 | E149: =+正規乱数!O147 -> 0.1568717159 | F149: 27.85128357 | G149: 13.92564179 | H149: 24.1199191 | I149: 16.99141842 | J149: 5.663387667 | K149: 1.154700538 | L149: 12.03868852 | M149: 1.271185663 | O149: 1.250909961 | P149: 1.23063426 | Q149: 1.210358558 | R149: 1.190082856 | S149: 1.169807154 | T149: 1.149531453 | U149: 1.129255751 | V149: 1.108980049 | W149: 1.088704347 | X149: =+(($H149-$I149-X$10*$G$6*$E149*$K149)*TAN($C149*PI()/180)+$L149)/$G149 -> 1.068428646 | Y149: 1.048152944 | Z149: 1.027877242 | AA149: 1.00760154 | AB149: 0.9873258386 | AC149: 0.9670501369 | AD149: 0.9467744351 | AE149: 0.9264987334 | AF149: 0.9062230316 | AG149: 0.8859473299 | AH149: 0.8656716281 | AI149: 0.8453959264
A150: 140 | B150: =+正規乱数!L148 -> 10.45804704 | C150: =+正規乱数!M148 -> 31.12313068 | D150: =+正規乱数!N148 -> 15.64272632 | E150: =+正規乱数!O148 -> 0.2049504804 | F150: 23.46408948 | G150: 11.73204474 | H150: 20.32049757 | I150: 16.99141842 | J150: 2.010062417 | K150: 1.154700538 | L150: 12.07591255 | M150: 1.200641088 | O150: 1.176744879 | P150: 1.152848669 | Q150: 1.128952459 | R150: 1.105056249 | S150: 1.081160039 | T150: 1.057263829 | U150: 1.033367619 | V150: 1.009471409 | W150: 0.9855751993 | X150: 0.9616789894 | Y150: 0.9377827794 | Z150: 0.9138865695 | AA150: 0.8899903596 | AB150: 0.8660941497 | AC150: 0.8421979398 | AD150: 0.8183017299 | AE150: 0.79440552 | AF150: 0.7705093101 | AG150: 0.7466131002 | AH150: 0.7227168903 | AI150: 0.6988206803
A151: 141 | B151: =+正規乱数!L149 -> 10.8843341 | C151: =+正規乱数!M149 -> 33.98174777 | D151: =+正規乱数!N149 -> 17.38018664 | E151: =+正規乱数!O149 -> 0.08865391574 | F151: 26.07027995 | G151: 13.03513998 | H151: 22.57752472 | I151: 16.99141842 | J151: 3.765287702 | K151: 1.154700538 | L151: 12.56814644 | M151: 1.253030974 | O151: 1.242645184 | P151: 1.232259393 | Q151: 1.221873602 | R151: 1.211487812 | S151: 1.201102021 | T151: 1.19071623 | U151: 1.18033044 | V151: 1.169944649 | W151: 1.159558858 | X151: 1.149173068 | Y151: 1.138787277 | Z151: 1.128401486 | AA151: 1.118015696 | AB151: 1.107629905 | AC151: 1.097244114 | AD151: 1.086858324 | AE151: 1.076472533 | AF151: 1.066086742 | AG151: 1.055700952 | AH151: 1.045315161 | AI151: 1.03492937
A152: 142 | B152: =+正規乱数!L150 -> 8.262921295 | C152: =+正規乱数!M150 -> 38.96753392 | D152: =+正規乱数!N150 -> 19.49162551 | E152: =+正規乱数!O150 -> 0.133884319 | F152: 29.23743826 | G152: 14.61871913 | H152: 25.32036427 | I152: 16.99141842 | J152: 6.736836611 | K152: 1.154700538 | L152: 9.541199668 | M152: 1.113506329 | O152: 1.096723904 | P152: 1.079941478 | Q152: 1.063159052 | R152: 1.046376626 | S152: 1.0295942 | T152: 1.012811774 | U152: 0.996029348 | V152: 0.9792469221 | W152: 0.9624644961 | X152: 0.9456820702 | Y152: 0.9288996443 | Z152: 0.9121172183 | AA152: 0.8953347924 | AB152: 0.8785523665 | AC152: 0.8617699406 | AD152: 0.8449875146 | AE152: 0.8282050887 | AF152: 0.8114226628 | AG152: 0.7946402368 | AH152: 0.7778578109 | AI152: 0.761075385
A153: 143 | B153: =+正規乱数!L151 -> 11.0160862 | C153: =+正規乱数!M151 -> 37.69414194 | D153: =+正規乱数!N151 -> 16.98469649 | E153: =+正規乱数!O151 -> 0.1650091353 | F153: 25.47704474 | G153: 12.73852237 | H153: 22.06376796 | I153: 16.99141842 | J153: 3.919528894 | K153: 1.154700538 | L153: 12.72028066 | M153: 1.306259005 | O153: 1.283582193 | P153: 1.260905381 | Q153: 1.238228569 | R153: 1.215551756 | S153: 1.192874944 | T153: 1.170198132 | U153: 1.14752132 | V153: 1.124844508 | W153: 1.102167696 | X153: 1.079490884 | Y153: 1.056814071 | Z153: 1.034137259 | AA153: 1.011460447 | AB153: 0.9887836349 | AC153: 0.9661068228 | AD153: 0.9434300106 | AE153: 0.9207531985 | AF153: 0.8980763863 | AG153: 0.8753995742 | AH153: 0.852722762 | AI153: 0.8300459498
A154: 144 | B154: =+正規乱数!L152 -> 12.00595905 | C154: =+正規乱数!M152 -> 34.45655701 | D154: =+正規乱数!N152 -> 19.42543349 | E154: =+正規乱数!O152 -> 0.1567628011 | F154: 29.13815023 | G154: 14.56907511 | H154: 25.23437832 | I154: 16.99141842 | J154: 5.656031945 | K154: 1.154700538 | L154: 13.86328738 | M154: 1.33977752 | O154: 1.323050905 | P154: 1.306324289 | Q154: 1.289597674 | R154: 1.272871059 | S154: 1.256144443 | T154: 1.239417828 | U154: 1.222691212 | V154: 1.205964597 | W154: 1.189237982 | X154: 1.172511366 | Y154: 1.155784751 | Z154: 1.139058135 | AA154: 1.12233152 | AB154: 1.105604905 | AC154: 1.088878289 | AD154: 1.072151674 | AE154: 1.055425058 | AF154: 1.038698443 | AG154: 1.021971828 | AH154: 1.005245212 | AI154: 0.9885185969
A155: 145 | B155: =+正規乱数!L153 -> 5.903359812 | C155: =+正規乱数!M153 -> 37.85647382 | D155: =+正規乱数!N153 -> 18.65731144 | E155: =+正規乱数!O153 -> 0.1589330413 | F155: 27.98596716 | G155: 13.99298358 | H155: 24.23655851 | I155: 16.99141842 | J155: 5.63135339 | K155: 1.154700538 | L155: 6.816612753 | M155: 0.8895862751 | O155: 0.8695858957 | P155: 0.8495855162 | Q155: 0.8295851367 | R155: 0.8095847573 | S155: 0.7895843778 | T155: 0.7695839984 | U155: 0.7495836189 | V155: 0.7295832394 | W155: 0.70958286 | X155: 0.6895824805 | Y155: 0.6695821011 | Z155: 0.6495817216 | AA155: 0.6295813422 | AB155: 0.6095809627 | AC155: 0.5895805832 | AD155: 0.5695802038 | AE155: 0.5495798243 | AF155: 0.5295794449 | AG155: 0.5095790654 | AH155: 0.4895786859 | AI155: 0.4695783065
A156: 146 | B156: =+正規乱数!L154 -> 9.986347202 | C156: =+正規乱数!M154 -> 38.63433618 | D156: =+正規乱数!N154 -> 17.51664212 | E156: =+正規乱数!O154 -> 0.125876557 | F156: 26.27496318 | G156: 13.13748159 | H156: 22.75478559 | I156: 16.99141842 | J156: 4.606493175 | K156: 1.154700538 | L156: 11.53124049 | M156: 1.228373456 | O156: 1.211023625 | P156: 1.193673794 | Q156: 1.176323963 | R156: 1.158974132 | S156: 1.141624301 | T156: 1.12427447 | U156: 1.106924639 | V156: 1.089574808 | W156: 1.072224977 | X156: 1.054875146 | Y156: 1.037525315 | Z156: 1.020175484 | AA156: 1.002825653 | AB156: 0.9854758216 | AC156: 0.9681259905 | AD156: 0.9507761595 | AE156: 0.9334263284 | AF156: 0.9160764974 | AG156: 0.8987266663 | AH156: 0.8813768353 | AI156: 0.8640270042
A157: 147 | B157: =+正規乱数!L155 -> 12.55556811 | C157: =+正規乱数!M155 -> 34.70084831 | D157: =+正規乱数!N155 -> 18.38881391 | E157: =+正規乱数!O155 -> 0.1199667676 | F157: 27.58322087 | G157: 13.79161044 | H157: 23.88776999 | I157: 16.99141842 | J157: 4.775411285 | K157: 1.154700538 | L157: 14.49792125 | M157: 1.397467876 | O157: 1.383821864 | P157: 1.370175853 | Q157: 1.356529841 | R157: 1.34288383 | S157: 1.329237818 | T157: 1.315591806 | U157: 1.301945795 | V157: 1.288299783 | W157: 1.274653772 | X157: 1.26100776 | Y157: 1.247361749 | Z157: 1.233715737 | AA157: 1.220069725 | AB157: 1.206423714 | AC157: 1.192777702 | AD157: 1.179131691 | AE157: 1.165485679 | AF157: 1.151839668 | AG157: 1.138193656 | AH157: 1.124547644 | AI157: 1.110901633
A158: 148 | B158: =+正規乱数!L156 -> 9.827901785 | C158: =+正規乱数!M156 -> 34.13610373 | D158: =+正規乱数!N156 -> 17.07583638 | E158: =+正規乱数!O156 -> 0.112282427 | F158: 25.61375456 | G158: 12.80687728 | H158: 22.18216214 | I158: 16.99141842 | J158: 3.519169924 | K158: 1.154700538 | L158: 11.34828348 | M158: 1.160896062 | O158: 1.147429785 | P158: 1.133963507 | Q158: 1.120497229 | R158: 1.107030952 | S158: 1.093564674 | T158: 1.080098396 | U158: 1.066632119 | V158: 1.053165841 | W158: 1.039699563 | X158: 1.026233286 | Y158: 1.012767008 | Z158: 0.9993007302 | AA158: 0.9858344525 | AB158: 0.9723681748 | AC158: 0.9589018972 | AD158: 0.9454356195 | AE158: 0.9319693418 | AF158: 0.9185030642 | AG158: 0.9050367865 | AH158: 0.8915705088 | AI158: 0.8781042312
A159: 149 | B159: =+正規乱数!L157 -> 5.503068584 | C159: =+正規乱数!M157 -> 32.80945231 | D159: =+正規乱数!N157 -> 17.17291209 | E159: =+正規乱数!O157 -> 0.1706815769 | F159: 25.75936813 | G159: 12.87968406 | H159: 22.30826718 | I159: 16.99141842 | J159: 3.427716779 | K159: 1.154700538 | L159: 6.354396257 | M159: 0.7594994557 | O159: 0.7401441323 | P159: 0.7207888089 | Q159: 0.7014334856 | R159: 0.6820781622 | S159: 0.6627228389 | T159: 0.6433675155 | U159: 0.6240121921 | V159: 0.6046568688 | W159: 0.5853015454 | X159: 0.5659462221 | Y159: 0.5465908987 | Z159: 0.5272355753 | AA159: 0.507880252 | AB159: 0.4885249286 | AC159: 0.4691696053 | AD159: 0.4498142819 | AE159: 0.4304589585 | AF159: 0.4111036352 | AG159: 0.3917483118 | AH159: 0.3723929885 | AI159: 0.3530376651
A160: 150 | B160: =+正規乱数!L158 -> 8.482675942 | C160: =+正規乱数!M158 -> 30.49465787 | D160: =+正規乱数!N158 -> 18.15898936 | E160: =+正規乱数!O158 -> 0.153765362 | F160: 27.23848403 | G160: 13.61924202 | H160: 23.58921913 | I160: 16.99141842 | J160: 3.885573063 | K160: 1.154700538 | L160: 9.794950478 | M160: 1.004499628 | O160: 0.9894359913 | P160: 0.9743723545 | Q160: 0.9593087177 | R160: 0.944245081 | S160: 0.9291814442 | T160: 0.9141178074 | U160: 0.8990541706 | V160: 0.8839905338 | W160: 0.8689268971 | X160: 0.8538632603 | Y160: 0.8387996235 | Z160: 0.8237359867 | AA160: 0.8086723499 | AB160: 0.7936087132 | AC160: 0.7785450764 | AD160: 0.7634814396 | AE160: 0.7484178028 | AF160: 0.733354166 | AG160: 0.7182905293 | AH160: 0.7032268925 | AI160: 0.6881632557
A161: 151 | B161: =+正規乱数!L159 -> 11.32569286 | C161: =+正規乱数!M159 -> 30.01346172 | D161: =+正規乱数!N159 -> 18.09841279 | E161: =+正規乱数!O159 -> 0.1486019677 | F161: 27.14761918 | G161: 13.57380959 | H161: 23.51052786 | I161: 16.99141842 | J161: 3.765852098 | K161: 1.154700538 | L161: 13.07778364 | M161: 1.240892296 | O161: 1.226564936 | P161: 1.212237576 | Q161: 1.197910216 | R161: 1.183582856 | S161: 1.169255497 | T161: 1.154928137 | U161: 1.140600777 | V161: 1.126273417 | W161: 1.111946058 | X161: 1.097618698 | Y161: 1.083291338 | Z161: 1.068963978 | AA161: 1.054636619 | AB161: 1.040309259 | AC161: 1.025981899 | AD161: 1.011654539 | AE161: 0.9973271795 | AF161: 0.9829998197 | AG161: 0.9686724599 | AH161: 0.9543451001 | AI161: 0.9400177404
A162: 152 | B162: =+正規乱数!L160 -> 11.0677705 | C162: =+正規乱数!M160 -> 31.42111372 | D162: =+正規乱数!N160 -> 18.07500111 | E162: =+正規乱数!O160 -> 0.1732105473 | F162: 27.11250166 | G162: 13.55625083 | H162: 23.4801152 | I162: 16.99141842 | J162: 3.964000185 | K162: 1.154700538 | L162: 12.77996056 | M162: 1.235146867 | O162: 1.217462916 | P162: 1.199778966 | Q162: 1.182095015 | R162: 1.164411064 | S162: 1.146727114 | T162: 1.129043163 | U162: 1.111359212 | V162: 1.093675261 | W162: 1.075991311 | X162: 1.05830736 | Y162: 1.040623409 | Z162: 1.022939459 | AA162: 1.005255508 | AB162: 0.9875715573 | AC162: 0.9698876066 | AD162: 0.9522036559 | AE162: 0.9345197052 | AF162: 0.9168357545 | AG162: 0.8991518038 | AH162: 0.8814678531 | AI162: 0.8637839024
A163: 153 | B163: =+正規乱数!L161 -> 10.3567886 | C163: =+正規乱数!M161 -> 31.04084378 | D163: =+正規乱数!N161 -> 16.93179473 | E163: =+正規乱数!O161 -> 0.1749226825 | F163: 25.39769209 | G163: 12.69884605 | H163: 21.99504655 | I163: 16.99141842 | J163: 3.011339816 | K163: 1.154700538 | L163: 11.95898938 | M163: 1.178873194 | O163: 1.160091922 | P163: 1.141310651 | Q163: 1.12252938 | R163: 1.103748109 | S163: 1.084966838 | T163: 1.066185566 | U163: 1.047404295 | V163: 1.028623024 | W163: 1.009841753 | X163: 0.9910604818 | Y163: 0.9722792106 | Z163: 0.9534979394 | AA163: 0.9347166683 | AB163: 0.9159353971 | AC163: 0.8971541259 | AD163: 0.8783728547 | AE163: 0.8595915836 | AF163: 0.8408103124 | AG163: 0.8220290412 | AH163: 0.80324777 | AI163: 0.7844664989
A164: 154 | B164: =+正規乱数!L162 -> 11.67956752 | C164: =+正規乱数!M162 -> 33.79447824 | D164: =+正規乱数!N162 -> 17.11458024 | E164: =+正規乱数!O162 -> 0.1385072932 | F164: 25.67187036 | G164: 12.83593518 | H164: 22.23249189 | I164: 16.99141842 | J164: 3.507861469 | K164: 1.154700538 | L164: 13.48640291 | M164: 1.323959972 | O164: 1.307597998 | P164: 1.291236025 | Q164: 1.274874051 | R164: 1.258512078 | S164: 1.242150104 | T164: 1.225788131 | U164: 1.209426157 | V164: 1.193064184 | W164: 1.17670221 | X164: 1.160340237 | Y164: 1.143978263 | Z164: 1.12761629 | AA164: 1.111254316 | AB164: 1.094892343 | AC164: 1.078530369 | AD164: 1.062168396 | AE164: 1.045806422 | AF164: 1.029444449 | AG164: 1.013082476 | AH164: 0.996720502 | AI164: 0.9803585286
A165: 155 | B165: =+正規乱数!L163 -> 10.04992981 | C165: =+正規乱数!M163 -> 31.56077562 | D165: =+正規乱数!N163 -> 18.62737873 | E165: =+正規乱数!O163 -> 0.1475100667 | F165: =+$G$3*$G$4*D165 -> 27.9410681 | G165: 13.97053405 | H165: =+F165*COS($G$2*PI()/180) -> 24.19767478 | I165: 16.99141842 | J165: =+(H165-I165)*TAN(C165*PI()/180) -> 4.42652083 | K165: 1.154700538 | L165: =+K165*B165 -> 11.60465936 | M165: =+(J165+L165)/G165 -> 1.147499454 | O165: 1.132805799 | P165: 1.118112144 | Q165: 1.10341849 | R165: 1.088724835 | S165: 1.074031181 | T165: 1.059337526 | U165: 1.044643871 | V165: 1.029950217 | W165: =+(($H165-$I165-W$10*$G$6*$E165*$K165)*TAN($C165*PI()/180)+$L165)/$G165 -> 1.015256562 | X165: 1.000562907 | Y165: 0.9858692529 | Z165: 0.9711755983 | AA165: 0.9564819437 | AB165: 0.9417882891 | AC165: 0.9270946345 | AD165: 0.9124009798 | AE165: 0.8977073252 | AF165: 0.8830136706 | AG165: 0.868320016 | AH165: 0.8536263614 | AI165: 0.8389327068
A166: 156 | B166: =+正規乱数!L164 -> 8.399011925 | C166: =+正規乱数!M164 -> 32.5377568 | D166: =+正規乱数!N164 -> 17.90117673 | E166: =+正規乱数!O164 -> 0.1995061094 | F166: 26.85176509 | G166: 13.42588255 | H166: 23.25431071 | I166: 16.99141842 | J166: 3.99570701 | K166: 1.154700538 | L166: 9.698343591 | M166: 1.019973961 | O166: 0.9984956355 | P166: 0.97701731 | Q166: 0.9555389844 | R166: 0.9340606589 | S166: 0.9125823333 | T166: 0.8911040078 | U166: 0.8696256823 | V166: 0.8481473567 | W166: 0.8266690312 | X166: 0.8051907056 | Y166: 0.7837123801 | Z166: 0.7622340545 | AA166: 0.740755729 | AB166: 0.7192774034 | AC166: 0.6977990779 | AD166: 0.6763207523 | AE166: 0.6548424268 | AF166: 0.6333641013 | AG166: 0.6118857757 | AH166: 0.5904074502 | AI166: 0.5689291246
A167: 157 | B167: =+正規乱数!L165 -> 10.71755139 | C167: =+正規乱数!M165 -> 35.88129633 | D167: =+正規乱数!N165 -> 16.85491958 | E167: =+正規乱数!O165 -> 0.2013035555 | F167: 25.28237936 | G167: 12.64118968 | H167: 21.8951828 | I167: 16.99141842 | J167: 3.547294382 | K167: 1.154700538 | L167: 12.37556236 | M167: 1.259601125 | O167: 1.233503589 | P167: 1.207406053 | Q167: 1.181308517 | R167: 1.155210981 | S167: 1.129113445 | T167: 1.103015909 | U167: 1.076918373 | V167: 1.050820837 | W167: 1.024723301 | X167: 0.9986257647 | Y167: 0.9725282286 | Z167: 0.9464306926 | AA167: 0.9203331566 | AB167: 0.8942356205 | AC167: 0.8681380845 | AD167: 0.8420405484 | AE167: 0.8159430124 | AF167: 0.7898454764 | AG167: 0.7637479403 | AH167: 0.7376504043 | AI167: 0.7115528683
A168: 158 | B168: =+正規乱数!L166 -> 12.55207711 | C168: =+正規乱数!M166 -> 39.12540868 | D168: =+正規乱数!N166 -> 17.81607774 | E168: =+正規乱数!O166 -> 0.134027247 | F168: 26.72411662 | G168: 13.36205831 | H168: 23.14376388 | I168: 16.99141842 | J168: 5.004407443 | K168: 1.154700538 | L168: 14.49389019 | M168: 1.4592286 | O168: 1.440744426 | P168: 1.422260251 | Q168: 1.403776077 | R168: 1.385291903 | S168: 1.366807729 | T168: 1.348323554 | U168: 1.32983938 | V168: 1.311355206 | W168: 1.292871032 | X168: 1.274386857 | Y168: 1.255902683 | Z168: 1.237418509 | AA168: 1.218934335 | AB168: 1.200450161 | AC168: 1.181965986 | AD168: 1.163481812 | AE168: 1.144997638 | AF168: 1.126513464 | AG168: 1.108029289 | AH168: 1.089545115 | AI168: 1.071060941
A169: 159 | B169: =+正規乱数!L167 -> 13.63970768 | C169: =+正規乱数!M167 -> 34.1448561 | D169: =+正規乱数!N167 -> 19.42772899 | E169: =+正規乱数!O167 -> 0.1659621479 | F169: 29.14159348 | G169: 14.57079674 | H169: 25.23736026 | I169: 16.99141842 | J169: 5.592342224 | K169: 1.154700538 | L169: 15.7497778 | M169: 1.464718807 | O169: 1.447218423 | P169: 1.429718038 | Q169: 1.412217654 | R169: 1.394717269 | S169: 1.377216884 | T169: 1.3597165 | U169: 1.342216115 | V169: 1.324715731 | W169: 1.307215346 | X169: 1.289714962 | Y169: 1.272214577 | Z169: 1.254714193 | AA169: 1.237213808 | AB169: 1.219713424 | AC169: 1.202213039 | AD169: 1.184712655 | AE169: 1.16721227 | AF169: 1.149711886 | AG169: 1.132211501 | AH169: 1.114711117 | AI169: 1.097210732
A170: 160 | B170: =+正規乱数!L168 -> 11.25384527 | C170: =+正規乱数!M168 -> 34.80486286 | D170: =+正規乱数!N168 -> 16.72746784 | E170: =+正規乱数!O168 -> 0.1660916981 | F170: 25.09120177 | G170: 12.54560088 | H170: 21.72961814 | I170: 16.99141842 | J170: 3.293731029 | K170: 1.154700538 | L170: 12.99482119 | M170: 1.298347714 | O170: 1.277498024 | P170: 1.256648334 | Q170: 1.235798644 | R170: 1.214948954 | S170: 1.194099265 | T170: 1.173249575 | U170: 1.152399885 | V170: 1.131550195 | W170: 1.110700505 | X170: 1.089850815 | Y170: 1.069001126 | Z170: 1.048151436 | AA170: 1.027301746 | AB170: 1.006452056 | AC170: 0.9856023664 | AD170: 0.9647526766 | AE170: 0.9439029868 | AF170: 0.923053297 | AG170: 0.9022036072 | AH170: 0.8813539174 | AI170: 0.8605042276
A171: 161 | B171: =+正規乱数!L169 -> 10.36616986 | C171: =+正規乱数!M169 -> 33.25091771 | D171: =+正規乱数!N169 -> 16.2532206 | E171: =+正規乱数!O169 -> 0.1344674397 | F171: 24.37983089 | G171: 12.18991545 | H171: 21.11355289 | I171: 16.99141842 | J171: 2.702684191 | K171: 1.154700538 | L171: 11.96982191 | M171: 1.203659383 | O171: 1.187273948 | P171: 1.170888514 | Q171: 1.15450308 | R171: 1.138117645 | S171: 1.121732211 | T171: 1.105346776 | U171: 1.088961342 | V171: 1.072575908 | W171: 1.056190473 | X171: 1.039805039 | Y171: 1.023419604 | Z171: 1.00703417 | AA171: 0.9906487355 | AB171: 0.9742633011 | AC171: 0.9578778666 | AD171: 0.9414924322 | AE171: 0.9251069978 | AF171: 0.9087215634 | AG171: 0.892336129 | AH171: 0.8759506946 | AI171: 0.8595652601
A172: 162 | B172: =+正規乱数!L170 -> 8.706501175 | C172: =+正規乱数!M170 -> 40.15735479 | D172: =+正規乱数!N170 -> 18.94799607 | E172: =+正規乱数!O170 -> 0.1533258963 | F172: 28.4219941 | G172: 14.21099705 | H172: 24.61416892 | I172: 16.99141842 | J172: 6.432004382 | K172: 1.154700538 | L172: 10.05340159 | M172: 1.160045697 | O172: 1.139420697 | P172: 1.118795697 | Q172: 1.098170696 | R172: 1.077545696 | S172: 1.056920696 | T172: 1.036295696 | U172: 1.015670696 | V172: 0.9950456955 | W172: 0.9744206953 | X172: 0.9537956952 | Y172: 0.933170695 | Z172: 0.9125456948 | AA172: 0.8919206946 | AB172: 0.8712956945 | AC172: 0.8506706943 | AD172: 0.8300456941 | AE172: 0.8094206939 | AF172: 0.7887956938 | AG172: 0.7681706936 | AH172: 0.7475456934 | AI172: 0.7269206932
A173: 163 | B173: =+正規乱数!L171 -> 9.831788053 | C173: =+正規乱数!M171 -> 34.02038751 | D173: =+正規乱数!N171 -> 19.90405025 | E173: =+正規乱数!O171 -> 0.1885915122 | F173: 29.85607537 | G173: 14.92803768 | H173: 25.85611973 | I173: 16.99141842 | J173: 5.983907044 | K173: 1.154700538 | L173: 11.35277096 | M173: 1.161350096 | O173: 1.142030034 | P173: 1.122709972 | Q173: 1.103389909 | R173: 1.084069847 | S173: 1.064749785 | T173: 1.045429722 | U173: 1.02610966 | V173: 1.006789598 | W173: 0.9874695353 | X173: 0.9681494729 | Y173: 0.9488294106 | Z173: 0.9295093483 | AA173: 0.9101892859 | AB173: 0.8908692236 | AC173: 0.8715491613 | AD173: 0.8522290989 | AE173: 0.8329090366 | AF173: 0.8135889742 | AG173: 0.7942689119 | AH173: 0.7749488496 | AI173: 0.7556287872
A174: 164 | B174: =+正規乱数!L172 -> 5.399492823 | C174: =+正規乱数!M172 -> 38.52872412 | D174: =+正規乱数!N172 -> 18.17230961 | E174: =+正規乱数!O172 -> 0.1469340728 | F174: 27.25846441 | G174: 13.62923221 | H174: 23.60652265 | I174: 16.99141842 | J174: 5.267308327 | K174: 1.154700538 | L174: 6.23479727 | M174: 0.8439290946 | O174: 0.8244812468 | P174: 0.8050333991 | Q174: 0.7855855513 | R174: 0.7661377035 | S174: 0.7466898557 | T174: 0.7272420079 | U174: 0.7077941601 | V174: 0.6883463123 | W174: 0.6688984645 | X174: 0.6494506167 | Y174: 0.630002769 | Z174: 0.6105549212 | AA174: 0.5911070734 | AB174: 0.5716592256 | AC174: 0.5522113778 | AD174: 0.53276353 | AE174: 0.5133156822 | AF174: 0.4938678344 | AG174: 0.4744199867 | AH174: 0.4549721389 | AI174: 0.4355242911
A175: 165 | B175: =+正規乱数!L173 -> 11.46963243 | C175: =+正規乱数!M173 -> 40.78906116 | D175: =+正規乱数!N173 -> 17.53340498 | E175: =+正規乱数!O173 -> 0.1115062816 | F175: 26.30010747 | G175: 13.15005373 | H175: 22.77656119 | I175: 16.99141842 | J175: 4.991674181 | K175: 1.154700538 | L175: 13.24399075 | M175: 1.386736913 | O175: 1.370161196 | P175: 1.353585479 | Q175: 1.337009762 | R175: 1.320434045 | S175: 1.303858328 | T175: 1.287282611 | U175: 1.270706894 | V175: 1.254131177 | W175: 1.237555459 | X175: 1.220979742 | Y175: 1.204404025 | Z175: 1.187828308 | AA175: 1.171252591 | AB175: 1.154676874 | AC175: 1.138101157 | AD175: 1.12152544 | AE175: 1.104949723 | AF175: 1.088374005 | AG175: 1.071798288 | AH175: 1.055222571 | AI175: 1.038646854
A176: 166 | B176: =+正規乱数!L174 -> 6.262315215 | C176: =+正規乱数!M174 -> 36.60135319 | D176: =+正規乱数!N174 -> 19.60117177 | E176: =+正規乱数!O174 -> 0.2352011881 | F176: 29.40175765 | G176: 14.70087882 | H176: 25.46266904 | I176: 16.99141842 | J176: 6.291616354 | K176: 1.154700538 | L176: 7.231098751 | M176: 0.9198575994 | O176: 0.8929373371 | P176: 0.8660170748 | Q176: 0.8390968125 | R176: 0.8121765502 | S176: 0.7852562879 | T176: 0.7583360256 | U176: 0.7314157633 | V176: 0.704495501 | W176: 0.6775752387 | X176: 0.6506549764 | Y176: 0.6237347141 | Z176: 0.5968144518 | AA176: 0.5698941895 | AB176: 0.5429739272 | AC176: 0.5160536649 | AD176: 0.4891334026 | AE176: 0.4622131403 | AF176: 0.435292878 | AG176: 0.4083726157 | AH176: 0.3814523534 | AI176: 0.3545320912
A177: 167 | B177: =+正規乱数!L175 -> 7.437140128 | C177: =+正規乱数!M175 -> 32.91340998 | D177: =+正規乱数!N175 -> 18.58743595 | E177: =+正規乱数!O175 -> 0.1781723677 | F177: 27.88115392 | G177: 13.94057696 | H177: 24.14578758 | I177: 16.99141842 | J177: 4.630744597 | K177: 1.154700538 | L177: 8.58766971 | M177: 0.9481970757 | O177: 0.9294554415 | P177: 0.9107138073 | Q177: 0.891972173 | R177: 0.8732305388 | S177: 0.8544889046 | T177: 0.8357472704 | U177: 0.8170056362 | V177: 0.7982640019 | W177: 0.7795223677 | X177: 0.7607807335 | Y177: 0.7420390993 | Z177: 0.7232974651 | AA177: 0.7045558308 | AB177: 0.6858141966 | AC177: 0.6670725624 | AD177: 0.6483309282 | AE177: 0.629589294 | AF177: 0.6108476597 | AG177: 0.5921060255 | AH177: 0.5733643913 | AI177: 0.5546227571
A178: 168 | B178: =+正規乱数!L176 -> 5.942796512 | C178: =+正規乱数!M176 -> 33.56650619 | D178: =+正規乱数!N176 -> 15.47856411 | E178: =+正規乱数!O176 -> 0.132107425 | F178: 23.21784616 | G178: 11.60892308 | H178: 20.1072446 | I178: 16.99141842 | J178: 2.067525507 | K178: 1.154700538 | L178: 6.862150332 | M178: 0.7692079427 | O178: 0.7521006487 | P178: 0.7349933546 | Q178: 0.7178860606 | R178: 0.7007787665 | S178: 0.6836714724 | T178: 0.6665641784 | U178: 0.6494568843 | V178: 0.6323495903 | W178: 0.6152422962 | X178: 0.5981350022 | Y178: 0.5810277081 | Z178: 0.563920414 | AA178: 0.54681312 | AB178: 0.5297058259 | AC178: 0.5125985319 | AD178: 0.4954912378 | AE178: 0.4783839438 | AF178: 0.4612766497 | AG178: 0.4441693557 | AH178: 0.4270620616 | AI178: 0.4099547675
A179: 169 | B179: =+正規乱数!L177 -> 11.88574267 | C179: =+正規乱数!M177 -> 38.27317061 | D179: =+正規乱数!N177 -> 17.10021654 | E179: =+正規乱数!O177 -> 0.1840867793 | F179: 25.65032482 | G179: 12.82516241 | H179: 22.21383291 | I179: 16.99141842 | J179: 4.1204452 | K179: 1.154700538 | L179: 13.72447346 | M179: 1.39139904 | O179: 1.365742334 | P179: 1.340085627 | Q179: 1.314428921 | R179: 1.288772215 | S179: 1.263115508 | T179: 1.237458802 | U179: 1.211802096 | V179: 1.18614539 | W179: 1.160488683 | X179: 1.134831977 | Y179: 1.109175271 | Z179: 1.083518564 | AA179: 1.057861858 | AB179: 1.032205152 | AC179: 1.006548445 | AD179: 0.9808917391 | AE179: 0.9552350328 | AF179: 0.9295783265 | AG179: 0.9039216202 | AH179: 0.8782649139 | AI179: 0.8526082076
A180: 170 | B180: =+正規乱数!L178 -> 9.835687349 | C180: =+正規乱数!M178 -> 35.86925714 | D180: =+正規乱数!N178 -> 17.92913866 | E180: =+正規乱数!O178 -> 0.180069922 | F180: 26.89370798 | G180: 13.44685399 | H180: 23.29063432 | I180: 16.99141842 | J180: 4.554722822 | K180: 1.154700538 | L180: 11.35727348 | M180: 1.183324836 | O180: 1.161388489 | P180: 1.139452141 | Q180: 1.117515794 | R180: 1.095579446 | S180: 1.073643099 | T180: 1.051706751 | U180: 1.029770403 | V180: 1.007834056 | W180: 0.9858977084 | X180: 0.9639613608 | Y180: 0.9420250132 | Z180: 0.9200886657 | AA180: 0.8981523181 | AB180: 0.8762159706 | AC180: 0.854279623 | AD180: 0.8323432755 | AE180: 0.8104069279 | AF180: 0.7884705803 | AG180: 0.7665342328 | AH180: 0.7445978852 | AI180: 0.7226615377
A181: 171 | B181: =+正規乱数!L179 -> 13.72123513 | C181: =+正規乱数!M179 -> 34.05679028 | D181: =+正規乱数!N179 -> 16.62700975 | E181: =+正規乱数!O179 -> 0.1719898313 | F181: 24.94051463 | G181: 12.47025732 | H181: 21.59911925 | I181: 16.99141842 | J181: 3.114582783 | K181: 1.154700538 | L181: 15.84391759 | M181: 1.520297448 | O181: 1.499176601 | P181: 1.478055754 | Q181: 1.456934907 | R181: 1.43581406 | S181: 1.414693213 | T181: 1.393572366 | U181: 1.372451519 | V181: =+(($H181-$I181-V$10*$G$6*$E181*$K181)*TAN($C181*PI()/180)+$L181)/$G181 -> 1.351330672 | W181: 1.330209824 | X181: 1.309088977 | Y181: 1.28796813 | Z181: 1.266847283 | AA181: 1.245726436 | AB181: 1.224605589 | AC181: 1.203484742 | AD181: 1.182363895 | AE181: 1.161243048 | AF181: 1.140122201 | AG181: 1.119001354 | AH181: 1.097880507 | AI181: 1.07675966
A182: 172 | B182: =+正規乱数!L180 -> 9.904438656 | C182: =+正規乱数!M180 -> 33.16439426 | D182: =+正規乱数!N180 -> 17.56958891 | E182: =+正規乱数!O180 -> 0.1883868686 | F182: 26.35438337 | G182: 13.17719168 | H182: 22.8235655 | I182: 16.99141842 | J182: 3.811275908 | K182: 1.154700538 | L182: 11.43666065 | M182: 1.157146145 | O182: 1.135980181 | P182: 1.114814216 | Q182: 1.093648252 | R182: 1.072482288 | S182: 1.051316324 | T182: 1.03015036 | U182: 1.008984395 | V182: 0.9878184312 | W182: 0.966652467 | X182: 0.9454865028 | Y182: 0.9243205386 | Z182: 0.9031545744 | AA182: 0.8819886102 | AB182: 0.860822646 | AC182: 0.8396566818 | AD182: 0.8184907176 | AE182: 0.7973247534 | AF182: 0.7761587892 | AG182: 0.754992825 | AH182: 0.7338268608 | AI182: 0.7126608966
A183: 173 | B183: =+正規乱数!L181 -> 10.31684771 | C183: =+正規乱数!M181 -> 35.12698434 | D183: =+正規乱数!N181 -> 18.88464219 | E183: =+正規乱数!O181 -> 0.1047532874 | F183: 28.32696329 | G183: 14.16348164 | H183: 24.53186982 | I183: 16.99141842 | J183: 5.304825194 | K183: 1.154700538 | L183: 11.9128696 | M183: 1.215639998 | O183: 1.203852008 | P183: 1.192064019 | Q183: 1.180276029 | R183: 1.16848804 | S183: 1.15670005 | T183: 1.144912061 | U183: 1.133124071 | V183: 1.121336082 | W183: 1.109548092 | X183: 1.097760103 | Y183: 1.085972113 | Z183: 1.074184124 | AA183: 1.062396134 | AB183: 1.050608145 | AC183: 1.038820155 | AD183: 1.027032166 | AE183: 1.015244176 | AF183: 1.003456187 | AG183: 0.9916681973 | AH183: 0.9798802078 | AI183: 0.9680922183
A184: 174 | B184: =+正規乱数!L182 -> 12.5955678 | C184: =+正規乱数!M182 -> 36.96649562 | D184: =+正規乱数!N182 -> 19.15067368 | E184: =+正規乱数!O182 -> 0.1611174321 | F184: 28.72601052 | G184: 14.36300526 | H184: 24.87745486 | I184: 16.99141842 | J184: 5.935327841 | K184: 1.154700538 | L184: 14.54410892 | M184: 1.425846221 | O184: 1.406719015 | P184: 1.38759181 | Q184: 1.368464605 | R184: 1.3493374 | S184: 1.330210195 | T184: 1.31108299 | U184: 1.291955784 | V184: 1.272828579 | W184: 1.253701374 | X184: 1.234574169 | Y184: 1.215446964 | Z184: 1.196319759 | AA184: 1.177192553 | AB184: 1.158065348 | AC184: 1.138938143 | AD184: 1.119810938 | AE184: 1.100683733 | AF184: 1.081556528 | AG184: 1.062429322 | AH184: 1.043302117 | AI184: 1.024174912
A185: 175 | B185: =+正規乱数!L183 -> 11.74980998 | C185: =+正規乱数!M183 -> 34.16682518 | D185: =+正規乱数!N183 -> 18.07224125 | E185: =+正規乱数!O183 -> 0.145441752 | F185: 27.10836188 | G185: 13.55418094 | H185: 23.47653004 | I185: 16.99141842 | J185: 4.40179028 | K185: 1.154700538 | L185: 13.56751191 | M185: 1.325738698 | O185: 1.309238237 | P185: 1.292737775 | Q185: 1.276237314 | R185: 1.259736853 | S185: 1.243236392 | T185: 1.226735931 | U185: 1.21023547 | V185: 1.193735009 | W185: 1.177234547 | X185: 1.160734086 | Y185: 1.144233625 | Z185: 1.127733164 | AA185: 1.111232703 | AB185: 1.094732242 | AC185: 1.078231781 | AD185: 1.06173132 | AE185: 1.045230858 | AF185: 1.028730397 | AG185: 1.012229936 | AH185: 0.995729475 | AI185: 0.9792290138
A186: 176 | B186: =+正規乱数!L184 -> 10.31965909 | C186: =+正規乱数!M184 -> 38.71902282 | D186: =+正規乱数!N184 -> 16.28314769 | E186: =+正規乱数!O184 -> 0.1987466065 | F186: 24.42472153 | G186: 12.21236077 | H186: 21.15242933 | I186: 16.99141842 | J186: 3.335867152 | K186: 1.154700538 | L186: 11.91611591 | M186: 1.248897191 | O186: 1.219338966 | P186: 1.18978074 | Q186: 1.160222514 | R186: 1.130664288 | S186: 1.101106063 | T186: 1.071547837 | U186: 1.041989611 | V186: 1.012431386 | W186: 0.9828731598 | X186: 0.9533149341 | Y186: 0.9237567084 | Z186: 0.8941984827 | AA186: 0.864640257 | AB186: 0.8350820313 | AC186: 0.8055238055 | AD186: 0.7759655798 | AE186: 0.7464073541 | AF186: 0.7168491284 | AG186: 0.6872909027 | AH186: 0.657732677 | AI186: 0.6281744513
A187: 177 | B187: =+正規乱数!L185 -> 13.05170144 | C187: =+正規乱数!M185 -> 39.31434748 | D187: =+正規乱数!N185 -> 17.80861454 | E187: =+正規乱数!O185 -> 0.09446583467 | F187: 26.71292181 | G187: 13.35646091 | H187: 23.1340689 | I187: 16.99141842 | J187: 5.030270342 | K187: 1.154700538 | L187: 15.07080668 | M187: 1.504970303 | O187: 1.491848689 | P187: 1.478727075 | Q187: 1.465605461 | R187: 1.452483847 | S187: 1.439362233 | T187: 1.426240619 | U187: 1.413119004 | V187: 1.39999739 | W187: 1.386875776 | X187: 1.373754162 | Y187: 1.360632548 | Z187: 1.347510934 | AA187: 1.33438932 | AB187: 1.321267706 | AC187: 1.308146091 | AD187: 1.295024477 | AE187: 1.281902863 | AF187: 1.268781249 | AG187: 1.255659635 | AH187: 1.242538021 | AI187: 1.229416407
A188: 178 | B188: =+正規乱数!L186 -> 9.554095658 | C188: =+正規乱数!M186 -> 39.75287916 | D188: =+正規乱数!N186 -> 17.25481193 | E188: =+正規乱数!O186 -> 0.1626739595 | F188: 25.88221789 | G188: 12.94110895 | H188: 22.4146582 | I188: 16.99141842 | J188: 4.510921961 | K188: 1.154700538 | L188: 11.0321194 | M188: 1.201059463 | O188: 1.177371843 | P188: 1.153684224 | Q188: 1.129996604 | R188: 1.106308984 | S188: 1.082621364 | T188: 1.058933744 | U188: 1.035246125 | V188: 1.011558505 | W188: 0.9878708852 | X188: 0.9641832655 | Y188: 0.9404956457 | Z188: 0.9168080259 | AA188: 0.8931204062 | AB188: 0.8694327864 | AC188: 0.8457451667 | AD188: 0.8220575469 | AE188: 0.7983699272 | AF188: 0.7746823074 | AG188: 0.7509946876 | AH188: 0.7273070679 | AI188: 0.7036194481
A189: 179 | B189: =+正規乱数!L187 -> 7.254750887 | C189: =+正規乱数!M187 -> 30.17393921 | D189: =+正規乱数!N187 -> 18.66557037 | E189: =+正規乱数!O187 -> 0.1734104436 | F189: 27.99835555 | G189: 13.99917777 | H189: 24.24728717 | I189: 16.99141842 | J189: 4.21859937 | K189: 1.154700538 | L189: 8.377064755 | M189: 0.8997431369 | O189: 0.8834269017 | P189: 0.8671106665 | Q189: 0.8507944313 | R189: 0.8344781961 | S189: 0.8181619609 | T189: 0.8018457257 | U189: 0.7855294905 | V189: 0.7692132552 | W189: 0.75289702 | X189: 0.7365807848 | Y189: 0.7202645496 | Z189: 0.7039483144 | AA189: 0.6876320792 | AB189: 0.671315844 | AC189: 0.6549996088 | AD189: 0.6386833736 | AE189: 0.6223671384 | AF189: 0.6060509032 | AG189: 0.589734668 | AH189: 0.5734184328 | AI189: 0.5571021976
A190: 180 | B190: =+正規乱数!L188 -> 7.284992476 | C190: =+正規乱数!M188 -> 35.43246881 | D190: =+正規乱数!N188 -> 18.38425614 | E190: =+正規乱数!O188 -> 0.1398648018 | F190: 27.57638421 | G190: 13.7881921 | H190: 23.88184927 | I190: 16.99141842 | J190: 4.902653461 | K190: 1.154700538 | L190: 8.411984734 | M190: 0.9656551123 | O190: 0.9493037365 | P190: 0.9329523608 | Q190: 0.9166009851 | R190: 0.9002496093 | S190: 0.8838982336 | T190: 0.8675468579 | U190: 0.8511954821 | V190: 0.8348441064 | W190: 0.8184927307 | X190: 0.802141355 | Y190: 0.7857899792 | Z190: 0.7694386035 | AA190: 0.7530872278 | AB190: 0.736735852 | AC190: 0.7203844763 | AD190: 0.7040331006 | AE190: 0.6876817248 | AF190: 0.6713303491 | AG190: 0.6549789734 | AH190: 0.6386275977 | AI190: 0.6222762219
A191: 181 | B191: =+正規乱数!L189 -> 11.83161721 | C191: =+正規乱数!M189 -> 34.00903953 | D191: =+正規乱数!N189 -> 18.76776404 | E191: =+正規乱数!O189 -> 0.123541633 | F191: 28.15164606 | G191: 14.07582303 | H191: 24.38004065 | I191: 16.99141842 | J191: 4.985384849 | K191: 1.154700538 | L191: 13.66197477 | M191: 1.324779345 | O191: 1.311362724 | P191: 1.297946104 | Q191: 1.284529483 | R191: 1.271112862 | S191: 1.257696242 | T191: 1.244279621 | U191: 1.230863001 | V191: 1.21744638 | W191: 1.20402976 | X191: 1.190613139 | Y191: 1.177196518 | Z191: 1.163779898 | AA191: 1.150363277 | AB191: 1.136946657 | AC191: 1.123530036 | AD191: 1.110113415 | AE191: 1.096696795 | AF191: 1.083280174 | AG191: 1.069863554 | AH191: 1.056446933 | AI191: 1.043030312
A192: 182 | B192: =+正規乱数!L190 -> 8.227397295 | C192: =+正規乱数!M190 -> 39.36050789 | D192: =+正規乱数!N190 -> 16.49058448 | E192: =+正規乱数!O190 -> 0.178345281 | F192: 24.73587672 | G192: 12.36793836 | H192: 21.42189762 | I192: 16.99141842 | J192: 3.634125325 | K192: 1.154700538 | L192: 9.500180086 | M192: 1.06196401 | O192: 1.035167275 | P192: 1.00837054 | Q192: 0.9815738049 | R192: 0.95477707 | S192: 0.9279803351 | T192: 0.9011836002 | U192: 0.8743868654 | V192: 0.8475901305 | W192: 0.8207933956 | X192: 0.7939966607 | Y192: 0.7671999258 | Z192: 0.7404031909 | AA192: 0.7136064561 | AB192: 0.6868097212 | AC192: 0.6600129863 | AD192: 0.6332162514 | AE192: =+(($H192-$I192-AE$10*$G$6*$E192*$K192)*TAN($C192*PI()/180)+$L192)/$G192 -> 0.6064195165 | AF192: 0.5796227816 | AG192: 0.5528260467 | AH192: 0.5260293119 | AI192: 0.499232577
A193: 183 | B193: =+正規乱数!L191 -> 11.45696974 | C193: =+正規乱数!M191 -> 38.94554951 | D193: =+正規乱数!N191 -> 17.77866952 | E193: =+正規乱数!O191 -> 0.1808965325 | F193: 26.66800428 | G193: 13.33400214 | H193: 23.09516918 | I193: 16.99141842 | J193: 4.933122874 | K193: 1.154700538 | L193: 13.22936913 | M193: 1.362118576 | O193: 1.33727791 | P193: 1.312437244 | Q193: 1.287596578 | R193: 1.262755912 | S193: 1.237915246 | T193: 1.21307458 | U193: 1.188233914 | V193: 1.163393248 | W193: 1.138552582 | X193: 1.113711916 | Y193: 1.08887125 | Z193: 1.064030584 | AA193: 1.039189918 | AB193: 1.014349252 | AC193: 0.989508586 | AD193: 0.9646679201 | AE193: 0.9398272541 | AF193: 0.9149865881 | AG193: 0.8901459221 | AH193: 0.8653052562 | AI193: 0.8404645902
A194: 184 | B194: =+正規乱数!L192 -> 6.964982342 | C194: =+正規乱数!M192 -> 36.82456821 | D194: =+正規乱数!N192 -> 19.34451498 | E194: =+正規乱数!O192 -> 0.1704975059 | F194: 29.01677247 | G194: 14.50838624 | H194: 25.1292621 | I194: 16.99141842 | J194: 6.093328973 | K194: 1.154700538 | L194: 8.04246886 | M194: 0.9743191008 | O194: 0.954384269 | P194: 0.9344494372 | Q194: 0.9145146054 | R194: 0.8945797736 | S194: 0.8746449418 | T194: 0.85471011 | U194: 0.8347752782 | V194: 0.8148404463 | W194: 0.7949056145 | X194: 0.7749707827 | Y194: 0.7550359509 | Z194: 0.7351011191 | AA194: 0.7151662873 | AB194: 0.6952314555 | AC194: 0.6752966237 | AD194: 0.6553617918 | AE194: 0.63542696 | AF194: 0.6154921282 | AG194: 0.5955572964 | AH194: 0.5756224646 | AI194: 0.5556876328
A195: 185 | B195: =+正規乱数!L193 -> 9.530146069 | C195: =+正規乱数!M193 -> 37.40338726 | D195: =+正規乱数!N193 -> 17.88015535 | E195: =+正規乱数!O193 -> 0.181174657 | F195: 26.82023303 | G195: 13.41011652 | H195: 23.22700314 | I195: 16.99141842 | J195: 4.768048659 | K195: 1.154700538 | L195: 11.0044648 | M195: 1.176165281 | O195: 1.152760921 | P195: 1.129356561 | Q195: 1.105952202 | R195: 1.082547842 | S195: 1.059143483 | T195: 1.035739123 | U195: 1.012334763 | V195: 0.9889304037 | W195: 0.9655260441 | X195: 0.9421216844 | Y195: 0.9187173248 | Z195: 0.8953129652 | AA195: 0.8719086056 | AB195: 0.848504246 | AC195: 0.8250998864 | AD195: 0.8016955267 | AE195: 0.7782911671 | AF195: 0.7548868075 | AG195: 0.7314824479 | AH195: 0.7080780883 | AI195: 0.6846737287
A196: 186 | B196: =+正規乱数!L194 -> 9.940043659 | C196: =+正規乱数!M194 -> 34.68767662 | D196: =+正規乱数!N194 -> 17.14124089 | E196: =+正規乱数!O194 -> 0.1686796945 | F196: 25.71186133 | G196: 12.85593067 | H196: 22.26712509 | I196: 16.99141842 | J196: 3.651393965 | K196: 1.154700538 | L196: 11.47777377 | M196: 1.176823999 | O196: 1.156250616 | P196: 1.135677233 | Q196: 1.11510385 | R196: 1.094530467 | S196: 1.073957084 | T196: 1.053383701 | U196: 1.032810318 | V196: 1.012236936 | W196: 0.9916635527 | X196: 0.9710901698 | Y196: 0.950516787 | Z196: 0.9299434041 | AA196: 0.9093700212 | AB196: 0.8887966384 | AC196: 0.8682232555 | AD196: 0.8476498726 | AE196: 0.8270764898 | AF196: 0.8065031069 | AG196: 0.785929724 | AH196: 0.7653563412 | AI196: 0.7447829583
A197: 187 | B197: =+正規乱数!L195 -> 7.451096334 | C197: =+正規乱数!M195 -> 34.79898596 | D197: =+正規乱数!N195 -> 18.13669159 | E197: =+正規乱数!O195 -> 0.130255333 | F197: 27.20503738 | G197: 13.60251869 | H197: 23.56025348 | I197: 16.99141842 | J197: 4.565286885 | K197: 1.154700538 | L197: 8.603784949 | M197: 0.968134809 | O197: 0.9530574849 | P197: 0.9379801608 | Q197: 0.9229028367 | R197: 0.9078255126 | S197: 0.8927481885 | T197: 0.8776708644 | U197: =+(($H197-$I197-U$10*$G$6*$E197*$K197)*TAN($C197*PI()/180)+$L197)/$G197 -> 0.8625935403 | V197: 0.8475162162 | W197: 0.8324388921 | X197: 0.817361568 | Y197: 0.8022842439 | Z197: 0.7872069198 | AA197: 0.7721295957 | AB197: 0.7570522716 | AC197: 0.7419749475 | AD197: 0.7268976234 | AE197: 0.7118202993 | AF197: 0.6967429752 | AG197: 0.6816656511 | AH197: 0.666588327 | AI197: 0.6515110029
A198: 188 | B198: =+正規乱数!L196 -> 6.367016703 | C198: =+正規乱数!M196 -> 31.89670823 | D198: =+正規乱数!N196 -> 18.99639987 | E198: =+正規乱数!O196 -> 0.1808642208 | F198: 28.49459981 | G198: 14.2472999 | H198: 24.67704731 | I198: 16.99141842 | J198: 4.783270041 | K198: 1.154700538 | L198: 7.351997615 | M198: 0.8517591219 | O198: 0.833859908 | P198: 0.8159606942 | Q198: 0.7980614803 | R198: 0.7801622665 | S198: 0.7622630526 | T198: 0.7443638388 | U198: 0.7264646249 | V198: 0.7085654111 | W198: 0.6906661972 | X198: 0.6727669834 | Y198: 0.6548677695 | Z198: 0.6369685557 | AA198: 0.6190693418 | AB198: 0.601170128 | AC198: 0.5832709142 | AD198: 0.5653717003 | AE198: 0.5474724865 | AF198: 0.5295732726 | AG198: 0.5116740588 | AH198: 0.4937748449 | AI198: 0.4758756311
A199: 189 | B199: =+正規乱数!L197 -> 10.55628619 | C199: =+正規乱数!M197 -> 34.18661999 | D199: =+正規乱数!N197 -> 17.38263106 | E199: =+正規乱数!O197 -> 0.1895941015 | F199: 26.07394659 | G199: 13.0369733 | H199: 22.58070012 | I199: 16.99141842 | J199: 3.796564155 | K199: 1.154700538 | L199: 12.18934935 | M199: 1.226198224 | O199: 1.203818684 | P199: 1.181439144 | Q199: 1.159059603 | R199: 1.136680063 | S199: 1.114300523 | T199: 1.091920982 | U199: 1.069541442 | V199: 1.047161902 | W199: 1.024782361 | X199: 1.002402821 | Y199: 0.9800232808 | Z199: 0.9576437405 | AA199: 0.9352642002 | AB199: 0.9128846599 | AC199: 0.8905051196 | AD199: 0.8681255793 | AE199: 0.845746039 | AF199: 0.8233664987 | AG199: 0.8009869584 | AH199: 0.7786074181 | AI199: 0.7562278778
A200: 190 | B200: =+正規乱数!L198 -> 10.85595723 | C200: =+正規乱数!M198 -> 34.72795269 | D200: =+正規乱数!N198 -> 17.88358417 | E200: =+正規乱数!O198 -> 0.1783888419 | F200: 26.82537626 | G200: 13.41268813 | H200: 23.2314573 | I200: 16.99141842 | J200: 4.325313231 | K200: 1.154700538 | L200: 12.53537965 | M200: 1.257070374 | O200: 1.236184604 | P200: 1.215298834 | Q200: 1.194413063 | R200: 1.173527293 | S200: 1.152641522 | T200: 1.131755752 | U200: 1.110869982 | V200: 1.089984211 | W200: 1.069098441 | X200: 1.048212671 | Y200: 1.0273269 | Z200: 1.00644113 | AA200: 0.9855553595 | AB200: 0.9646695891 | AC200: 0.9437838187 | AD200: 0.9228980484 | AE200: 0.902012278 | AF200: 0.8811265076 | AG200: 0.8602407372 | AH200: 0.8393549669 | AI200: 0.8184691965
A201: 191 | B201: =+正規乱数!L199 -> 13.20182946 | C201: =+正規乱数!M199 -> 33.38304987 | D201: =+正規乱数!N199 -> 17.50194975 | E201: =+正規乱数!O199 -> 0.08237270982 | F201: 26.25292462 | G201: 13.12646231 | H201: 22.73569964 | I201: 16.99141842 | J201: 3.785217856 | K201: 1.154700538 | L201: 15.24415959 | M201: 1.449695813 | O201: 1.440327547 | P201: 1.430959281 | Q201: 1.421591015 | R201: 1.412222749 | S201: 1.402854483 | T201: 1.393486217 | U201: 1.38411795 | V201: 1.374749684 | W201: 1.365381418 | X201: 1.356013152 | Y201: 1.346644886 | Z201: 1.33727662 | AA201: 1.327908354 | AB201: 1.318540088 | AC201: 1.309171822 | AD201: 1.299803556 | AE201: 1.29043529 | AF201: 1.281067024 | AG201: 1.271698758 | AH201: 1.262330492 | AI201: 1.252962226
A202: 192 | B202: =+正規乱数!L200 -> 10.58274456 | C202: =+正規乱数!M200 -> 40.6564871 | D202: =+正規乱数!N200 -> 18.82729105 | E202: =+正規乱数!O200 -> 0.1687879133 | F202: 28.24093658 | G202: 14.12046829 | H202: 24.4573685 | I202: 16.99141842 | J202: 6.411871798 | K202: 1.154700538 | L202: 12.21990084 | M202: 1.319486879 | O202: 1.296229522 | P202: 1.272972165 | Q202: 1.249714808 | R202: 1.22645745 | S202: 1.203200093 | T202: 1.179942736 | U202: 1.156685379 | V202: 1.133428021 | W202: 1.110170664 | X202: 1.086913307 | Y202: 1.063655949 | Z202: 1.040398592 | AA202: 1.017141235 | AB202: 0.9938838777 | AC202: 0.9706265204 | AD202: 0.9473691631 | AE202: 0.9241118059 | AF202: 0.9008544486 | AG202: 0.8775970914 | AH202: 0.8543397341 | AI202: 0.8310823768
... 808 more rows

Sheet 正規乱数
N1: 最大値 | O1: 最小値
G2: 乱数を再構築したいときに押すボタン | L2: 期待値 | M2: 標準偏差 | N2: -3σ | O2: +3σ
K3: ｃ | L3: =+入力・出力!H8 -> 10 | M3: =+入力・出力!H9 -> 2 | N3: =+IF(L3-M3*3<0,0,L3-M3*3) -> 4 | O3: =+L3+M3*3 -> 16
K4: φ | L4: =+入力・出力!I8 -> 35 | M4: =+入力・出力!I9 -> 3 | N4: =+IF(L4-M4*3<0,0,L4-M4*3) -> 26 | O4: =+L4+M4*3 -> 44
K5: γ | L5: =+入力・出力!G8 -> 18 | M5: =+入力・出力!G9 -> 1 | N5: 15 | O5: 21
K6: α | L6: =+入力・出力!J8 -> 0.15 | M6: =+入力・出力!J9 -> 0.033 | N6: 0.051 | O6: 0.249
B7: 乱数発生（動的） | G7: 乱数を固定化 （計算結果に再現性を持たせるため） | L7: 再現性のある正規分布したパラメータ群
B8: rand1 | C8: rand2 | D8: rand3 | E8: rand4 | G8: rand1FIX | H8: rand2FIX | I8: rand3FIX | J8: rand4FIX | L8: 正規乱数ｃ | M8: 正規乱数φ | N8: 正規乱数γ | O8: 正規乱数α
A9: 1 | B9: =+RAND() -> 0.1085096203 | C9: =+RAND() -> 0.3759214378 | D9: 0.42643574 | E9: 0.8088683784 | G9: 0.4316826882 | H9: 0.6697794323 | I9: 0.6846985157 | J9: 0.53325881 | L9: =+IF(NORMSINV(G9)*$M$3+$L$3<$N$3,$N$3,NORMSINV(G9)*$M$3+$L$3) -> 9.655816444 | M9: =+IF(NORMSINV(H9)*$M$4+$L$4<$N$4,N4,NORMSINV(H9)*$M$4+$L$4) -> 36.31791258 | N9: =+IF(NORMSINV(I9)*$M$5+$L$5<$N$5,$N$5,NORMSINV(I9)*$M$5+$L$5) -> 18.48087834 | O9: =+IF(NORMSINV(J9)*$M$6+$L$6<$N$6,N$6,NORMSINV(J9)*$M$6+$L$6) -> 0.1527543212
A10: 2 | B10: =+RAND() -> 0.909150948 | C10: 0.4305449862 | D10: 0.3163952098 | E10: 0.3218929919 | G10: 0.1970331806 | H10: 0.3439435051 | I10: 0.7674269672 | J10: 0.4131743994 | L10: =+IF(NORMSINV(G10)*$M$3+$L$3<$N$3,$N$3,NORMSINV(G10)*$M$3+$L$3) -> 8.2954676 | M10: =+IF(NORMSINV(H10)*$M$4+$L$4<$N$4,N5,NORMSINV(H10)*$M$4+$L$4) -> 33.79482739 | N10: =+IF(NORMSINV(I10)*$M$5+$L$5<$N$5,$N$5,NORMSINV(I10)*$M$5+$L$5) -> 18.73039943 | O10: =+IF(NORMSINV(J10)*$M$6+$L$6<$N$6,N$6,NORMSINV(J10)*$M$6+$L$6) -> 0.1427602376
A11: 3 | B11: 0.813706354 | C11: 0.7294610328 | D11: 0.004778450789 | E11: 0.1276573352 | G11: 0.01586132612 | H11: 0.6449238634 | I11: 0.69748838 | J11: 0.8877808895 | L11: 5.704223958 | M11: 36.11495477 | N11: 18.51719042 | O11: 0.1900887598
A12: 4 | B12: 0.638150969 | C12: 0.2958506544 | D12: 0.1328896043 | E12: 0.6712551654 | G12: 0.108772226 | H12: 0.04093707518 | I12: 0.5029636547 | J12: 0.9936152751 | L12: 7.533832138 | M12: 29.78025852 | N12: 18.00742885 | O12: 0.2321744627
A13: 5 | B13: 0.9859017214 | C13: 0.343466481 | D13: 0.7914526615 | E13: 0.9283136496 | G13: 0.007671491278 | H13: 0.6149183189 | I13: 0.32839971 | J13: 0.3435119537 | L13: 5.151639242 | M13: 35.87648365 | N13: 17.55566364 | O13: 0.1367043949
A14: 6 | B14: 0.2236147787 | C14: 0.8416309199 | D14: 0.6376362098 | E14: 0.2367093425 | G14: 0.7862335849 | H14: 0.4769689158 | I14: 0.5244946898 | J14: 0.839588246 | L14: 11.58684114 | M14: 34.82671259 | N14: 18.06143771 | O14: 0.1827613115
A15: 7 | B15: 0.7767080217 | C15: 0.9154386557 | D15: 0.8197450134 | E15: 0.01679070837 | G15: 0.1011255523 | H15: 0.5664357336 | I15: 0.3651407933 | J15: 0.02429784602 | L15: 7.449671458 | M15: 35.50192086 | N15: 17.65524902 | O15: 0.08491997717
A16: 8 | B16: 0.2830929994 | C16: 0.3421148556 | D16: 0.9071862498 | E16: 0.05699699018 | G16: 0.8546549505 | H16: 0.839120909 | I16: 0.4814361459 | J16: 0.6359002002 | L16: 12.11321788 | M16: 37.97255398 | N16: 17.95345051 | O16: 0.1614682082
A17: 9 | B17: 0.113652083 | C17: 0.1102142047 | D17: 0.6684356723 | E17: 0.2179868688 | G17: 0.7495655023 | H17: 0.004736057397 | I17: 0.8366355637 | J17: 0.9411935169 | L17: 11.34624615 | M17: 27.21641872 | N17: 18.98072399 | O17: 0.2016407702
A18: 10 | B18: 0.2001154551 | C18: 0.5426823966 | D18: 0.3913666311 | E18: 0.100686556 | G18: 0.3252656534 | H18: 0.06012246957 | I18: 0.1062278767 | J18: 0.886606603 | L18: 9.093951575 | M18: 30.33876104 | N18: 16.75315886 | O18: 0.1898863554
A19: 11 | B19: 0.1647955345 | C19: 0.7996324039 | D19: 0.05447318888 | E19: 0.6104217662 | G19: 0.5493980907 | H19: 0.2409320647 | I19: 0.04621827881 | J19: 0.7712800689 | L19: 10.24828154 | M19: 32.89007746 | N19: 16.31731743 | O19: 0.1745212794
A20: 12 | B20: 0.1781836926 | C20: 0.9945831522 | D20: 0.3459928773 | E20: 0.1889514759 | G20: 0.5184521437 | H20: 0.4512607826 | I20: 0.9404639688 | J20: 0.3949199513 | L20: 10.09253834 | M20: 34.63257016 | N20: 19.55868032 | O20: 0.141204889
A21: 13 | B21: 0.5818254132 | C21: 0.05355863407 | D21: 0.8752402773 | E21: 0.08556857863 | G21: 0.1111641634 | H21: 0.04592261698 | I21: 0.7869909103 | J21: 0.6017459574 | L21: 7.559279435 | M21: 29.9427698 | N21: 18.79602384 | O21: 0.1585096738
A22: 14 | B22: 0.2385701707 | C22: 0.9244722342 | D22: 0.958048624 | E22: 0.4813754039 | G22: 0.08535889155 | H22: 0.7433022928 | I22: 0.4012114343 | J22: 0.09564411576 | L22: 7.260197844 | M22: 36.96067957 | N22: 17.74978731 | O22: 0.1068763369
A23: 15 | B23: 0.4870431474 | C23: 0.3797959043 | D23: 0.01129476763 | E23: 0.3499826904 | G23: 0.8506675108 | H23: 0.005305243991 | I23: 0.288517056 | J23: 0.5471342526 | L23: 12.0786011 | M23: 27.33418431 | N23: 17.44227782 | O23: 0.153908001
A24: 16 | B24: 0.8526226629 | C24: 0.3017343871 | D24: 0.01057216233 | E24: 0.7905776996 | G24: 0.04039576026 | H24: 0.4492434246 | I24: 0.9830796299 | J24: 0.7033877388 | L24: 6.507776328 | M24: 34.61728081 | N24: 20.12196425 | O24: 0.1676275814
A25: 17 | B25: 0.6100066483 | C25: 0.7809942429 | D25: 0.8820709574 | E25: 0.1643990657 | G25: 0.8250194368 | H25: 0.2330006215 | I25: 0.312744841 | J25: 0.1152210438 | L25: 11.86932939 | M25: 32.81299794 | N25: 17.51191507 | O25: 0.1104257124
A26: 18 | B26: 0.5049656563 | C26: 0.358739224 | D26: 0.5390633944 | E26: 0.4925630255 | G26: 0.2577534103 | H26: 0.7979362008 | I26: 0.1652942381 | J26: 0.03688893042 | L26: 8.6994259 | M26: 37.50281668 | N26: 17.02707077 | O26: 0.09099637901
A27: 19 | B27: 0.8856809241 | C27: 0.7817704025 | D27: 0.5056364112 | E27: 0.7685417543 | G27: 0.3669137055 | H27: 0.8390920518 | I27: 0.909871745 | J27: 0.2859787093 | L27: 9.319922671 | M27: 37.97219947 | N27: 19.33996566 | O27: 0.131349355
A28: 20 | B28: 0.7710246635 | C28: 0.6866241968 | D28: 0.3019397598 | E28: 0.8863635206 | G28: 0.9142597804 | H28: 0.6566901542 | I28: 0.4076590668 | J28: 0.2385488299 | L28: 12.73492465 | M28: 36.21033988 | N28: 17.76642912 | O28: 0.1265377149
A29: 21 | B29: 0.8684592529 | C29: 0.9073486888 | D29: 0.822153072 | E29: 0.2694976879 | G29: 0.1955677154 | H29: 0.3363007442 | I29: 0.9979834726 | J29: 0.7635210253 | L29: 8.284879857 | M29: 33.73225904 | N29: 20.8755647 | O29: 0.1736832617
A30: 22 | B30: 0.2729352499 | C30: 0.3815822913 | D30: 0.1636895859 | E30: 0.1184208644 | G30: 0.204002822 | H30: 0.791666739 | I30: 0.1419424747 | J30: 0.6694285242 | L30: 8.345183281 | M30: 37.43665416 | N30: 16.9283671 | O30: 0.164465078
A31: 23 | B31: 0.3604458015 | C31: 0.7089294332 | D31: 0.9398854235 | E31: 0.5604958124 | G31: 0.9639106971 | H31: 0.1499502071 | I31: 0.05526228867 | J31: 0.5042756842 | L31: 13.59597983 | M31: 31.89005909 | N31: 16.40416026 | O31: 0.1503536859
A32: 24 | B32: 0.3088028668 | C32: 0.4462256893 | D32: 0.8930308892 | E32: 0.3203199017 | G32: 0.7860917622 | H32: 0.8427196751 | I32: 0.9120387265 | J32: 0.5748940091 | L32: 11.58586732 | M32: 38.01709534 | N32: 19.35341669 | O32: 0.1562319827
A33: 25 | B33: 0.8719697737 | C33: 0.7369174268 | D33: 0.3208540296 | E33: 0.777707745 | G33: 0.867292493 | H33: 0.7949869159 | I33: 0.7373787077 | J33: 0.7302889155 | L33: 12.22736689 | M33: 37.47154274 | N33: 18.63528495 | O33: 0.1702516716
A34: 26 | B34: 0.2817104663 | C34: 0.2671072907 | D34: 0.8715726674 | E34: 0.6599404264 | G34: 0.3259735031 | H34: 0.003560662389 | I34: 0.5699799326 | J34: 0.05974518925 | L34: 9.097881944 | M34: 26.92664946 | N34: 18.17632308 | O34: 0.09862176482
A35: 27 | B35: 0.1719322564 | C35: 0.5407352885 | D35: 0.1601254295 | E35: 0.6076355345 | G35: 0.9184053091 | H35: 0.6883897294 | I35: 0.4076579014 | J35: 0.7202699696 | L35: 12.78884948 | M35: 36.47387344 | N35: 17.76642611 | O35: 0.1692602417
A36: 28 | B36: 0.5117319334 | C36: 0.5347076847 | D36: 0.5973651263 | E36: 0.05205443502 | G36: 0.377507221 | H36: 0.6295436248 | I36: 0.3380657737 | J36: 0.9323406693 | L36: 9.375931363 | M36: 35.99193461 | N36: 17.58225224 | O36: 0.1992839474
A37: 29 | B37: 0.885475661 | C37: 0.5396367608 | D37: 0.9731053526 | E37: 0.8074266188 | G37: 0.9365191045 | H37: 0.424272689 | I37: 0.7161840122 | J37: 0.8972198676 | L37: 13.05238612 | M37: 34.42707576 | N37: 18.57154248 | O37: 0.1917736514
A38: 30 | B38: 0.9634872123 | C38: 0.5504577852 | D38: 0.7412265342 | E38: 0.7439582228 | G38: 0.7812297253 | H38: 0.02161156244 | I38: 0.2204621205 | J38: 0.3048007263 | L38: 11.55270613 | M38: 28.93535763 | N38: 17.22936657 | O38: 0.1331487995
A39: 31 | B39: 0.8117277341 | C39: 0.2062046135 | D39: 0.8584767235 | E39: 0.2164664072 | G39: 0.4834169479 | H39: 0.2585053039 | I39: 0.008812738375 | J39: 0.5623114751 | L39: 9.91684095 | M39: 33.05611901 | N39: 15.62660653 | O39: 0.1551754645
A40: 32 | B40: 0.9375990239 | C40: 0.6270365536 | D40: 0.08945180792 | E40: 0.7936581757 | G40: 0.5004329954 | H40: 0.3015633882 | I40: 0.1731210451 | J40: 0.7322448587 | L40: 10.00217072 | M40: 33.44027203 | N40: 17.05809658 | O40: 0.1704473454
A41: 33 | B41: 0.9591523973 | C41: 0.7270924948 | D41: 0.7416709133 | E41: 0.4274792901 | G41: 0.420776498 | H41: 0.1549424785 | I41: 0.9105004999 | J41: 0.2107058691 | L41: 9.600185182 | M41: 31.95360963 | N41: 19.3438435 | O41: 0.1234688436
A42: 34 | B42: 0.8616824672 | C42: 0.7071413303 | D42: 0.8300966925 | E42: 0.9564082178 | G42: 0.8865208297 | H42: 0.6010199671 | I42: 0.9892077391 | J42: 0.4996930241 | L42: 12.41646242 | M42: 35.76796415 | N42: 20.29760077 | O42: 0.1499746073
A43: 35 | B43: 0.3189637193 | C43: 0.5257149111 | D43: 0.7806867495 | E43: 0.0599663345 | G43: 0.9772942886 | H43: 0.7566744788 | I43: 0.6297686603 | J43: 0.2352759134 | L43: 14.00164684 | M43: 37.08693565 | N43: 18.3312407 | O43: 0.1261878111
A44: 36 | B44: 0.9585216427 | C44: 0.2271513365 | D44: 0.004335987886 | E44: 0.5511108393 | G44: 0.3823880194 | H44: 0.9799375233 | I44: 0.6872679366 | J44: 0.8556949329 | L44: 9.401570089 | M44: 41.15738078 | N44: 18.48812101 | O44: 0.1850187928
A45: 37 | B45: 0.3545486562 | C45: 0.1946150135 | D45: 0.1001599115 | E45: 0.294292487 | G45: 0.5114351745 | H45: 0.6394014268 | I45: 0.6188412202 | J45: 0.7877061554 | L45: 10.05733532 | M45: 36.07057787 | N45: 18.30243883 | O45: 0.1763500849
A46: 38 | B46: 0.876602241 | C46: 0.8132337018 | D46: 0.09435131118 | E46: 0.5393655911 | G46: 0.8319872978 | H46: 0.979627845 | I46: 0.6848850036 | J46: 0.6382778482 | L46: 11.92409635 | M46: 41.1383678 | N46: 18.48140316 | O46: 0.1616773581
A47: 39 | B47: 0.4358419305 | C47: 0.1123325275 | D47: 0.9226405754 | E47: 0.8977496915 | G47: 0.6961639521 | H47: 0.9654901523 | I47: 0.873551399 | J47: 0.9370555927 | L47: 11.02679843 | M47: 40.45487245 | N47: 19.14334061 | O47: 0.2005070602
A48: 40 | B48: 0.1759225034 | C48: 0.8003103959 | D48: 0.5352036028 | E48: 0.5442240591 | G48: 0.9214812554 | H48: 0.8982064446 | I48: 0.4424610165 | J48: 0.383983883 | L48: 12.83021152 | M48: 38.81419386 | N48: 17.85526744 | O48: 0.1402638719
A49: 41 | B49: 0.08017671665 | C49: 0.05763677015 | D49: 0.9495312684 | E49: 0.5088878554 | G49: 0.06303589475 | H49: 0.6350577968 | I49: 0.01851027783 | J49: 0.1455716608 | L49: 6.940444812 | M49: 36.0358379 | N49: 15.9144627 | O49: 0.1151646456
A50: 42 | B50: 0.9498426574 | C50: 0.9710288192 | D50: 0.4999357162 | E50: 0.1576065868 | G50: 0.4043707128 | H50: 0.0423757649 | I50: 0.6506849183 | J50: 0.5243318441 | L50: 9.515900013 | M50: 29.82872584 | N50: 18.38717026 | O50: 0.1520139488
A51: 43 | B51: 0.1797274244 | C51: 0.8206502439 | D51: 0.1194876621 | E51: 0.8240092687 | G51: 0.7054961391 | H51: 0.2508408099 | I51: 0.6633759858 | J51: 0.7724519596 | L51: 11.08054906 | M51: 32.98446143 | N51: 18.42169449 | O51: 0.1746492222
A52: 44 | B52: 0.8020292347 | C52: 0.2157439364 | D52: 0.1371969394 | E52: 0.7415194848 | G52: 0.572195437 | H52: 0.2989291528 | I52: 0.3758451627 | J52: 0.1102542019 | L52: 10.36393272 | M52: 33.41755138 | N52: 17.68358868 | O52: 0.1095691472
A53: 45 | B53: 0.7377771018 | C53: 0.8308785287 | D53: 0.9566511195 | E53: 0.8795253799 | G53: 0.3457192528 | H53: 0.250258679 | I53: 0.5598921834 | J53: 0.5111307729 | L53: 9.206192681 | M53: 32.97897216 | N53: 18.15069587 | O53: 0.1509208429
A54: 46 | B54: 0.9136910212 | C54: 0.4858505218 | D54: 0.2608940164 | E54: 0.6337553702 | G54: 0.2317824052 | H54: 0.05328981349 | I54: 0.6413616993 | J54: 0.5530728638 | L54: 8.534020924 | M54: 30.15872184 | N54: 18.36210094 | O54: 0.1544031503
A55: 47 | B55: 0.6621961757 | C55: 0.07040039853 | D55: 0.1384487455 | E55: 0.1073266408 | G55: 0.9898218128 | H55: 0.4488412191 | I55: 0.9403308288 | J55: 0.9030539988 | L55: 14.63942725 | M55: 34.61423136 | N55: 19.55755682 | O55: 0.1928719937
A56: 48 | B56: 0.9031403809 | C56: 0.2224647863 | D56: 0.9440625344 | E56: 0.835138864 | G56: 0.4776575181 | H56: 0.1594289233 | I56: 0.4940142351 | J56: 0.7165488936 | L56: 9.88793279 | M56: 32.00957682 | N56: 17.98499535 | O56: 0.1688964504
A57: 49 | B57: 0.1626390797 | C57: 0.4368596054 | D57: 0.9835365521 | E57: 0.6030411708 | G57: 0.8478751859 | H57: 0.7810860738 | I57: 0.6472060953 | J57: 0.4356259896 | L57: 12.05472574 | M57: 37.32759931 | N57: 18.37778838 | O57: 0.1446517423
A58: 50 | B58: 0.8775199958 | C58: 0.06250778835 | D58: 0.477439731 | E58: 0.4407379916 | G58: 0.02039842874 | H58: 0.2381859534 | I58: 0.6547955308 | J58: 0.03956949867 | L58: 5.908822667 | M58: 32.86355006 | N58: 18.39830017 | O58: 0.09206177454
A59: 51 | B59: 0.1652753537 | C59: 0.4723710795 | D59: 0.1107785679 | E59: 0.1385104225 | G59: 0.2984143143 | H59: 0.2640253994 | I59: 0.06477610059 | J59: 0.866603786 | L59: 8.942066825 | M59: 33.10704714 | N59: 16.4841299 | O59: 0.1866458257
A60: 52 | B60: 0.2008552786 | C60: 0.2320628713 | D60: 0.611075161 | E60: 0.706923047 | G60: 0.1568810891 | H60: 0.428647688 | I60: 0.5793810836 | J60: 0.9904966478 | L60: 7.985281549 | M60: 34.46054571 | N60: 18.2003104 | O60: 0.2273981818
A61: 53 | B61: 0.7897268135 | C61: 0.02062337032 | D61: 0.4306047537 | E61: 0.3407318989 | G61: 0.7087141006 | H61: 0.8524005396 | I61: 0.08829355446 | J61: 0.9682088336 | L61: 11.09926402 | M61: 38.14035389 | N61: 16.64866176 | O61: 0.211218211
A62: 54 | B62: 0.9665370699 | C62: 0.08990926491 | D62: 0.5962347893 | E62: 0.7177111561 | G62: 0.3614747667 | H62: 0.2767546183 | I62: 0.1032674885 | J62: 0.6099145587 | L62: 9.290960841 | M62: 33.22247049 | N62: 16.73684916 | O62: 0.1592101796
A63: 55 | B63: 0.4103752569 | C63: 0.6031218059 | D63: 0.2880198279 | E63: 0.3849556523 | G63: 0.661430703 | H63: 0.1720857921 | I63: 0.1706970473 | J63: 0.2177683571 | L63: 10.83274187 | M63: 32.16213527 | N63: 17.04858568 | O63: 0.1242681756
A64: 56 | B64: 0.3982479831 | C64: 0.4039491651 | D64: 0.6897483365 | E64: 0.6170868754 | G64: 0.3248636155 | H64: 0.6778233072 | I64: 0.08290292859 | J64: 0.8175835217 | L64: 9.091717683 | M64: 36.38486194 | N64: 16.61419304 | O64: 0.1799044158
A65: 57 | B65: 0.7287702498 | C65: 0.6002291063 | D65: 0.1649866954 | E65: 0.05543001126 | G65: 0.7776194185 | H65: 0.5100383702 | I65: 0.3856586366 | J65: 0.3045804326 | L65: 11.52835604 | M65: 35.07549536 | N65: 17.70934772 | O65: 0.1331280361
A66: 58 | B66: 0.7713488751 | C66: 0.01446166606 | D66: 0.7088951215 | E66: 0.5615833602 | G66: 0.3975407895 | H66: 0.1499852098 | I66: 0.04480880617 | J66: 0.1777627243 | L66: 9.480564705 | M66: 31.89050952 | N66: 16.30258174 | O66: 0.1195104803
A67: 59 | B67: 0.4353473384 | C67: 0.6066175995 | D67: 0.9966088737 | E67: 0.5330235875 | G67: 0.9702862509 | H67: 0.6840236053 | I67: 0.1775347106 | J67: 0.859120885 | L67: 13.77003466 | M67: 36.43694028 | N67: 17.07519898 | O67: 0.1855204745
A68: 60 | B68: 0.1880490977 | C68: 0.9136970256 | D68: 0.4447695882 | E68: 0.5356863484 | G68: 0.4253494086 | H68: 0.6998779825 | I68: 0.8472192303 | J68: 0.6787344063 | L68: 9.623546279 | M68: 36.57214883 | N68: 19.02457972 | O68: 0.1653173689
A69: 61 | B69: 0.9166597837 | C69: 0.8257461915 | D69: 0.455153956 | E69: 0.2133480972 | G69: 0.8153501509 | H69: 0.3043037334 | I69: 0.3108750221 | J69: 0.2304378188 | L69: 11.79557182 | M69: 33.46381335 | N69: 17.5066284 | O69: 0.1256656101
A70: 62 | B70: 0.2682531343 | C70: 0.6438181134 | D70: 0.3695424693 | E70: 0.6540336098 | G70: 0.7673532981 | H70: 0.06687068694 | I70: 0.4725360456 | J70: 0.09937965696 | L70: 11.46031668 | M70: 30.50146997 | N70: 17.93110361 | O70: 0.1075918863
A71: 63 | B71: 0.5322455957 | C71: 0.6508480093 | D71: 0.3142791047 | E71: 0.057201853 | G71: 0.6303670437 | H71: 0.86548984 | I71: 0.9316325441 | J71: 0.9383200562 | L71: 10.66565125 | M71: 38.3159644 | N71: 19.4880606 | O71: 0.2008471566
A72: 64 | B72: 0.5301876563 | C72: 0.9490752485 | D72: 0.2097177625 | E72: 0.4619564905 | G72: 0.6290425895 | H72: 0.1404394578 | I72: 0.9969120911 | J72: 0.6215471718 | L72: 10.65863737 | M72: 31.7649589 | N72: 20.73829751 | O72: 0.1602150427
A73: 65 | B73: 0.712090234 | C73: 0.02527127143 | D73: 0.1416341856 | E73: 0.9842377945 | G73: 0.3377994779 | H73: 0.005848662509 | I73: 0.745287982 | J73: 0.8321489148 | L73: 9.163047523 | M73: 27.43656149 | N73: 18.65973479 | O73: 0.1817688322
A74: 66 | B74: =+RAND() -> 0.3924750546 | C74: 0.03161336978 | D74: 0.3300147511 | E74: 0.03476336925 | G74: 0.3650880059 | H74: 0.2356156945 | I74: 0.3453027704 | J74: 0.9196708216 | L74: =+IF(NORMSINV(G74)*$M$3+$L$3<$N$3,$N$3,NORMSINV(G74)*$M$3+$L$3) -> 9.310217188 | M74: =+IF(NORMSINV(H74)*$M$4+$L$4<$N$4,N69,NORMSINV(H74)*$M$4+$L$4) -> 32.83856916 | N74: =+IF(NORMSINV(I74)*$M$5+$L$5<$N$5,$N$5,NORMSINV(I74)*$M$5+$L$5) -> 17.60196657 | O74: =+IF(NORMSINV(J74)*$M$6+$L$6<$N$6,N$6,NORMSINV(J74)*$M$6+$L$6) -> 0.1962944059
A75: 67 | B75: 0.6257037726 | C75: 0.7716008217 | D75: 0.657036759 | E75: 0.7153768689 | G75: 0.9985409339 | H75: 0.7133409055 | I75: 0.439622738 | J75: 0.3114689687 | L75: 15.95246568 | M75: 36.68951414 | N75: 17.84807422 | O75: 0.1337742033
A76: 68 | B76: 0.7583835904 | C76: 0.07187705587 | D76: 0.9925130597 | E76: 0.1581898419 | G76: 0.3706249872 | H76: 0.6556292464 | I76: 0.4929099343 | J76: 0.9873418857 | L76: 9.339602985 | M76: 36.20169056 | N76: 17.98222691 | O76: 0.2238059166
A77: 69 | B77: 0.6432961976 | C77: 0.6389862407 | D77: 0.3591946034 | E77: 0.768696798 | G77: 0.1871817458 | H77: 0.5703149506 | I77: 0.82728141 | J77: 0.725036209 | L77: 8.223340836 | M77: 35.53152818 | N77: 18.9434766 | O77: 0.1697296653
A78: 70 | B78: 0.8966974473 | C78: 0.5214403715 | D78: 0.3949038705 | E78: 0.2567097411 | G78: 0.7956837006 | H78: 0.06810094899 | I78: 0.4817396898 | J78: 0.6316010251 | L78: 11.65260471 | M78: 30.52974512 | N78: 17.9542122 | O78: 0.161091191
A79: 71 | B79: 0.5116459954 | C79: 0.3535909252 | D79: 0.326253381 | E79: 0.5527466304 | G79: 0.1649152819 | H79: 0.4626442205 | I79: 0.5804821271 | J79: 0.5642119763 | L79: 8.051089563 | M79: 34.71867708 | N79: 18.20312703 | O79: 0.1553346777
A80: 72 | B80: 0.4399673673 | C80: 0.5517292633 | D80: 0.04421886322 | E80: 0.4731004793 | G80: 0.09310016851 | H80: 0.461508336 | I80: 0.03553211273 | J80: 0.1247380952 | L80: 7.356193302 | M80: 34.71009655 | N80: 16.19493317 | O80: 0.1119964542
A81: 73 | B81: 0.8725255959 | C81: 0.2171490132 | D81: 0.8797521562 | E81: 0.976873145 | G81: 0.4740508246 | H81: 0.3843216479 | I81: 0.7430269862 | J81: 0.109850361 | L81: 9.869818259 | M81: 34.11755004 | N81: 18.6527057 | O81: 0.1094982978
A82: 74 | B82: 0.6533045614 | C82: 0.6919666748 | D82: 0.649235234 | E82: 0.7499414063 | G82: 0.7055176563 | H82: 0.3766905918 | I82: 0.6191096346 | J82: 0.3151232157 | L82: 11.08067388 | M82: 34.05744756 | N82: 18.3031432 | O82: 0.1341144592
A83: 75 | B83: 0.6234584136 | C83: 0.9086921334 | D83: 0.1436390494 | E83: 0.346905836 | G83: 0.05235545608 | H83: 0.9740560271 | I83: 0.03667367966 | J83: 0.9326931229 | L83: 6.755136281 | M83: 40.83218673 | N83: 16.20933681 | O83: 0.1993730534
A84: 76 | B84: 0.4991380769 | C84: 0.6039890614 | D84: 0.6970233123 | E84: 0.3928040021 | G84: 0.5434374469 | H84: 0.8420823012 | I84: 0.7469060638 | J84: 0.5246535492 | L84: 10.21819513 | M84: 38.00915833 | N84: 18.66478523 | O84: 0.1520406101
A85: 77 | B85: 0.2968474683 | C85: 0.6729296581 | D85: 0.8091442525 | E85: 0.4178288355 | G85: 0.3867124847 | H85: 0.6486146712 | I85: 0.9889766808 | J85: 0.09114654056 | L85: 9.424204396 | M85: 36.14474915 | N85: 20.28956341 | O85: 0.1059869827
A86: 78 | B86: 0.7758726576 | C86: 0.6309599405 | D86: 0.9876993049 | E86: 0.1524714516 | G86: 0.03099524228 | H86: 0.01064183209 | I86: 0.7334100718 | J86: 0.7153802961 | L86: 6.267272405 | M86: 28.09125703 | N86: 18.62315928 | O86: 0.1687826766
A87: 79 | B87: 0.3535345518 | C87: 0.0675978102 | D87: 0.4461939189 | E87: 0.7334750697 | G87: 0.4203548988 | H87: 0.2940017701 | I87: 0.6159763857 | J87: 0.02563109038 | L87: 9.598028707 | M87: 33.37480573 | N87: 18.29493016 | O87: 0.08567381117
A88: 80 | B88: 0.3718313103 | C88: 0.6355180153 | D88: 0.6959454592 | E88: 0.8963814319 | G88: 0.4368957933 | H88: 0.3754227944 | I88: 0.5232388207 | J88: 0.870850936 | L88: 9.682311504 | M88: 34.04742625 | N88: 18.05828407 | O88: 0.1873039511
A89: 81 | B89: 0.6364335177 | C89: 0.05477997279 | D89: 0.2821260027 | E89: 0.8519594954 | G89: 0.8530983912 | H89: 0.1016773901 | I89: 0.5049178569 | J89: 0.1008906 | L89: 12.09962983 | M89: 31.18384515 | N89: 18.01232755 | O89: 0.1078757217
A90: 82 | B90: 0.6870787392 | C90: 0.003706308293 | D90: 0.4110221219 | E90: 0.6528510944 | G90: 0.9174473734 | H90: 0.4687031172 | I90: 0.4205591903 | J90: 0.2062418501 | L90: 12.77620883 | M90: 34.76440912 | N90: 17.79953686 | O90: 0.1229554873
A91: 83 | B91: 0.5431248621 | C91: 0.3864614658 | D91: 0.2730599808 | E91: 0.6798294221 | G91: 0.609882804 | H91: 0.05114831399 | I91: 0.37980983 | J91: 0.5441147389 | L91: 10.55802719 | M91: 30.09853966 | N91: 17.69401972 | O91: 0.1536565841
A92: 84 | B92: 0.8538533562 | C92: 0.5252995955 | D92: 0.2468720691 | E92: 0.04279058853 | G92: 0.668151392 | H92: 0.6388676268 | I92: 0.08363326296 | J92: 0.1660345163 | L92: 10.86962862 | M92: 36.06630094 | N92: 16.61895956 | O92: 0.1179914922
A93: 85 | B93: 0.5437967744 | C93: 0.6147832574 | D93: 0.7555470429 | E93: 0.2972253716 | G93: 0.7336020621 | H93: 0.3123398194 | I93: 0.4311492357 | J93: 0.2173363137 | L93: 11.24748753 | M93: 33.53231325 | N93: 17.82655095 | O93: 0.1242197128
A94: 86 | B94: 0.2617870044 | C94: 0.7853918579 | D94: 0.4261610729 | E94: 0.02295259014 | G94: 0.008007762137 | H94: 0.6125907921 | I94: 0.3930139646 | J94: 0.7672731518 | L94: 5.182876845 | M94: 35.85823386 | N94: 17.72852787 | O94: 0.1740865713
A95: 87 | B95: 0.3958473229 | C95: 0.1753430478 | D95: 0.8001591335 | E95: 0.8641012814 | G95: 0.4187081816 | H95: 0.1911225508 | I95: 0.7231538559 | J95: 0.3414491775 | L95: 9.589601264 | M95: 32.3786987 | N95: 18.59223641 | O95: 0.1365191279
A96: 88 | B96: 0.7259633122 | C96: 0.804865511 | D96: 0.7188724568 | E96: 0.5256770143 | G96: 0.142734358 | H96: 0.652974053 | I96: 0.195779657 | J96: 0.01791517952 | L96: 7.863770335 | M96: 36.18008697 | N96: 17.14320703 | O96: 0.08073803735
A97: 89 | B97: 0.09770451453 | C97: 0.1520905933 | D97: 0.6043989682 | E97: 0.6756422357 | G97: 0.4901218614 | H97: 0.5911699463 | I97: 0.4706288748 | J97: 0.6780855557 | L97: 9.950473296 | M97: 35.69166663 | N97: 17.92631087 | O97: 0.1652576172
A98: 90 | B98: 0.3491665693 | C98: 0.7084840859 | D98: 0.8144258722 | E98: 0.0291148212 | G98: 0.08016993737 | H98: 0.1865620038 | I98: 0.3995609302 | J98: 0.7482399148 | L98: 7.192141206 | M98: 32.32808936 | N98: 17.74551625 | O98: 0.1720757226
A99: 91 | B99: 0.5106445169 | C99: 0.0885796 | D99: 0.7890808267 | E99: 0.06426497488 | G99: 0.8086406247 | H99: 0.3033042382 | I99: 0.5750128693 | J99: 0.3418215912 | L99: 11.74579573 | M99: 33.45523808 | N99: 18.18915127 | O99: 0.1365526073
A100: 92 | B100: 0.09721518591 | C100: 0.3363768051 | D100: 0.5734300337 | E100: 0.2602738341 | G100: 0.5908568863 | H100: 0.8287191684 | I100: 0.6370504273 | J100: 0.3811484678 | L100: 10.45949952 | M100: 37.84734773 | N100: 18.35058575 | O100: 0.1400186258
A101: 93 | B101: 0.9042599585 | C101: 0.8733885129 | D101: 0.002211856307 | E101: 0.02780170178 | G101: 0.8114032598 | H101: 0.8812385704 | I101: 0.9301719036 | J101: 0.1824522165 | L101: 11.7661584 | M101: 38.54360319 | N101: 19.47707254 | O101: 0.120100041
A102: 94 | B102: 0.4482712535 | C102: 0.2094330042 | D102: 0.8991894861 | E102: 0.3929760919 | G102: 0.2434169148 | H102: 0.3005949319 | I102: 0.3609224077 | J102: 0.7313118897 | L102: 8.609293113 | M102: 33.43192942 | N102: 17.64400568 | O102: 0.1703539213
A103: 95 | B103: 0.9892765959 | C103: 0.7190918759 | D103: 0.5119221018 | E103: 0.5372418335 | G103: 0.7758315904 | H103: 0.3207337949 | I103: 0.1124859781 | J103: 0.5550899081 | L103: 11.51638143 | M103: 33.60305646 | N103: 16.78658699 | O103: 0.1545715475
A104: 96 | B104: 0.6497865169 | C104: 0.268306608 | D104: 0.4328242164 | E104: 0.5805139373 | G104: 0.6194107575 | H104: 0.5230188092 | I104: 0.5036532603 | J104: 0.2884935202 | L104: 10.60786718 | M104: 35.17319495 | N104: 18.00915749 | O104: 0.1315928937
A105: 97 | B105: 0.8576469597 | C105: 0.01705153233 | D105: 0.2332829061 | E105: 0.3592752343 | G105: 0.6773310087 | H105: 0.6994134699 | I105: 0.3893510703 | J105: 0.6312640983 | L105: 10.92049666 | M105: 36.56814301 | N105: 17.71898923 | O105: 0.1610617058
A106: 98 | B106: 0.7397430219 | C106: 0.676783034 | D106: 0.6568994288 | E106: 0.1358202422 | G106: 0.6345382625 | H106: 0.7016823374 | I106: 0.2366608629 | J106: 0.3326249516 | L106: 10.68779473 | M106: 36.58773577 | N106: 17.28291512 | O106: 0.13572168
A107: 99 | B107: 0.7767839364 | C107: 0.6137132565 | D107: 0.9254812623 | E107: 0.8060796566 | G107: 0.07586031928 | H107: 0.4101302352 | I107: 0.2771320222 | J107: 0.1826753998 | L107: 7.133039496 | M107: 34.31837007 | N107: 17.40861732 | O107: 0.1201278616
A108: 100 | B108: 0.4138982995 | C108: 0.2520075254 | D108: 0.9488876176 | E108: 0.1395793508 | G108: 0.3050526474 | H108: 0.06178049369 | I108: 0.6306818411 | J108: 0.4598913986 | L108: 8.980153678 | M108: 30.3800078 | N108: 18.33365976 | O108: 0.1466766583
A109: 101 | B109: 0.7816122787 | C109: 0.02713337194 | D109: 0.2224765599 | E109: 0.3804394627 | G109: 0.4191987558 | H109: 0.2931010389 | I109: 0.4701512577 | J109: 0.1996107836 | L109: 9.592112642 | M109: 33.36695624 | N109: 17.92511035 | O109: 0.1221805942
A110: 102 | B110: 0.2755192019 | C110: 0.6138741877 | D110: 0.8051806405 | E110: 0.2509004096 | G110: 0.6692426737 | H110: 0.8208963315 | I110: 0.04171858495 | J110: 0.07634503919 | L110: 10.87564585 | M110: 37.75635903 | N110: 16.26891817 | O110: 0.1028069022
A111: 103 | B111: 0.3797670269 | C111: 0.2693651354 | D111: 0.4029793207 | E111: 0.3037580083 | G111: 0.2180425721 | H111: 0.8632780768 | I111: 0.7910092754 | J111: 0.1637538269 | L111: 8.442357928 | M111: 38.28549849 | N111: 18.80992819 | O111: 0.1176881692
A112: 104 | B112: 0.08241013595 | C112: 0.092593533 | D112: 0.6956196562 | E112: 0.6881871617 | G112: 0.9572979895 | H112: 0.6845870249 | I112: 0.7974568643 | J112: 0.2428194805 | L112: 13.44031274 | M112: 36.44169393 | N112: 18.8325718 | O112: 0.1269903601
A113: 105 | B113: 0.1536999377 | C113: 0.4102637833 | D113: 0.5250448934 | E113: 0.5160498405 | G113: 0.1333952735 | H113: 0.8489141052 | I113: 0.5813064969 | J113: 0.7413118289 | L113: 7.77903213 | M113: 38.09536177 | N113: 18.20523694 | O113: 0.1713640344
A114: 106 | B114: 0.9371620426 | C114: 0.5733802872 | D114: 0.3620635373 | E114: 0.4177636405 | G114: 0.6327093326 | H114: 0.8316681207 | I114: 0.8585509381 | J114: 0.9836845682 | L114: 10.67807539 | M114: 37.88233426 | N114: 19.07383169 | O114: 0.2205076687
A115: 107 | B115: 0.869456176 | C115: 0.4299707814 | D115: 0.7026054873 | E115: 0.9906611837 | G115: 0.8849162668 | H115: 0.04733338672 | I115: 0.06479687615 | J115: 0.4810371855 | L115: 12.39985517 | M115: 29.9861659 | N115: 16.48429417 | O115: 0.1484308289
A116: 108 | B116: 0.7269457573 | C116: 0.277126568 | D116: 0.5239079894 | E116: 0.5358119578 | G116: 0.6015072812 | H116: 0.5723812073 | I116: 0.4156649019 | J116: 0.6031320408 | L116: 10.51450091 | M116: 35.54731943 | N116: 17.78700364 | O116: 0.1586282602
A117: 109 | B117: 0.6037694087 | C117: 0.08304906574 | D117: 0.8422720344 | E117: 0.8092586728 | G117: 0.406672292 | H117: 0.1487091008 | I117: 0.1401094693 | J117: 0.1707386181 | L117: 9.527772962 | M117: 31.87404221 | N117: 16.92017236 | O117: 0.118608734
A118: 110 | B118: 0.8039398833 | C118: 0.5984224125 | D118: 0.04689486337 | E118: 0.5496780293 | G118: 0.2942722795 | H118: 0.1465269575 | I118: 0.5546336539 | J118: 0.1935362205 | L118: 8.918107291 | M118: 31.84566276 | N118: 18.13737715 | O118: 0.1214570233
A119: 111 | B119: 0.8151070272 | C119: 0.8644152929 | D119: 0.2511034232 | E119: 0.1959214008 | G119: 0.9350891728 | H119: 0.3306064848 | I119: 0.970497475 | J119: 0.136561553 | L119: 13.0296111 | M119: 33.68528271 | N119: 19.88815571 | O119: 0.1138353427
A120: 112 | B120: 0.7713046921 | C120: 0.6725990523 | D120: 0.6025102596 | E120: 0.1664816102 | G120: 0.7438462141 | H120: 0.04802408832 | I120: 0.9283196414 | J120: 0.2368581974 | L120: 11.31049762 | M120: 30.00703518 | N120: 19.46338991 | O120: 0.1263573031
A121: 113 | B121: 0.4046109101 | C121: 0.747271833 | D121: 0.006412119999 | E121: 0.04297096625 | G121: 0.3178478967 | H121: 0.0513362581 | I121: 0.2131625549 | J121: 0.06248932385 | L121: 9.052549355 | M121: 30.10390074 | N121: 17.20450413 | O121: 0.09937115714
A122: 114 | B122: 0.2109072196 | C122: 0.6883142904 | D122: 0.1784499436 | E122: 0.8290143139 | G122: 0.2646907607 | H122: 0.3308115669 | I122: 0.8305203099 | J122: 0.9726589343 | L122: 8.742099177 | M122: 33.68698013 | N122: 18.9562234 | O122: 0.2134059818
A123: 115 | B123: 0.9967307014 | C123: 0.9330353287 | D123: 0.8829710255 | E123: 0.7522368603 | G123: 0.9569753473 | H123: 0.6568640988 | I123: 0.1000047177 | J123: 0.222331456 | L123: 13.43323257 | M123: 36.21175896 | N123: 16.71847532 | O123: 0.1247766835
A124: 116 | B124: 0.89021617 | C124: 0.4258135 | D124: 0.6038525033 | E124: 0.6998542299 | G124: 0.343419694 | H124: 0.2644128084 | I124: 0.9571318764 | J124: 0.7851406594 | L124: 9.193704101 | M124: 33.11060078 | N124: 19.71833106 | O124: 0.1760592136
A125: 117 | B125: 0.5166488892 | C125: 0.140355935 | D125: 0.1056640906 | E125: 0.539698013 | G125: 0.9107568181 | H125: 0.7043929565 | I125: 0.1700388386 | J125: 0.2618217891 | L125: 12.6908603 | M125: 36.61123248 | N125: 17.04598822 | O125: 0.1289546122
A126: 118 | B126: 0.7664893008 | C126: 0.08767013719 | D126: 0.5820059752 | E126: 0.7351925019 | G126: 0.657234333 | H126: 0.2159334957 | I126: 0.8732735748 | J126: 0.128027775 | L126: 10.80985356 | M126: 32.64199746 | N126: 19.14200281 | O126: 0.112519804
A127: 119 | B127: 0.009900571991 | C127: 0.4840892422 | D127: 0.5149958103 | E127: 0.343892406 | G127: 0.843533873 | H127: 0.7204895809 | I127: 0.9964902726 | J127: 0.2426675525 | L127: 12.01817674 | M127: 36.75288954 | N127: 20.69591988 | O127: 0.1269743319
A128: 120 | B128: 0.3725042055 | C128: 0.2735385412 | D128: 0.4021101451 | E128: 0.5213416986 | G128: 0.8634369577 | H128: 0.8911280772 | I128: 0.1493335792 | J128: 0.6293820486 | L128: 12.1917838 | M128: 38.69764884 | N128: 16.96070414 | O128: 0.1608971654
A129: 121 | B129: 0.5876530967 | C129: 0.1601311071 | D129: 0.4792332572 | E129: 0.4174182981 | G129: 0.5556561594 | H129: 0.5261561409 | I129: 0.08854208405 | J129: 0.2548871559 | L129: 10.27992991 | M129: 35.1968323 | N129: 16.65021254 | O129: 0.128246758
A130: 122 | B130: 0.9143531406 | C130: 0.2749577893 | D130: 0.1164376744 | E130: 0.1831464574 | G130: 0.9382998742 | H130: 0.9547140637 | I130: 0.9403184456 | J130: 0.1504021257 | L130: 13.08131429 | M130: 40.0771663 | N130: 19.55745242 | O130: 0.115854562
A131: 123 | B131: 0.2401061477 | C131: 0.1737925134 | D131: 0.0990722393 | E131: 0.3143766604 | G131: 0.5836673768 | H131: 0.8317659183 | I131: 0.9856061771 | J131: 0.1996026189 | L131: 10.42256908 | M131: 37.88350125 | N131: 20.18638232 | O131: 0.1221796307
A132: 124 | B132: 0.275195727 | C132: 0.320891529 | D132: 0.8922278567 | E132: 0.9979142563 | G132: 0.8431672895 | H132: 0.4783339406 | I132: 0.7312223534 | J132: 0.5891094045 | L132: 12.01512133 | M132: 34.83699356 | N132: 18.61651406 | O132: 0.1574334029
A133: 125 | B133: 0.0319145513 | C133: 0.5954310224 | D133: 0.9323791503 | E133: 0.2396192144 | G133: 0.4947610337 | H133: 0.4115740209 | I133: 0.4942869016 | J133: 0.9743106108 | L133: 9.973734963 | M133: 34.32950639 | N133: 17.9856789 | O133: 0.2142939825
A134: 126 | B134: 0.09632913728 | C134: 0.9917501564 | D134: 0.2726947045 | E134: 0.1135830333 | G134: 0.932031629 | H134: 0.7961410088 | I134: 0.7622662356 | J134: 0.9077254846 | L134: 12.98218858 | M134: 37.48374848 | N134: 18.71361136 | O134: 0.1937869752
A135: 127 | B135: 0.8225080348 | C135: 0.5504793709 | D135: 0.8367539777 | E135: 0.01775688709 | G135: 0.06297314673 | H135: 0.3066178184 | I135: 0.2586402029 | J135: 0.3357520367 | L135: 6.939430759 | M135: 33.48361936 | N135: 17.35245674 | O135: 0.1360052063
A136: 128 | B136: 0.7246984762 | C136: 0.7634834036 | D136: 0.8770855262 | E136: 0.6218344339 | G136: 0.3997005806 | H136: 0.8966085824 | I136: 0.7201016755 | J136: 0.9670146474 | L136: 9.491755621 | M136: 38.78738397 | N136: 18.58314358 | O136: 0.2106745479
A137: 129 | B137: 0.8920775508 | C137: 0.1497471223 | D137: 0.1678247902 | E137: =+RAND() -> 0.04476672436 | G137: 0.8004363636 | H137: 0.9634437806 | I137: 0.8416416474 | J137: 0.0938102964 | L137: 11.68636182 | M137: 40.37638448 | N137: 19.00122777 | O137: 0.1065175257
A138: 130 | B138: =+RAND() -> 0.5899847689 | C138: 0.4899839615 | D138: 0.9226811704 | E138: 0.1098516945 | G138: 0.8608755966 | H138: 0.8971508017 | I138: 0.2340166277 | J138: 0.04286179219 | L138: =+IF(NORMSINV(G138)*$M$3+$L$3<$N$3,$N$3,NORMSINV(G138)*$M$3+$L$3) -> 12.16852329 | M138: =+IF(NORMSINV(H138)*$M$4+$L$4<$N$4,N133,NORMSINV(H138)*$M$4+$L$4) -> 38.79644768 | N138: =+IF(NORMSINV(I138)*$M$5+$L$5<$N$5,$N$5,NORMSINV(I138)*$M$5+$L$5) -> 17.27431721 | O138: =+IF(NORMSINV(J138)*$M$6+$L$6<$N$6,N$6,NORMSINV(J138)*$M$6+$L$6) -> 0.09329278262
A139: 131 | B139: 0.9708251482 | C139: 0.7109894847 | D139: 0.7106690814 | E139: 0.1353578501 | G139: 0.2596979425 | H139: 0.8393434226 | I139: 0.3804850051 | J139: 0.9251398797 | L139: 8.711446177 | M139: 37.97528897 | N139: 17.69579276 | O139: 0.1975371711
A140: 132 | B140: 0.9066385908 | C140: 0.5034112517 | D140: 0.3532641974 | E140: 0.9318533005 | G140: 0.6944227401 | H140: 0.7993831575 | I140: 0.7334694593 | J140: 0.1411582186 | L140: 11.01685229 | M140: 37.51825989 | N140: 18.62334005 | O140: 0.1145207032
A141: 133 | B141: 0.997405229 | C141: 0.4366636056 | D141: 0.3462453989 | E141: 0.2186841589 | G141: 0.4160404294 | H141: 0.9531171934 | I141: 0.8930573686 | J141: 0.66502619 | L141: 9.575932896 | M141: 40.02758008 | N141: 19.2429527 | O141: 0.1640652566
A142: 134 | B142: 0.6884465866 | C142: 0.586850217 | D142: 0.9993306249 | E142: 0.2576585379 | G142: 0.4190834863 | H142: 0.3614769011 | I142: 0.3759311527 | J142: 0.8455356334 | L142: 9.591522606 | M142: 33.93645835 | N142: 17.68381528 | O142: 0.1835765907
A143: 135 | B143: 0.9593044935 | C143: 0.9831587914 | D143: 0.1802570612 | E143: 0.9358489146 | G143: 0.5378602027 | H143: 0.6822131852 | I143: 0.719696645 | J143: 0.4082286631 | L143: 10.19008871 | M143: 36.42168986 | N143: 18.58194057 | O143: 0.1423405717
A144: 136 | B144: 0.1913049848 | C144: 0.1777925769 | D144: 0.6216587546 | E144: 0.8881118893 | G144: 0.4182376505 | H144: 0.8473718429 | I144: 0.8841142828 | J144: 0.792317997 | L144: 9.587191883 | M144: 38.07567958 | N144: 19.19580815 | O144: 0.1768781869
A145: 137 | B145: 0.2304489104 | C145: 0.6989908782 | D145: 0.05374019241 | E145: 0.5166641219 | G145: 0.1879414004 | H145: 0.2522506592 | I145: 0.1063882548 | J145: 0.8272601563 | L145: 8.228984349 | M145: 32.9977279 | N145: 16.754033 | O145: 0.1811319842
A146: 138 | B146: 0.2178506956 | C146: 0.6155416263 | D146: 0.1010394073 | E146: 0.08402455726 | G146: 0.4628233702 | H146: 0.7378916717 | I146: 0.9721301199 | J146: 0.1649696573 | L146: 9.813353446 | M146: 36.91057716 | N146: 19.91306478 | O146: 0.1178502081
A147: 139 | B147: 0.01909560688 | C147: 0.3005892202 | D147: 0.9011006276 | E147: 0.9752694735 | G147: 0.5842994859 | H147: 0.876031617 | I147: 0.7148203374 | J147: 0.5824767965 | L147: 10.42581009 | M147: 38.46612594 | N147: 18.56752238 | O147: 0.1568717159
A148: 140 | B148: 0.5003504211 | C148: 0.8015571089 | D148: 0.2145517954 | E148: 0.07616081222 | G148: 0.5905746828 | H148: 0.09812840582 | I148: 0.009204836712 | J148: 0.9520601862 | L148: 10.45804704 | M148: 31.12313068 | N148: 15.64272632 | O148: 0.2049504804
A149: 141 | B149: 0.2505761575 | C149: 0.8588680796 | D149: 0.8227631939 | E149: 0.4964731195 | G149: 0.670815836 | H149: 0.3671476528 | I149: 0.2676903346 | J149: 0.03151553592 | L149: 10.8843341 | M149: 33.98174777 | N149: 17.38018664 | O149: 0.08865391574
A150: 142 | B150: 0.4110860695 | C150: 0.9302142658 | D150: 0.08815419395 | E150: 0.6181729483 | G150: 0.1925495695 | H150: 0.9070010266 | I150: 0.9321013261 | J150: 0.3126495699 | L150: 8.262921295 | M150: 38.96753392 | N150: 19.49162551 | O150: 0.133884319
A151: 143 | B151: 0.7931042809 | C151: 0.1323981118 | D151: 0.5720451462 | E151: 0.009663158944 | G151: 0.694288441 | H151: 0.8154198371 | I151: 0.1549805871 | J151: 0.6753814501 | L151: 11.0160862 | M151: 37.69414194 | N151: 16.98469649 | O151: 0.1650091353
A152: 144 | B152: 0.9460881596 | C152: 0.5757329448 | D152: 0.4685142908 | E152: 0.6497160678 | G152: 0.8420646301 | H152: 0.4281258373 | I152: 0.9229840328 | J152: 0.5811879074 | L152: 12.00595905 | M152: 34.45655701 | N152: 19.42543349 | O152: 0.1567628011
A153: 145 | B153: 0.03898564543 | C153: 0.007964888835 | D153: 0.8300934347 | E153: 0.01048488804 | G153: 0.02026432266 | H153: 0.8294915558 | I153: 0.7445096599 | J153: 0.606688428 | L153: 5.903359812 | M153: 37.85647382 | N153: 18.65731144 | O153: 0.1589330413
A154: 146 | B154: 0.714094321 | C154: 0.5038765009 | D154: 0.1151226362 | E154: 0.3133978781 | G154: 0.497276682 | H154: 0.8871376243 | I154: 0.3144208239 | J154: 0.2323854768 | L154: 9.986347202 | M154: 38.63433618 | N154: 17.51664212 | O154: 0.125876557
A155: 147 | B155: 0.784784232 | C155: 0.400536373 | D155: 0.303790747 | E155: 0.3155630056 | G155: 0.8993372108 | H155: 0.4602844106 | I155: 0.6512930965 | J155: 0.1813854271 | L155: 12.55556811 | M155: 34.70084831 | N155: 18.38881391 | O155: 0.1199667676
A156: 148 | B156: 0.5248431061 | C156: 0.8426150595 | D156: 0.2492194043 | E156: 0.9063611407 | G156: 0.46571369 | H156: 0.3866866029 | I156: 0.177700566 | J156: 0.1265282729 | L156: 9.827901785 | M156: 34.13610373 | N156: 17.07583638 | O156: 0.112282427
A157: 149 | B157: 0.01796169134 | C157: 0.8275960683 | D157: 0.8730135824 | E157: 0.7192255312 | G157: 0.01227325468 | H157: 0.2326393 | I157: 0.2040936169 | J157: 0.734576785 | L157: 5.503068584 | M157: 32.80945231 | N157: 17.17291209 | O157: 0.1706815769
A158: 150 | B158: 0.4914909012 | C158: 0.4728651019 | D158: 0.4577489007 | E158: 0.2726061754 | G158: 0.2240273784 | H158: 0.06657687564 | I158: 0.5631613699 | J158: 0.5454214839 | L158: 8.482675942 | M158: 30.49465787 | N158: 18.15898936 | O158: 0.153765362
A159: 151 | B159: 0.5252910612 | C159: 0.934820948 | D159: 0.4507434537 | E159: 0.09320753256 | G159: 0.746285543 | H159: 0.04823840201 | I159: 0.5391977385 | J159: 0.4831040184 | L159: 11.32569286 | M159: 30.01346172 | N159: 18.09841279 | O159: 0.1486019677
A160: 152 | B160: 0.2235408271 | C160: 0.7326862459 | D160: 0.1944292828 | E160: 0.8291779534 | G160: 0.7032895369 | H160: 0.1164421093 | I160: 0.5298930852 | J160: 0.759081145 | L160: 11.0677705 | M160: 31.42111372 | N160: 18.07500111 | O160: 0.1732105473
A161: 153 | B161: 0.7473538324 | C161: 0.970699074 | D161: 0.8684412245 | E161: 0.9097063077 | G161: 0.5707933379 | H161: 0.09346447046 | I161: 0.1427139637 | J161: 0.7749453451 | L161: 10.3567886 | M161: 31.04084378 | N161: 16.93179473 | O161: 0.1749226825
A162: 154 | B162: 0.2662903689 | C162: 0.7219036905 | D162: 0.9321410271 | E162: 0.1023726266 | G162: 0.79948518 | H162: 0.3439006749 | I162: 0.187965139 | J162: 0.3638210223 | L162: 11.67956752 | M162: 33.79447824 | N162: 17.11458024 | O162: 0.1385072932
A163: 155 | B163: 0.4431204749 | C163: 0.6997584538 | D163: 0.5064455327 | E163: 0.3055100392 | G163: 0.5099585208 | H163: 0.1258131609 | I163: 0.7347944975 | J163: 0.4699273353 | L163: 10.04992981 | M163: 31.56077562 | N163: 18.62737873 | O163: 0.1475100667
A164: 156 | B164: 0.6462327131 | C164: 0.0607870588 | D164: 0.6877681046 | E164: 0.4480792277 | G164: 0.2117123083 | H164: 0.2058949875 | I164: 0.4606392954 | J164: 0.9332167736 | L164: 8.399011925 | M164: 32.5377568 | N164: 17.90117673 | O164: 0.1995061094
A165: 157 | B165: 0.6589185299 | C165: 0.6699555734 | D165: 0.5846499703 | E165: 0.06352496939 | G165: 0.6401185522 | H165: 0.6155314288 | I165: 0.1260879219 | J165: 0.9399856566 | L165: 10.71755139 | M165: 35.88129633 | N165: 16.85491958 | O165: 0.2013035555
A166: 158 | B166: 0.9759472504 | C166: 0.6397629682 | D166: 0.7174900155 | E166: 0.8491308832 | G166: 0.8990290545 | H166: 0.9154553926 | I166: 0.4270372227 | J166: 0.3141848374 | L166: 12.55207711 | M166: 39.12540868 | N166: 17.81607774 | O166: 0.134027247
A167: 159 | B167: 0.2972228481 | C167: 0.3226756601 | D167: 0.4548873907 | E167: 0.02287987947 | G167: 0.9656093668 | H167: 0.3878036962 | I167: 0.9233150604 | J167: 0.6857011189 | L167: 13.63970768 | M167: 34.1448561 | N167: 19.42772899 | O167: 0.1659621479
A168: 160 | B168: 0.5127696066 | C168: 0.9179729069 | D168: 0.2249541903 | E168: 0.9950711987 | G168: 0.7346450256 | H168: 0.4740688016 | I168: 0.1015920534 | J168: 0.687093043 | L168: 11.25384527 | M168: 34.80486286 | N168: 16.72746784 | O168: 0.1660916981
A169: 161 | B169: 0.7849652108 | C169: 0.1065252757 | D169: 0.7118442407 | E169: 0.3918655861 | G169: 0.5726343092 | H169: 0.2799374171 | I169: 0.0403378053 | J169: 0.3189333327 | L169: 10.36616986 | M169: 33.25091771 | N169: 16.2532206 | O169: 0.1344674397
A170: 162 | B170: 0.2107562501 | C170: 0.5351780422 | D170: 0.7120115578 | E170: 0.9167901726 | G170: 0.2588970688 | H170: 0.9572035799 | I170: 0.8284342716 | J170: 0.5401393276 | L170: 8.706501175 | M170: 40.15735479 | N170: 18.94799607 | O170: 0.1533258963
A171: 163 | B171: 0.1567434311 | C171: 0.5096760296 | D171: 0.00385435038 | E171: 0.2061353386 | G171: 0.4664860877 | H171: 0.3720088618 | I171: 0.9715481797 | J171: 0.8788867517 | L171: 9.831788053 | M171: 34.02038751 | N171: 19.90405025 | O171: 0.1885915122
A172: 164 | B172: 0.1630179817 | C172: 0.6342043269 | D172: 0.7064749848 | E172: 0.09255018407 | G172: 0.01071692871 | H172: 0.880250782 | I172: 0.5684029349 | J172: 0.4629887678 | L172: 5.399492823 | M172: 38.52872412 | N172: 18.17230961 | O172: 0.1469340728
A173: 165 | B173: 0.9922421795 | C173: 0.866054543 | D173: 0.6181933245 | E173: 0.7137280209 | G173: 0.7687742855 | H173: 0.9731771875 | I173: 0.3203948252 | J173: 0.1217109594 | L173: 11.46963243 | M173: 40.78906116 | N173: 17.53340498 | O173: 0.1115062816
A174: 166 | B174: 0.9885440933 | C174: 0.5429984842 | D174: 0.7358917529 | E174: 0.1638944395 | G174: 0.03082237251 | H174: 0.7032546451 | I174: 0.9453305598 | J174: 0.9950864452 | L174: 6.262315215 | M174: 36.60135319 | N174: 19.60117177 | O174: 0.2352011881
A175: 167 | B175: 0.137834666 | C175: 0.5761011853 | D175: 0.9657300253 | E175: 0.8105892482 | G175: 0.1000213474 | H175: 0.2433616065 | I175: 0.7215445209 | J175: 0.8033666311 | L175: 7.437140128 | M175: 32.91340998 | N175: 18.58743595 | O175: 0.1781723677
A176: 168 | B176: 0.5712128911 | C176: 0.8123354115 | D176: 0.08343790117 | E176: 0.5906051837 | G176: 0.0212494354 | H176: 0.3163851511 | I176: 0.005843848484 | J176: 0.2938406288 | L176: 5.942796512 | M176: 33.56650619 | N176: 15.47856411 | O176: 0.132107425
A177: 169 | B177: 0.2755543864 | C177: 0.08509394683 | D177: 0.2898858617 | E177: 0.9662463014 | G177: 0.8271266411 | H177: 0.8623760705 | I177: 0.1841177503 | J177: 0.8491823039 | L177: 11.88574267 | M177: 38.27317061 | N177: 17.10021654 | O177: 0.1840867793
A178: 170 | B178: 0.670970426 | C178: 0.145410883 | D178: 0.2273374707 | E178: 0.9866379796 | G178: 0.4672612016 | H178: 0.6139971599 | I178: 0.4717540546 | J178: 0.8189075682 | L178: 9.835687349 | M178: 35.86925714 | N178: 17.92913866 | O178: 0.180069922
A179: 171 | B179: 0.4299623495 | C179: 0.8882177462 | D179: 0.8697642608 | E179: 0.532033327 | G179: 0.9686008987 | H179: 0.3766073978 | I179: 0.08487768953 | J179: 0.7474090166 | L179: 13.72123513 | M179: 34.05679028 | N179: 16.62700975 | O179: 0.1719898313
A180: 172 | B180: 0.0656326252 | C180: 0.4585586457 | D180: 0.8522985261 | E180: 0.4078568014 | G180: 0.4809455203 | H180: 0.2703123556 | I180: 0.3334483154 | J180: 0.8776336135 | L180: 9.904438656 | M180: 33.16439426 | N180: 17.56958891 | O180: 0.1883868686
A181: 173 | B181: 0.4303108114 | C181: 0.143578084 | D181: 0.5441196536 | E181: 0.3943639547 | G181: 0.5629385908 | H181: 0.5168814328 | I181: 0.8118251786 | J181: 0.08516994378 | L181: 10.31684771 | M181: 35.12698434 | N181: 18.88464219 | O181: 0.1047532874
A182: 174 | B182: 0.3876947108 | C182: 0.02747555634 | D182: 0.4286709797 | E182: 0.6000752835 | G182: 0.9028191985 | H182: 0.7439265868 | I182: 0.8750667452 | J182: 0.6319007969 | L182: 12.5955678 | M182: 36.96649562 | N182: 19.15067368 | O182: 0.1611174321
A183: 175 | B183: 0.2489129329 | C183: 0.1288631315 | D183: 0.9469723594 | E183: 0.6237003429 | G183: 0.8091871977 | H183: 0.3906117576 | I183: 0.5287950415 | J183: 0.4450693408 | L183: 11.74980998 | M183: 34.16682518 | N183: 18.07224125 | O183: 0.145441752
A184: 176 | B184: 0.3730929792 | C184: 0.7264367055 | D184: 0.8673647978 | E184: 0.06639803845 | G184: 0.5634923251 | H184: 0.892452052 | I184: 0.04300307996 | J184: 0.9301849493 | L184: 10.31965909 | M184: 38.71902282 | N184: 16.28314769 | O184: 0.1987466065
A185: 177 | B185: 0.06813076893 | C185: 0.4134689868 | D185: 0.3270370248 | E185: 0.7258112821 | G185: 0.936476477 | H185: 0.9247994036 | I185: 0.4241118055 | J185: 0.04620172809 | L185: 13.05170144 | M185: 39.31434748 | N185: 17.80861454 | O185: 0.09446583467
A186: 178 | B186: 0.6057939497 | C186: 0.4200898513 | D186: 0.0989482517 | E186: 0.02638981857 | G186: 0.4117863659 | H186: 0.9434364772 | I186: 0.2280790164 | J186: 0.6495327808 | L186: 9.554095658 | M186: 39.75287916 | N186: 17.25481193 | O186: 0.1626739595
A187: 179 | B187: 0.06722150794 | C187: 0.7014716499 | D187: 0.5247083929 | E187: 0.9333603901 | G187: 0.08493454685 | H187: 0.05384240753 | I187: 0.7471571235 | J187: 0.7609641455 | L187: 7.254750887 | M187: 30.17393921 | N187: 18.66557037 | O187: 0.1734104436
A188: 180 | B188: 0.09151958423 | C188: 0.3752371692 | D188: 0.7758573129 | E188: 0.4873072841 | G188: 0.08731059947 | H188: 0.5573114639 | I188: 0.6496056938 | J188: 0.3793732705 | L188: 7.284992476 | M188: 35.43246881 | N188: 18.38425614 | O188: 0.1398648018
A189: 181 | B189: 0.5268828853 | C189: 0.7538409623 | D189: 0.6525924015 | E189: 0.06995067442 | G189: 0.8201163556 | H189: 0.3705790322 | I189: 0.7786863095 | J189: 0.211343385 | L189: 11.83161721 | M189: 34.00903953 | N189: 18.76776404 | O189: 0.123541633
A190: 182 | B190: 0.9409794939 | C190: 0.6822543807 | D190: 0.5915892047 | E190: 0.4037023638 | G190: 0.1877275802 | H190: 0.9269578751 | I190: 0.06559631467 | J190: 0.8048153719 | L190: 8.227397295 | M190: 39.36050789 | N190: 16.49058448 | O190: 0.178345281
A191: 183 | B191: 0.7875808619 | C191: 0.1593032075 | D191: 0.3190867497 | E191: 0.1375264859 | G191: 0.7668415868 | H191: 0.9057758247 | I191: 0.4124175601 | J191: 0.8254299606 | L191: 11.45696974 | M191: 38.94554951 | N191: 17.77866952 | O191: 0.1808965325
A192: 184 | B192: 0.9499211289 | C192: 0.5345281331 | D192: 0.6728511109 | E192: 0.03311238008 | G192: 0.06456913301 | H192: 0.7284690689 | I192: 0.9106090426 | J192: 0.7327451061 | L192: 6.964982342 | M192: 36.82456821 | N192: 19.34451498 | O192: 0.1704975059
A193: 185 | B193: 0.8976741324 | C193: 0.7320443612 | D193: 0.3019684016 | E193: 0.6748677086 | G193: 0.4071327098 | H193: 0.7884715404 | I193: 0.4523031074 | J193: 0.8275905438 | L193: 9.530146069 | M193: 37.40338726 | N193: 17.88015535 | O193: 0.181174657
A194: 186 | B194: 0.5206930171 | C194: 0.8543097529 | D194: 0.5155348784 | E194: 0.5271850352 | G194: 0.4880422315 | H194: 0.4585419027 | I194: 0.1952367149 | J194: 0.7143205621 | L194: 9.940043659 | M194: 34.68767662 | N194: 17.14124089 | O194: 0.1686796945
A195: 187 | B195: 0.423050648 | C195: 0.6668217382 | D195: 0.372759945 | E195: 0.1686176381 | G195: 0.1012516664 | H195: 0.4732889886 | I195: 0.5543627098 | J195: 0.2748121353 | L195: 7.451096334 | M195: 34.79898596 | N195: 18.13669159 | O195: 0.130255333
A196: 188 | B196: 0.8514819378 | C196: 0.2069648546 | D196: 0.05676293419 | E196: 0.01539202056 | G196: 0.03464749395 | H196: 0.1504674547 | I196: 0.8404720526 | J196: 0.8251778404 | L196: 6.367016703 | M196: 31.89670823 | N196: 18.99639987 | O196: 0.1808642208
A197: 189 | B197: 0.4361936671 | C197: 0.2250609468 | D197: 0.08996941917 | E197: 0.431586484 | G197: 0.6095487424 | H197: 0.3931468046 | I197: 0.2684957021 | J197: 0.8848956166 | L197: 10.55628619 | M197: 34.18661999 | N197: 17.38263106 | O197: 0.1895941015
A198: 190 | B198: 0.9969901279 | C198: 0.2509883498 | D198: 0.3751965241 | E198: 0.4656282699 | G198: 0.6656666544 | H198: 0.4638724632 | I198: 0.4536614953 | J198: 0.8051793181 | L198: 10.85595723 | M198: 34.72795269 | N198: 17.88358417 | O198: 0.1783888419
A199: 191 | B199: 0.3389557537 | C199: 0.9350350221 | D199: 0.9978594926 | E199: 0.02798981866 | G199: 0.945302097 | H199: 0.2949491624 | I199: 0.3092243111 | J199: 0.02021581662 | L199: 13.20182946 | M199: 33.38304987 | N199: 17.50194975 | O199: 0.08237270982
A200: 192 | B200: 0.48409651 | C200: 0.6072208817 | D200: 0.867178593 | E200: 0.3127772448 | G200: 0.6146166933 | H200: 0.9703185278 | I200: 0.7959639424 | J200: 0.7154341339 | L200: 10.58274456 | M200: 40.6564871 | N200: 18.82729105 | O200: 0.1687879133
... 808 more rows

Sheet 注意事項
B2: 【注意事項】
B3: ・ このソフトウエアは、エクセルマクロで動作します
B4: ・無限長斜面の安定計算（確定論的・確率論的）を行います
B5: （ただし、太田ジオではRocscience社のSLIDE2018を用いています）
B6: ・このソフトウエアを使用して生じたいかなる損害にも賠償責任を負いません
B7: ・当該安定計算及び対策工の設計には特許権が成立しています
B8: ・太田ジオと契約している排水資材を用いる場合には無償で使用できます
B9: （プロテクトはかけていませんので自由に改造してください）
B10: ・この設計方法で対策を行う場合には、太田ジオと契約済の排水資材以外は使用できません
B11: （未契約の排水資材を設計に織込んだ場合には設計者は知財権侵害となりますのでご注意ください）
B14: 最新情報は、下記URLに掲載します。
B15: http://www.ohta-geo.co.jp/PF/
B17: Version情報
B18: v0.50 | C18: 43698 | D18: 基本的な確率計算の方法と過剰間隙水圧の作用の概念がわかるように無限長斜面で試作
